Workbook

Sheet Factors & Yield
A1: Costs of Apple Production
A2: Labor Cost/Hr. (no-skill) | C2: 10 | D2: Cost of Gasoline/Gal | F2: 3.5
A3: Labor Cost/Hr. (skilled) | C3: 15 | D3: Cost of Diesel/Gal | F3: 2.75
A4: Harvest Piece Rate/Bin | C4: 20
A5: Harvest Cost per Lb. | C5: =+Harvest!H22 -> 0.04852247235 | D5: Interest Rate on Land | F5: 0.06
D6: Interest Rate on Operating | F6: 0.06
A7: Bulldozer Cost/Hr. | C7: 70 | D7: Expected Apple Price per lb. | F7: 0.2
E8: Central Leader | F8: 0.2
E9: Vertical Axe | F9: 0.21
E10: Tall Spindle | F10: 0.22
E11: Fruiting Wall | F11: 0.23
A12: Cost of Trees-feathered (per tree) | C12: 8.5 | D12: Land Investment / Acre | F12: 6000
A13: Cost of Wildlife Control/Tree | C13: 0.05 | D13: Real Estate Tax / Acre | F13: 35
A14: Cost of Mouse Guards/Tree | C14: 0.25 | D14: Expected Life of Orchard (years) | F14: 20
A15: Custom Planting Cost/Tree | C15: 0.35 | D15: Crop Insurance /Acre | F15: 200
D16: Frost Fans | E16: $35000/10 acres | F16: 2000
D17: Management | E17: $40000/200 acres | F17: 200
A18: Lime Cost/Ton | C18: 35 | D18: Overhead Misc Costs/acre | F18: 40
A20: System Characteristics
B21: Central Leader | C21: Vertical Axe | D21: Tall Spindle | E21: Fruiting Wall
A22: Row Length | B22: 500 | C22: 500 | D22: 500 | E22: 500
A23: Rows/acre | B23: =43560/B22/CLRowSpace -> 4.356 | C23: =43560/C22/VARowSpace -> 6.222857143 | D23: =43560/D22/SSRowSpace -> 7.26 | E23: =43560/E22/FWRowSpace -> 8.712
A24: Tree spacing | B24: 12 | C24: 5 | D24: 3 | E24: 4
A25: Row spacing | B25: 20 | C25: 14 | D25: 12 | E25: 10
A26: Sq.ft. | B26: =+B24*B25 -> 240 | C26: =+C24*C25 -> 70 | D26: =+D24*D25 -> 36 | E26: =+E24*E25 -> 40
A27: Trees/acre | B27: =43560/B26 -> 181.5 | C27: =43560/C26 -> 622.2857143 | D27: =43560/D26 -> 1210 | E27: =43560/E26 -> 1089
A28: Row Length/Acre | B28: =43560/B25 -> 2178 | C28: =43560/C25 -> 3111.428571 | D28: 3630 | E28: =43560/E25 -> 4356
A29: Tree Width | B29: =+CLRowSpace-6 -> 14 | C29: =+VARowSpace-5 -> 9 | D29: =+SSRowSpace-5 -> 7 | E29: =+FWRowSpace-5 -> 5
A30: Tree Height | B30: 18 | C30: 12 | D30: 10 | E30: 9
A31: Tree Row Volumn | B31: 100 | C31: 80 | D31: 70 | E31: 65
A32: These factors are used universally throughout this spreadsheet.
A34: Yields | B34: The yield for different systems @ 42# bushels.
A35: Year | B35: Central Leader | C35: Vertical Axe | D35: Tall Spindle | E35: =+E21 -> Fruiting Wall
A36: 0 | B36: 0 | C36: 0 | D36: 0 | E36: 0
A37: =+A36+1 -> 1 | B37: 0 | C37: =+C36 -> 0 | D37: 0 | E37: 100
A38: 2 | B38: 0 | C38: =+C37 -> 0 | D38: 50 | E38: 400
A39: 3 | B39: 0 | C39: 150 | D39: 200 | E39: 800
A40: 4 | B40: 100 | C40: 300 | D40: 800 | E40: 1200
A41: 5 | B41: 150 | C41: 600 | D41: 1000 | E41: 1200
A42: 6 | B42: 300 | C42: 800 | D42: =+D41 -> 1000 | E42: 1200
A43: 7 | B43: 400 | C43: 800 | D43: 1000 | E43: 1200
A44: 8 | B44: 500 | C44: =+C43 -> 800 | D44: 1000 | E44: 1200
A45: 9 | B45: 650 | C45: 800 | D45: 1000 | E45: 1200
A46: 10 | B46: 650 | C46: 800 | D46: 1000 | E46: 1200
A47: 11 | B47: =+B46 -> 650 | C47: 800 | D47: 1000 | E47: 1200
A48: 12 | B48: 650 | C48: 800 | D48: 1000 | E48: 1200
A49: 13 | B49: 650 | C49: 800 | D49: 1000 | E49: 1200
A50: 14 | B50: 650 | C50: 800 | D50: 1000 | E50: 1200
A51: 15 | B51: 650 | C51: 800 | D51: 1000 | E51: 1200
A52: 16 | B52: 650 | C52: 800 | D52: 1000 | E52: 1200
A53: 17 | B53: 650 | C53: 800 | D53: 1000 | E53: 1200
A54: 18 | B54: 650 | C54: 800 | D54: 1000 | E54: 1200
A55: 19 | B55: 650 | C55: 800 | D55: 1000 | E55: 1200
A56: 20 | B56: 650 | C56: 800 | D56: 1000 | E56: 1200
A58: The yields of each system is based on grower survey at the time this cost study was completed.
A59: Perhapst a more realistic yield for the central leader system should be 700 bushel per acre.
A61: GAP Audit | C61: 1000 | D61: =+C61/200 -> 5
A62: Water Test | C62: 100 | D62: =+C62/200 -> 0.5
A63: Paper Labor HR request | C63: 100 | D63: 0.5
A64: Suveys | C64: 100 | D64: 0.5
A65: Primus | C65: 1000 | D65: 5
A66: Law Suits | D66: 0
A67: Fines | C67: 100 | D67: 0.5
A68: Frost | D68: 0
A71: Uhooks | B71: 0.12
A72: SM UHOOKS | B72: 0.115
A73: WIRE | B73: 0.024
A74: GARDS | B74: 35.5
A75: APPLE BAND | B75: 0.015
C97: Sevin 80S

Sheet Profit
A1: Profit Comparison of Systems
A3: Effect of varying yield.
A5: This chart is based on Mature Bearing Years for each system.
A6: Bin costs based on 850 lb bins.
C7: Central Leader | F7: Vertical Axe | I7: Tall Spindle | L7: Fruiting Wall
A8: Yield | B8: Cost | C8: Cost | D8: Cost | E8: =+B8 -> Cost | F8: =+C8 -> Cost | G8: Cost | H8: Cost | I8: Cost | J8: Cost | K8: =+H8 -> Cost | L8: =+I8 -> Cost | M8: =+J8 -> Cost
A9: /Acre | B9: /Bin | C9: /Bushel | D9: /lb. | E9: /Bin | F9: /Bushel | G9: /lb. | H9: /Bin | I9: /Bushel | J9: /lb. | K9: /Bin | L9: /Bushel | M9: /lb.
A10: 200 | B10: =+'CL Profit'!H61*850 -> 307.9752357 | C10: =+'CL Profit'!G61 -> 15.21759988 | D10: =+'CL Profit'!H61 -> 0.3623238066 | E10: =+'VA Profit'!H61*850 -> 312.0516323 | F10: =+'VA Profit'!G61 -> 15.41902183 | G10: =+'VA Profit'!H61 -> 0.3671195675 | H10: =+'TS Profit'!H61*850 -> 312.5358043 | I10: =+'TS Profit'!G61 -> 15.44294563 | J10: =+'TS Profit'!H61 -> 0.3676891816 | K10: =+M10*850 -> 288.7160814 | L10: =+'FW Profit'!G61 -> 14.26597108 | M10: =+'FW Profit'!H61 -> 0.3396659781
A11: =+A10+100 -> 300 | B11: =+'CL Profit'!H62*850 -> 219.0648576 | C11: =+'CL Profit'!G62 -> 10.8243812 | D11: =+'CL Profit'!H62 -> 0.2577233619 | E11: =+'VA Profit'!H62*850 -> 221.7824554 | F11: =+'VA Profit'!G62 -> 10.9586625 | G11: =+'VA Profit'!H62 -> 0.2609205358 | H11: =+'TS Profit'!H62*850 -> 222.1052367 | I11: =+'TS Profit'!G62 -> 10.9746117 | J11: =+'TS Profit'!H62 -> 0.2613002785 | K11: =+M11*850 -> 206.2254214 | L11: =+'FW Profit'!G62 -> 10.189962 | M11: =+'FW Profit'!H62 -> 0.2426181428
A12: =+A11+100 -> 400 | B12: =+'CL Profit'!H63*850 -> 174.6096686 | C12: =+'CL Profit'!G63 -> 8.627771859 | D12: =+'CL Profit'!H63 -> 0.2054231395 | E12: =+'VA Profit'!H63*850 -> 176.6478669 | F12: =+'VA Profit'!G63 -> 8.728482836 | G12: =+'VA Profit'!H63 -> 0.2078210199 | H12: =+'TS Profit'!H63*850 -> 176.8899529 | I12: =+'TS Profit'!G63 -> 8.740444732 | J12: =+'TS Profit'!H63 -> 0.208105827 | K12: =+M12*850 -> 164.9800914 | L12: =+'FW Profit'!G63 -> 8.151957459 | M12: =+'FW Profit'!H63 -> 0.1940942252
A13: 500 | B13: =+'CL Profit'!H64*850 -> 147.9365552 | C13: =+'CL Profit'!G64 -> 7.309806255 | D13: =+'CL Profit'!H64 -> 0.1740430061 | E13: =+'VA Profit'!H64*850 -> 149.5671138 | F13: =+'VA Profit'!G64 -> 7.390375037 | G13: =+'VA Profit'!H64 -> 0.1759613104 | H13: =+'TS Profit'!H64*850 -> 149.7607826 | I13: =+'TS Profit'!G64 -> 7.399944553 | J13: =+'TS Profit'!H64 -> 0.176189156 | K13: 140.2328934 | L13: =+'FW Profit'!G64 -> 6.929154735 | M13: =+'FW Profit'!H64 -> 0.1649798746
A14: 600 | B14: =+'CL Profit'!H65*850 -> 130.1544795 | C14: =+'CL Profit'!G65 -> 6.431162519 | D14: =+'CL Profit'!H65 -> 0.1531229171 | E14: =+'VA Profit'!H65*850 -> 131.5132784 | F14: =+'VA Profit'!G65 -> 6.49830317 | G14: =+'VA Profit'!H65 -> 0.1547215041 | H14: =+'TS Profit'!H65*850 -> 131.6746691 | I14: =+'TS Profit'!G65 -> 6.506277768 | J14: =+'TS Profit'!H65 -> 0.1549113754 | K14: 123.7347615 | L14: =+'FW Profit'!G65 -> 6.113952919 | M14: =+'FW Profit'!H65 -> 0.1455703076
A15: 700 | B15: =+'CL Profit'!H66*850 -> 117.452997 | C15: =+'CL Profit'!G66 -> 5.80355985 | D15: =+'CL Profit'!H66 -> 0.1381799964 | E15: =+'VA Profit'!H66*850 -> 118.6176817 | F15: =+'VA Profit'!G66 -> 5.86110898 | G15: =+'VA Profit'!H66 -> 0.1395502138 | H15: =+'TS Profit'!H66*850 -> 118.7560166 | I15: =+'TS Profit'!G66 -> 5.867944349 | J15: =+'TS Profit'!H66 -> 0.1397129607 | K15: 111.9503815 | L15: =+'FW Profit'!G66 -> 5.531665907 | M15: =+'FW Profit'!H66 -> 0.1317063311
A16: 800 | B16: =+'CL Profit'!H67*850 -> 107.926885 | C16: =+'CL Profit'!G67 -> 5.332857849 | D16: =+'CL Profit'!H67 -> 0.1269728059 | E16: =+'VA Profit'!H67*850 -> 108.9459842 | F16: =+'VA Profit'!G67 -> 5.383213337 | G16: =+'VA Profit'!H67 -> 0.1281717461 | H16: =+'TS Profit'!H67*850 -> 109.0670272 | I16: =+'TS Profit'!G67 -> 5.389194285 | J16: =+'TS Profit'!H67 -> 0.1283141497 | K16: 103.1120965 | L16: =+'FW Profit'!G67 -> 5.094950649 | M16: =+'FW Profit'!H67 -> 0.1213083488
A17: 900 | B17: =+'CL Profit'!H68*850 -> 100.5176869 | C17: =+'CL Profit'!G68 -> 4.966756292 | D17: =+'CL Profit'!H68 -> 0.1182561022 | E17: =+'VA Profit'!H68*850 -> 101.4235528 | F17: =+'VA Profit'!G68 -> 5.011516726 | G17: =+'VA Profit'!H68 -> 0.1193218268 | H17: =+'TS Profit'!H68*850 -> 101.5311466 | I17: =+'TS Profit'!G68 -> 5.016833125 | J17: =+'TS Profit'!H68 -> 0.1194484077 | K17: 96.2378748 | L17: =+'FW Profit'!G68 -> 4.755283226 | M17: =+'FW Profit'!H68 -> 0.1132210292
A18: 1000 | B18: =+'CL Profit'!H69*850 -> 94.59032833 | C18: =+'CL Profit'!G69 -> 4.673875047 | D18: =+'CL Profit'!H69 -> 0.1112827392 | E18: =+'VA Profit'!H69*850 -> 95.40560767 | F18: =+'VA Profit'!G69 -> 4.714159438 | G18: =+'VA Profit'!H69 -> 0.1122418914 | H18: =+'TS Profit'!H69*850 -> 95.50244206 | I18: =+'TS Profit'!G69 -> 4.718944196 | J18: =+'TS Profit'!H69 -> 0.1123558142 | K18: 90.73849747 | L18: =+'FW Profit'!G69 -> 4.483549287 | M18: =+'FW Profit'!H69 -> 0.1067511735
A19: 1100 | B19: =+'CL Profit'!H70*850 -> 89.74067134 | C19: =+'CL Profit'!G70 -> 4.434244937 | D19: =+'CL Profit'!H70 -> 0.1055772604 | E19: =+'VA Profit'!H70*850 -> 90.48183438 | F19: =+'VA Profit'!G70 -> 4.47086711 | G19: =+'VA Profit'!H70 -> 0.1064492169 | H19: =+'TS Profit'!H70*850 -> 90.56986565 | I19: =+'TS Profit'!G70 -> 4.475216891 | J19: =+'TS Profit'!H70 -> 0.1065527831 | K19: 86.23900693 | L19: =+'FW Profit'!G70 -> 4.261221519 | M19: =+'FW Profit'!H70 -> 0.1014576552
A20: 1200 | B20: =+'CL Profit'!H71*850 -> 85.69929052 | C20: =+'CL Profit'!G71 -> 4.234553179 | D20: =+'CL Profit'!H71 -> 0.1008226947 | E20: =+'VA Profit'!H71*850 -> 86.37868997 | F20: =+'VA Profit'!G71 -> 4.268123504 | G20: =+'VA Profit'!H71 -> 0.1016219882 | H20: =+'TS Profit'!H71*850 -> 86.4593853 | I20: =+'TS Profit'!G71 -> 4.272110803 | J20: =+'TS Profit'!H71 -> 0.1017169239 | K20: 82.48943148 | L20: =+'FW Profit'!G71 -> 4.075948379 | M20: =+'FW Profit'!H71 -> 0.09704638997
A21: =+A20+100 -> 1300 | B21: =+'CL Profit'!H72*850 -> 82.2796606 | C21: =+'CL Profit'!G72 -> 4.065583229 | D21: =+'CL Profit'!H72 -> 0.0967996007 | E21: =+'VA Profit'!H72*850 -> 82.90679855 | F21: =+'VA Profit'!G72 -> 4.096571222 | G21: =+'VA Profit'!H72 -> 0.09753741006 | H21: =+'TS Profit'!H72*850 -> 82.98128655 | I21: =+'TS Profit'!G72 -> 4.100251806 | J21: =+'TS Profit'!H72 -> 0.097625043 | K21: 79.31671378 | L21: =+'FW Profit'!G72 -> 3.919178799 | M21: =+'FW Profit'!H72 -> 0.09331378092
A22: =+A21+100 -> 1400 | B22: =+'CL Profit'!H73*850 -> 79.34854923 | C22: =+'CL Profit'!G73 -> 3.920751844 | D22: =+'CL Profit'!H73 -> 0.09335123439 | E22: =+'VA Profit'!H73*850 -> 79.93089162 | F22: =+'VA Profit'!G73 -> 3.949526409 | G22: =+'VA Profit'!H73 -> 0.09403634308 | H22: =+'TS Profit'!H73*850 -> 80.00005904 | I22: =+'TS Profit'!G73 -> 3.952944094 | J22: =+'TS Profit'!H73 -> 0.09411771652 | K22: 76.59724148 | L22: =+'FW Profit'!G73 -> 3.784804873 | M22: =+'FW Profit'!H73 -> 0.09011440174
A23: =+A22+100 -> 1500 | B23: =+'CL Profit'!H74*850 -> 76.80825272 | C23: =+'CL Profit'!G74 -> 3.795231311 | D23: =+'CL Profit'!H74 -> 0.09036265025 | E23: =+'VA Profit'!H74*850 -> 77.35177228 | F23: =+'VA Profit'!G74 -> 3.822087571 | G23: =+'VA Profit'!H74 -> 0.09100208503 | H23: =+'TS Profit'!H74*850 -> 77.41632854 | I23: =+'TS Profit'!G74 -> 3.82527741 | J23: =+'TS Profit'!H74 -> 0.09107803358 | K23: 74.24036548 | L23: =+'FW Profit'!G74 -> 3.668347471 | M23: =+'FW Profit'!H74 -> 0.08734160645
A24: Central Leader | E24: =+D13 -> 0.1740430061 | F24: CL Price | G24: =+CLPrice -> 0.2
A25: Vertical Axe | E25: =+G14 -> 0.1547215041 | F25: VA Price | G25: =+VAPrice -> 0.21
A26: Tall Spindle | E26: =+J15 -> 0.1397129607 | F26: TS Price | G26: =+TSPrice -> 0.22
A27: Fruiting Wall | E27: =+M16 -> 0.1213083488 | F27: FW Price | G27: =+FWPrice -> 0.23
A29: Sales Price /lb. | D29: =+Price -> 0.2 | F29: Unskilled Labor Cost | J29: =+LaborNoSkill -> 10 | M29: $/Bin
A56: Profit Comparison of Systems
A59: Profit | B59: Central Leader | C59: Vertical Axe | D59: Tall Spindle | E59: Fruiting Wall | N59: Profit | O59: Central Leader | P59: Vertical Axe | Q59: Tall Spindle | R59: Super Spindle | S59: Multi Leader
A60: =+'CL Profit'!A5 -> 0 | B60: =+'CL Profit'!I5 -> -1177.82 | C60: =+'VA Profit'!I5 -> -1177.82 | D60: =+'TS Profit'!I5 -> -1177.82 | E60: =+'FW Profit'!I5 -> -1177.82 | N60: 0 | O60: -1177.82 | P60: -1177.82 | Q60: -1177.82 | R60: -1177.82 | S60: -1177.82
A61: =+'CL Profit'!A6 -> 1 | B61: =+'CL Profit'!I6 -> -3994.214468 | C61: =+'VA Profit'!I6 -> -11381.33574 | D61: =+'TS Profit'!I6 -> -18636.97478 | E61: =+'FW Profit'!I6 -> -17220.65035 | N61: 1 | O61: -3995.326096 | P61: -11382.22505 | Q61: -18637.75292 | R61: -27178.31881 | S61: -17222.09547
A62: =+'CL Profit'!A7 -> 2 | B62: =+'CL Profit'!I7 -> -4828.564576 | C62: =+'VA Profit'!I7 -> -13308.82099 | D62: =+'TS Profit'!I7 -> -20544.54949 | E62: =+'FW Profit'!I7 -> -16315.48157 | N62: 2 | O62: -4831.899458 | P62: -13313.2675 | Q62: -20554.6653 | R62: -26462.8337 | S62: -16331.37784
A63: =+'CL Profit'!A8 -> 3 | B63: =+'CL Profit'!I8 -> -6166.30114 | C63: =+'VA Profit'!I8 -> -14346.70875 | D63: =+'TS Profit'!I8 -> -21687.40133 | E63: =+'FW Profit'!I8 -> -12569.4976 | N63: 3 | O63: -6178.529043 | P63: -14365.38409 | Q63: -21713.07992 | R63: -22860.03005 | S63: -12599.84503
A64: =+'CL Profit'!A9 -> 4 | B64: =+'CL Profit'!I9 -> -7188.01269 | C64: =+'VA Profit'!I9 -> -14692.52664 | D64: =+'TS Profit'!I9 -> -18606.75676 | E64: =+'FW Profit'!I9 -> -5868.635657 | N64: 4 | O64: -7213.580123 | P64: -14728.98803 | Q64: -18647.99814 | R64: -16303.69793 | S64: -5913.434246
A65: =+'CL Profit'!A10 -> 5 | B65: =+'CL Profit'!I10 -> -8508.0412 | C65: =+'VA Profit'!I10 -> -13000.44835 | D65: =+'TS Profit'!I10 -> -14097.92862 | E65: =+'FW Profit'!I10 -> 832.226288 | N65: 5 | O65: -8555.841182 | P65: -13054.69577 | Q65: -14154.73278 | R65: -9747.365811 | S65: 772.9765422
A66: =+'CL Profit'!A11 -> 6 | B66: =+'CL Profit'!I11 -> -8988.371365 | C66: =+'VA Profit'!I11 -> -10251.01902 | D66: =+'TS Profit'!I11 -> -9589.100475 | E66: =+'FW Profit'!I11 -> 7533.088233 | N66: 6 | O66: -9058.403897 | P66: -10323.05248 | Q66: -9661.467426 | R66: -3191.033691 | S66: 7459.38733
A67: =+'CL Profit'!A12 -> 7 | B67: =+'CL Profit'!I12 -> -9046.046151 | C67: =+'VA Profit'!I12 -> -7501.589688 | D67: =+'TS Profit'!I12 -> -5080.272334 | E67: =+'FW Profit'!I12 -> 14233.95018 | N67: 7 | O67: -9138.311234 | P67: -7591.40919 | Q67: -5168.20207 | R67: 3365.298429 | S67: 14145.79812
A68: =+'CL Profit'!A13 -> 8 | B68: =+'CL Profit'!I13 -> -8500.949279 | C68: =+'VA Profit'!I13 -> -4752.160358 | D68: =+'TS Profit'!I13 -> -571.4441934 | E68: =+'FW Profit'!I13 -> 20934.81212 | N68: 8 | O68: -8615.446911 | P68: -4859.7659 | Q68: -674.9367137 | R68: 9921.630549 | S68: 20832.20891
A69: =+'CL Profit'!A14 -> 9 | B69: =+'CL Profit'!I14 -> -7010.714729 | C69: =+'VA Profit'!I14 -> -2002.731027 | D69: =+'TS Profit'!I14 -> 3937.383948 | E69: =+'FW Profit'!I14 -> 27635.67407 | N69: 9 | O69: -7147.444912 | P69: -2128.122609 | Q69: 3818.328642 | R69: 16477.96267 | S69: 27518.61969
A70: =+'CL Profit'!A15 -> 10 | B70: =+'CL Profit'!I15 -> -5520.48018 | C70: =+'VA Profit'!I15 -> 746.6983027 | D70: =+'TS Profit'!I15 -> 8446.212089 | E70: =+'FW Profit'!I15 -> 34336.53602 | N70: 10 | O70: -5679.442912 | P70: 603.5206807 | Q70: 8311.593998 | R70: 23034.29479 | S70: 34205.03048
A71: =+'CL Profit'!A16 -> 11 | B71: =+'CL Profit'!I16 -> -4030.24563 | C71: =+'VA Profit'!I16 -> 3496.127633 | D71: =+'TS Profit'!I16 -> 12955.04023 | E71: =+'FW Profit'!I16 -> 41037.39796 | N71: 11 | O71: -4211.440913 | P71: 3335.163971 | Q71: 12804.85935 | R71: 29590.62691 | S71: 40891.44127
A72: =+'CL Profit'!A17 -> 12 | B72: =+'CL Profit'!I17 -> -2540.011081 | C72: =+'VA Profit'!I17 -> 6245.556963 | D72: =+'TS Profit'!I17 -> 17463.86837 | E72: =+'FW Profit'!I17 -> 47738.25991 | N72: 12 | O72: -2743.438913 | P72: 6066.807261 | Q72: 17298.12471 | R72: 36146.95903 | S72: 47577.85206
A73: =+'CL Profit'!A18 -> 13 | B73: =+'CL Profit'!I18 -> -1049.776531 | C73: =+'VA Profit'!I18 -> 8994.986293 | D73: =+'TS Profit'!I18 -> 21972.69651 | E73: =+'FW Profit'!I18 -> 54439.12185 | N73: 13 | O73: -1275.436914 | P73: 8798.450551 | Q73: 21791.39007 | R73: 42703.29115 | S73: 54264.26285
A74: =+'CL Profit'!A19 -> 14 | B74: =+'CL Profit'!I19 -> 440.4580181 | C74: =+'VA Profit'!I19 -> 11744.41562 | D74: =+'TS Profit'!I19 -> 26481.52465 | E74: =+'FW Profit'!I19 -> 61139.9838 | N74: 14 | O74: 192.5650856 | P74: 11530.09384 | Q74: 26284.65542 | R74: 49259.62327 | S74: 60950.67363
A75: =+'CL Profit'!A20 -> 15 | B75: =+'CL Profit'!I20 -> 1930.692568 | C75: =+'VA Profit'!I20 -> 14493.84495 | D75: =+'TS Profit'!I20 -> 30990.35279 | E75: =+'FW Profit'!I20 -> 67840.84574 | N75: 15 | O75: 1660.567085 | P75: 14261.73713 | Q75: 30777.92078 | R75: 55815.95539 | S75: 67637.08442
A76: =+'CL Profit'!A21 -> 16 | B76: =+'CL Profit'!I21 -> 3420.927117 | C76: =+'VA Profit'!I21 -> 17243.27428 | D76: =+'TS Profit'!I21 -> 35499.18093 | E76: =+'FW Profit'!I21 -> 74541.70769 | N76: 16 | O76: 3128.569085 | P76: 16993.38042 | Q76: 35271.18613 | R76: 62372.28751 | S76: 74323.49521
A77: =+'CL Profit'!A22 -> 17 | B77: =+'CL Profit'!I22 -> 4911.161667 | C77: =+'VA Profit'!I22 -> 19992.70361 | D77: =+'TS Profit'!I22 -> 40008.00908 | E77: =+'FW Profit'!I22 -> 81242.56963 | N77: 17 | O77: 4596.571084 | P77: 19725.02371 | Q77: 39764.45149 | R77: 68928.61963 | S77: 81009.906
A78: =+'CL Profit'!A23 -> 18 | B78: =+'CL Profit'!I23 -> 6401.396216 | C78: =+'VA Profit'!I23 -> 22742.13294 | D78: =+'TS Profit'!I23 -> 44516.83722 | E78: =+'FW Profit'!I23 -> 87943.43158 | N78: 18 | O78: 6064.573084 | P78: 22456.667 | Q78: 44257.71685 | R78: 75484.95175 | S78: 87696.31679
A79: =+'CL Profit'!A24 -> 19 | B79: =+'CL Profit'!I24 -> 7891.630766 | C79: =+'VA Profit'!I24 -> 25491.56227 | D79: =+'TS Profit'!I24 -> 49025.66536 | E79: =+'FW Profit'!I24 -> 94644.29352 | N79: 19 | O79: 7532.575083 | P79: 25188.31029 | Q79: 48750.9822 | R79: 82041.28387 | S79: 94382.72757
A80: =+'CL Profit'!A25 -> 20 | B80: =+'CL Profit'!I25 -> 9381.865315 | C80: =+'VA Profit'!I25 -> 28240.9916 | D80: =+'TS Profit'!I25 -> 53534.4935 | E80: =+'FW Profit'!I25 -> 101345.1555 | N80: 20 | O80: 9000.577083 | P80: 27919.95358 | Q80: 53244.24756 | R80: 88597.61599 | S80: 101069.1384
A83: =+A8 -> Yield
A84: =+A9 -> /Acre | B84: Central Leader | C84: Vertical Axe | D84: Tall Spindle | E84: Fruiting Wall
A85: 200 | B85: =+B10 -> 307.9752357 | C85: =+E10 -> 312.0516323 | D85: =+H10 -> 312.5358043 | E85: =+K10 -> 288.7160814
A86: 300 | B86: 219.0648576 | C86: =+E11 -> 221.7824554 | D86: =+H11 -> 222.1052367 | E86: =+K11 -> 206.2254214
A87: 400 | B87: 174.6096686 | C87: 176.6478669 | D87: 176.8899529 | E87: 164.9800914
A88: 500 | B88: =+B13 -> 147.9365552 | C88: =+E13 -> 149.5671138 | D88: =+H13 -> 149.7607826 | E88: =+K13 -> 140.2328934
A89: 600 | B89: =+B14 -> 130.1544795 | C89: 131.5132784 | D89: 131.6746691 | E89: 123.7347615
A90: 700 | B90: =+B15 -> 117.452997 | C90: 118.6176817 | D90: 118.7560166 | E90: 111.9503815
A91: 800 | B91: =+B16 -> 107.926885 | C91: 108.9459842 | D91: 109.0670272 | E91: 103.1120965
A92: 900 | B92: =+B17 -> 100.5176869 | C92: 101.4235528 | D92: 101.5311466 | E92: 96.2378748
A93: 1000 | B93: =+B18 -> 94.59032833 | C93: 95.40560767 | D93: 95.50244206 | E93: 90.73849747
A94: 1100 | B94: =+B19 -> 89.74067134 | C94: 90.48183438 | D94: 90.56986565 | E94: 86.23900693
A95: 1200 | B95: =+B20 -> 85.69929052 | C95: 86.37868997 | D95: 86.4593853 | E95: 82.48943148
A96: 1300 | B96: =+B21 -> 82.2796606 | C96: 82.90679855 | D96: 82.98128655 | E96: 79.31671378
A97: 1400 | B97: =+B22 -> 79.34854923 | C97: 79.93089162 | D97: 80.00005904 | E97: 76.59724148
A98: 1500 | B98: =+B23 -> 76.80825272 | C98: 77.35177228 | D98: 77.41632854 | E98: 74.24036548
A100: =+A59 -> Profit | B100: =+B59 -> Central Leader | C100: Vertical Axe | D100: Tall Spindle | E100: Fruiting Wall
A101: =+A60 -> 0 | B101: =+B60*-1 -> 1177.82 | C101: =+C60*-1 -> 1177.82 | D101: 1177.82 | E101: 1177.82
A102: Planting Year | B102: =+B61*-1 -> 3994.214468 | C102: 11381.33574 | D102: 18636.97478 | E102: 17220.65035
A103: =+A62 -> 2 | B103: =+B62*-1 -> 4828.564576 | C103: 13308.82099 | D103: 20544.54949 | E103: 16315.48157
A104: =+A63 -> 3 | B104: =+B63*-1 -> 6166.30114 | C104: 14346.70875 | D104: 21687.40133 | E104: 12569.4976
A105: =+A64 -> 4 | B105: =+B64*-1 -> 7188.01269 | C105: 14692.52664 | D105: 18606.75676 | E105: 5868.635657
A106: =+A65 -> 5 | B106: =+B65*-1 -> 8508.0412 | C106: 13000.44835 | D106: 14097.92862 | E106: -832.226288
A107: =+A66 -> 6 | B107: =+B66*-1 -> 8988.371365 | C107: 10251.01902 | D107: 9589.100475 | E107: -7533.088233

Sheet Comparisons
A1: Cost of Bearing Year Classes | D1: 2008 % of Total Material Costs | H1: 674.9 | I1: 674.9 | J1: 674.9 | K1: 674.9 | Q1: 1998
D2: 2014 % of Total Material Costs | G2: 43.68795377 | H2: 38.37975996 | I2: 6.889909616 | J2: 6.389835531 | K2: 4.652541117 | M2: Pesticides | O2: Costs | Q2: 1998
D3: 2014 | E3: 2008 | F3: 2008 | G3: 1998 | H3: 1998 | N3: Fungicides | Q3: 43.68795377 | R3: 294.85
A4: Pesticides | C4: Costs | D4: 2014 | E4: 2008 | F4: 2008 | G4: 1998 | H4: 1998 | N4: Insecticides | Q4: 38.37975996 | R4: 259.025
B5: Fungicides | C5: =+'Spray Program'!M80 -> 417.696 | D5: =+C5/TotMatCost*100 -> 35.03405718 | E5: 445.8308333 | F5: 44.24164681 | G5: =+H5/H$10*100 -> 43.68795377 | H5: 294.85 | N5: PGR's | Q5: 6.889909616 | R5: 46.5
B6: Insecticides | C6: =+'Spray Program'!N80 -> 407.7435963 | D6: 34.19930396 | E6: 394.2975 | F6: 39.12777993 | G6: 38.37975996 | H6: 259.025 | N6: Herbicides | Q6: 6.389835531 | R6: 43.125
B7: PGR's | C7: =+'Spray Program'!O80 -> 329.9285 | D7: 27.67259905 | E7: 90.78725 | F7: 9.0091962 | G7: 6.889909616 | H7: 46.5 | N7: Fertilizers | Q7: 4.652541117 | R7: 31.4
B8: Herbicides | C8: =+'Spray Program'!P80 -> 36.88890625 | D8: 3.094039806 | E8: 29.65195312 | F8: 2.942486565 | G8: 6.389835531 | H8: 43.125 | N8: Total | Q8: 100 | R8: 674.9
B9: Fertilizers | C9: =+'Spray Program'!Q80 -> 0 | D9: 0 | E9: 47.15 | F9: 4.678890492 | G9: 4.652541117 | H9: 31.4
B10: Total | C10: =SUM(C5:C9) -> 1192.257002 | D10: 100 | E10: 1007.717536 | F10: 100 | G10: 100 | H10: 674.9
B12: Insecticides | C12: =+'Spray Program'!#REF! ->  | G12: % of Total Costs/Acre
B13: Fungicides | C13: =+'Spray Program'!#REF! ->  | G13: Costs/Bushel
B14: Herbicides | C14: =+'Spray Program'!#REF! ->  | G14: $/Bushel
B15: Fertilizers | C15: =+'Spray Program'!#REF! ->  | G15: %
B16: PGR's | C16: =+'Spray Program'!#REF! -> 
B20: Central Leader | C20: Vertical Axe | D20: Tall Spindle | E20: Fruiting Wall | F20: 1998 | G20: 2008 | H20: 2014 | J20: 1998 | K20: =+B20 -> Central Leader | L20: =+C20 -> Vertical Axe | M20: =+D20 -> Tall Spindle | O20: 1997 | P20: Central Leader | Q20: Vertical Axe | R20: Tall Spindle | S20: Fruiting Wall | T20: 1998 | V20: 2008 | W20: Central Leader | X20: Vertical Axe | Y20: Tall Spindle | Z20: Fruiting Wall | AA20: 1998 | AB20: 2008 | AC20: 2014
A21: Harv Labor | B21: =+'CL Profit'!E14 -> 1324.663495 | C21: =+'VA Profit'!E12 -> 1630.355071 | D21: =+'TS Profit'!E10 -> 2037.943839 | E21: =+'FW Profit'!E10 -> 2445.532606 | F21: =+L21 -> 1111 | G21: =+X21 -> 1401.588483 | H21: =+D21 -> 2037.943839 | J21: =+A21 -> Harv Labor | K21: 903 | L21: 1111 | M21: 1389 | O21: Harv Labor | P21: 902.5935882 | Q21: 1110.884416 | R21: 1388.60552 | T21: 1110.884416 | V21: Harv Labor | W21: 1138.790642 | X21: 1401.588483 | Y21: 1751.985603 | AA21: 0 | AB21: 1401.588483
A22: Non-Harvest Labor | B22: =+'Central Leader'!D270 -> 435.6764706 | C22: =+'Vertical Axe'!D209 -> 505.8571429 | D22: =+'Tall Spindle'!D148 -> 525.8333333 | E22: =+'Fruiting Wall'!D148 -> 401.4761905 | F22: =+L22 -> 410 | G22: =+X22 -> 464.4302521 | H22: =+D22 -> 525.8333333 | J22: =+A22 -> Non-Harvest Labor | K22: 348 | L22: 410 | M22: 463 | O22: Non-Harvest Labor | P22: 348.4 | Q22: 409.5857143 | R22: 462.85 | T22: 409.5857143 | V22: Non-Harvest Labor | W22: 349.9588235 | X22: 464.4302521 | Y22: 469.6588235 | AA22: 0 | AB22: 464.4302521
A23: Machinery | B23: =+'Central Leader'!F270 -> 370.7099015 | C23: =+'Vertical Axe'!F209 -> 480.848734 | D23: =+'Tall Spindle'!F148 -> 515.3862563 | E23: =+'Fruiting Wall'!F148 -> 483.4126238 | F23: =+L23 -> 334 | G23: =+X23 -> 363.5093638 | H23: 515.3862563 | J23: =+A23 -> Machinery | K23: 213 | L23: 334 | M23: 342 | O23: Machinery | P23: 213.46753 | Q23: 334.6509097 | R23: 341.9638074 | T23: 334.6509097 | V23: Machinery | W23: 1052.23949 | X23: 363.5093638 | Y23: 785.8797016 | AA23: 0 | AB23: 363.5093638
A24: =+A4 -> Pesticides | B24: =+C10 -> 1192.257002 | C24: =+'Vertical Axe'!G189+'Vertical Axe'!G187 -> 946.7040082 | D24: =+'Tall Spindle'!G128+'Tall Spindle'!G126 -> 832.9771205 | E24: =+'Fruiting Wall'!G128+'Fruiting Wall'!G126 -> 772.9517704 | F24: =+L24 -> 474 | G24: =+X24 -> 782.3004466 | H24: 832.9771205 | J24: =+A24 -> Pesticides | K24: 632 | L24: 474 | M24: 316 | O24: Pesticides | P24: 649.025 | Q24: 492.3133929 | R24: 337.45 | T24: 492.3133929 | V24: Pesticides | W24: 973.8513646 | X24: 782.3004466 | Y24: 592.0203266 | AA24: 0 | AB24: 782.3004466
A25: Tot Labor | B25: =+B21+B22 -> 1760.339966 | C25: =+C21+C22 -> 2136.212214 | D25: 2563.777172 | E25: 2847.008797 | F25: =+L25 -> 1521 | G25: =+X25 -> 1866.018735 | H25: 2563.777172 | J25: =+A25 -> Tot Labor | K25: =+K21+K22 -> 1251 | L25: =+L21+L22 -> 1521 | M25: 1852 | O25: Tot Labor | P25: 1250.993588 | Q25: 1520.470131 | R25: 1851.45552 | T25: 1520.470131 | V25: Tot Labor | W25: 1488.749466 | X25: 1866.018735 | Y25: 2221.644427 | AA25: 0 | AB25: 1866.018735
A27: Total | B27: =+'CL Profit'!G14 -> 3969.765451 | C27: =+'VA Profit'!G12 -> 4306.57067 | D27: =+'TS Profit'!G10 -> 4731.171859 | E27: =+'FW Profit'!G10 -> 4891.138055 | F27: =+L27 -> 2847 | G27: =+X27 -> 3703.341624 | H27: =+D27 -> 4731.171859 | J27: =+A27 -> Total | K27: 2782 | L27: 2847 | M27: 2783 | O27: Total | P27: 2564.326072 | Q27: 2847.245698 | R27: 2806.870361 | T27: 0 | V27: Total | W27: 3239.402509 | X27: 3703.341624 | Y27: 3934.790265 | AA27: 0 | AB27: 3703.341624 | AC27: 3934.790265
B28: =+B20 -> Central Leader | C28: =+C20 -> Vertical Axe | D28: Tall Spindle | E28: =+E20 -> Fruiting Wall | F28: =+F20 -> 1998 | G28: =+G20 -> 2008 | H28: 2014 | K28: =+B28 -> Central Leader | L28: =+C28 -> Vertical Axe | M28: =+D28 -> Tall Spindle | P28: Central Leader | Q28: Vertical Axe | R28: Tall Spindle | S28: Fruiting Wall | T28: 1998 | W28: Central Leader | X28: Vertical Axe | Y28: Tall Spindle | Z28: Fruiting Wall | AA28: 1998 | AB28: 2008 | AC28: 2014
A29: Total Labor | B29: =(+B21+B22)/B27*100 -> 44.34367692 | C29: =(+C21+C22)/C27*100 -> 49.60355646 | D29: 54.18905185 | E29: =(+E21+E22)/E27*100 -> 58.2074921 | F29: =+L29 -> 53.42465753 | G29: =+X29 -> 50.38743179 | H29: =+C29 -> 49.60355646 | J29: =+A29 -> Total Labor | K29: =(+K21+K22)/K$27*100 -> 44.96764917 | L29: =(+L21+L22)/L$27*100 -> 53.42465753 | M29: =(+M21+M22)/M$27*100 -> 66.54689184 | O29: Total Labor | P29: 48.7844975 | Q29: 53.40143745 | R29: 65.96156153 | T29: 53.40143745 | V29: Total Labor | W29: 45.95753264 | X29: 50.38743179 | Y29: 56.46157171 | AA29: 0 | AB29: 50.38743179
A30: =+A22 -> Non-Harvest Labor | B30: =+B22/B$27*100 -> 10.9748668 | C30: =+C22/C$27*100 -> 11.74617072 | D30: 11.11423024 | E30: =+E22/E$27*100 -> 8.208236733 | F30: =+L30 -> 14.40112399 | G30: =+X30 -> 12.54084282 | H30: =+C30 -> 11.74617072 | J30: =+A30 -> Non-Harvest Labor | K30: =(+K22)/K$27*100 -> 12.50898634 | L30: 14.40112399 | M30: 16.63672296 | O30: Non-Harvest Labor | P30: 13.5864157 | Q30: 14.38533087 | R30: 16.48989588 | T30: 14.38533087 | V30: Non-Harvest Labor | W30: 10.80319048 | X30: 12.54084282 | Y30: 11.93605737 | AA30: 0 | AB30: 12.54084282
A31: =+A23 -> Machinery | B31: =+B23/B$27*100 -> 9.338332608 | C31: 11.16546716 | D31: 10.89341651 | E31: =+E23/E$27*100 -> 9.883438546 | F31: =+L31 -> 11.73164735 | G31: =+X31 -> 9.815712422 | H31: =+C31 -> 11.16546716 | J31: =+A31 -> Machinery | K31: 7.656362329 | L31: 11.73164735 | M31: 12.28889687 | O31: Machinery | P31: 8.32450804 | Q31: 11.75349602 | R31: 12.18309944 | T31: 11.75349602 | V31: Machinery | W31: 32.48251758 | X31: 9.815712422 | Y31: 19.97259444 | AA31: 0 | AB31: 9.815712422
A32: =+A24 -> Pesticides | B32: =+B24/B$27*100 -> 30.03343692 | C32: =+C24/C$27*100 -> 21.98278122 | D32: 17.60614802 | E32: =+E24/E$27*100 -> 15.8031068 | F32: =+L32 -> 16.64910432 | G32: =+X32 -> 21.12417719 | H32: =+C32 -> 21.98278122 | J32: =+A32 -> Pesticides | K32: 22.71746945 | L32: 16.64910432 | M32: 11.35465325 | O32: Pesticides | P32: 25.3097688 | Q32: 17.2908644 | R32: 12.02228662 | T32: 17.2908644 | V32: Pesticides | W32: 30.06268476 | X32: 21.12417719 | Y32: 15.04579118 | AA32: 0 | AB32: 21.12417719
O34: Yield | P34: Costs/Bushel | V34: Yield | W34: Costs/Bushel
O35: 650 | P35: =+P21/O35 -> 1.38860552 | Q35: =+Q21/O35 -> 1.709052948 | R35: =+R21/O35 -> 2.136316185 | V35: 800 | W35: =+W21/V35 -> 1.423488303 | X35: =+X21/V35 -> 1.751985603 | Y35: =+Y21/V35 -> 2.189982004
O36: 650 | P36: =+P22/O36 -> 0.536 | Q36: =+Q22/O36 -> 0.6301318681 | R36: =+R22/O36 -> 0.7120769231 | V36: 800 | W36: =+W22/V36 -> 0.4374485294 | X36: =+X22/V36 -> 0.5805378151 | Y36: =+Y22/V36 -> 0.5870735294
B37: =+'CL Profit'!B14 -> 650 | C37: =+'VA Profit'!B13 -> 800 | D37: =+'TS Profit'!B13 -> 1000 | F37: 650 | G37: =+C37 -> 800 | H37: 1000 | J37: 1998 | K37: =+B37 -> 650 | L37: 800 | M37: =+D37 -> 1000 | O37: 650 | P37: 0.3284115846 | Q37: 0.5148475534 | R37: 0.5260981652 | V37: 800 | W37: 1.315299362 | X37: 0.4543867048 | Y37: 0.982349627
O38: 650 | P38: 0.9985 | Q38: 0.7574052198 | R38: 0.5191538462 | V38: 800 | W38: 1.217314206 | X38: 0.9778755582 | Y38: 0.7400254082
A39: =+A29 -> Total Labor | B39: =+B25/B$37 -> 2.708215332 | C39: =+C25/C$37 -> 2.670265267 | D39: 2.563777172 | F39: =+K39 -> 1.924615385 | G39: =+X35 -> 1.751985603 | H39: =+H25/H$37 -> 2.563777172 | J39: =+A39 -> Total Labor | K39: =+K25/K$37 -> 1.924615385 | L39: =+L25/L$37 -> 1.90125 | M39: =+M25/M$37 -> 1.852 | O39: 650 | P39: 1.92460552 | Q39: 2.339184816 | R39: 2.848393108 | V39: 800 | W39: 1.860936832 | X39: 2.332523418 | Y39: 2.777055534
A40: =+A30 -> Non-Harvest Labor | B40: =+B22/B$37 -> 0.6702714932 | C40: =+C22/C$37 -> 0.6323214286 | D40: 0.5258333333 | F40: =+K40 -> 0.5353846154 | G40: =+X36 -> 0.5805378151 | H40: =+H22/H$37 -> 0.5258333333 | J40: =+A40 -> Non-Harvest Labor | K40: =+K22/K$37 -> 0.5353846154 | L40: 0.5125 | M40: 0.463 | V40: 800
A41: Machinery | B41: =+B23/B$37 -> 0.5703229254 | C41: 0.6010609175 | D41: 0.5153862563 | F41: 0.3276923077 | G41: =+X37 -> 0.4543867048 | H41: =+H23/H$37 -> 0.5153862563 | J41: =+A41 -> Machinery | K41: 0.3276923077 | L41: 0.4175 | M41: 0.342 | O41: 650 | P41: 3.945117033 | Q41: =+Q27/O41 -> 4.380377997 | R41: =+R27/O41 -> 4.318262094 | V41: 800 | W41: 4.049253137 | X41: =+X27/V41 -> 4.62917703 | Y41: =+Y27/V41 -> 4.918487831
A42: Pesticides | B42: =+B24/B$37 -> 1.834241542 | C42: 1.18338001 | D42: 0.8329771205 | F42: 0.9723076923 | G42: =+X38 -> 0.9778755582 | H42: =+H24/H$37 -> 0.8329771205 | J42: =+A42 -> Pesticides | K42: 0.9723076923 | L42: 0.5925 | M42: 0.316

Sheet Spray Program
A1: Spray Program | D1: Full Program for Central Leader | M1: Pesticide Category
A2: Covers & Timing | C2: Pests | D2: # | E2: Material | F2: Rate Used | H2: Price/Unit | J2: % Farm Treated | K2: Total Cost/Acre | L2: Individual Pesticide Category | M2: d | N2: i | O2: pgr | P2: h | Q2: f | R2: n
A3: 1 | B3: Green Tip | C3: AS, FB | D3: 45 | E3: =VLOOKUP($D3,SprayCost,3) -> C-O-C-S | F3: =VLOOKUP($D3,SprayCost,11) -> 6 | G3: =VLOOKUP($D3,SprayCost,12) -> lb | H3: =VLOOKUP($D3,SprayCost,17) -> 23.7 | I3: =VLOOKUP($D3,SprayCost,12) -> lb | J3: 100 | K3: =+H3*J3*0.01 -> 23.7 | L3: =VLOOKUP($D3,SprayCost,2) -> d | M3: =IF(IPestC=PestCat,ISprayC,0) -> 23.7 | N3: 0 | O3: 0 | P3: 0 | Q3: 0 | R3: 0
D4: 32 | E4: Oil | F4: 0.25 | G4: gal | H4: =VLOOKUP($D4,SprayCost,17) -> 45 | I4: gal | J4: 10 | K4: =+H4/6*F4*J4*0.01 -> 0.1875 | L4: i | M4: 0 | N4: 0.1875 | O4: 0 | P4: 0 | Q4: 0 | R4: 0
A5: 1.5 | B5: 1/4 Green | D5: 56 | E5: Dithane | F5: =VLOOKUP($D5,SprayCost,11) -> 6 | G5: lb | H5: 23.25 | J5: 100 | K5: =+H5*J5*0.01 -> 23.25 | L5: d | M5: 23.25 | N5: 0 | O5: 0 | P5: 0 | Q5: 0 | R5: 0
A6: =+A3+1 -> 2 | B6: 1/2" Green | C6: AS | D6: 56 | E6: Dithane | F6: 3 | G6: lb | H6: 23.25 | I6: lb | J6: 100 | K6: 23.25 | L6: d | M6: 23.25 | N6: 0 | O6: 0 | P6: 0 | Q6: 0 | R6: 0
D7: 133 | E7: Vanguard | F7: =VLOOKUP($D7,SprayCost,11) -> 3 | G7: oz | H7: 10.2 | I7: oz | J7: 100 | K7: 10.2 | L7: d | M7: 10.2 | N7: 0 | O7: 0 | P7: 0 | Q7: 0 | R7: 0
A8: =+A6+1 -> 3 | B8: Tight Cluster | C8: AS, PM | D8: 56 | E8: Dithane | F8: =VLOOKUP($D8,SprayCost,11) -> 6 | G8: lb | H8: 23.25 | I8: lb | J8: 100 | K8: 23.25 | L8: d | M8: 23.25 | N8: 0 | O8: 0 | P8: 0 | Q8: 0 | R8: 0
D9: 163 | E9: Rally | F9: =VLOOKUP($D9,SprayCost,11) -> 5 | G9: oz | H9: 17 | I9: oz | J9: 80 | K9: 13.6 | L9: d | M9: 13.6 | N9: 0 | O9: 0 | P9: 0 | Q9: 0 | R9: 0
A10: =+A8+1 -> 4 | B10: Pink | C10: AS, PM | D10: 56 | E10: Dithane | F10: =VLOOKUP($D10,SprayCost,11) -> 6 | G10: lb | H10: 23.25 | I10: lb | J10: 100 | K10: 23.25 | L10: d | M10: 23.25 | N10: 0 | O10: 0 | P10: 0 | Q10: 0 | R10: 0
C11: SJS, RA, OBLR | D11: 77 | E11: Lorsban 4E | F11: =VLOOKUP($D11,SprayCost,11) -> 1.5 | G11: qt | H11: 11.16 | I11: qt | J11: 100 | K11: 11.16 | L11: i | M11: 0 | N11: 11.16 | O11: 0 | P11: 0 | Q11: 0 | R11: 0
D12: 32 | E12: Oil | F12: 1 | G12: gal | H12: 45 | I12: gal | J12: 10 | K12: =+H12/6*F12*J12*0.01 -> 0.75 | L12: i | M12: 0 | N12: 0.75 | O12: 0 | P12: 0 | Q12: 0 | R12: 0
C13: STLM, OBLR | D13: 136 | E13: Warrior | F13: =VLOOKUP($D13,SprayCost,11) -> 5.12 | G13: oz | H13: 10.1668 | I13: oz | J13: 80 | K13: 8.13344 | L13: i | M13: =IF(IPestC=PestCat,ISprayC,0) -> 0 | N13: 8.13344 | O13: 0 | P13: 0 | Q13: 0 | R13: 0
A14: =+A10+1 -> 5 | B14: Bloom | C14: AS, PM | D14: 120 | E14: Sovran | F14: 2 | G14: oz | H14: 14.76 | I14: oz | J14: 100 | K14: 14.76 | L14: d | M14: 14.76 | N14: 0 | O14: 0 | P14: 0 | Q14: 0 | R14: 0
C15: AS, PM | D15: 56 | E15: Dithane | F15: 3 | G15: lb | H15: 23.25 | I15: lb | J15: 100 | K15: 23.25 | L15: d | M15: 23.25 | N15: 0 | O15: 0 | P15: 0 | Q15: 0 | R15: 0
C16: FB | D16: 14 | E16: Agri-Mycin 17 | F16: =VLOOKUP($D16,SprayCost,11) -> 1.5 | G16: lb | H16: 18.68 | I16: lb | J16: 55 | K16: 10.274 | L16: d | M16: 10.274 | N16: 0 | O16: 0 | P16: 0 | Q16: 0 | R16: 0
C17: FB | D17: 82 | E17: Mycoshield | F17: =VLOOKUP($D17,SprayCost,11) -> 1.5 | G17: lb | H17: 14 | I17: lb | J17: 60 | K17: =+H17*1.5*J17*0.01 -> 12.6 | L17: d | M17: 12.6 | N17: 0 | O17: 0 | P17: 0 | Q17: 0 | R17: 0
D18: 96 | E18: Promalin | F18: =VLOOKUP($D18,SprayCost,11) -> 1 | G18: pt | H18: 40.5 | I18: pt | J18: 30 | K18: 12.15 | L18: pgr | M18: 0 | N18: 0 | O18: 12.15 | P18: 0 | Q18: 0 | R18: 0
A19: =+A14+1 -> 6 | B19: Bloom | C19: AS, PM | D19: 120 | E19: Sovran | F19: 2 | G19: oz | H19: 14.76 | I19: oz | J19: 100 | K19: 14.76 | L19: d | M19: 14.76 | N19: 0 | O19: 0 | P19: 0 | Q19: 0 | R19: 0
C20: AS, PM | D20: 56 | E20: Dithane | F20: 3 | G20: lb | H20: 23.25 | I20: lb | J20: 100 | K20: 23.25 | L20: d | M20: 23.25 | N20: 0 | O20: 0 | P20: 0 | Q20: 0 | R20: 0
C21: FB | D21: 172 | E21: Kasumin | F21: 2 | G21: qt | H21: 60 | I21: 0 | J21: 40 | K21: 24 | L21: d | M21: 24 | N21: 0 | O21: 0 | P21: 0 | Q21: 0 | R21: 0
C22: FB | D22: 82 | E22: Mycoshield | F22: =VLOOKUP($D22,SprayCost,11) -> 1.5 | G22: lb | H22: 14 | I22: lb | J22: 50 | K22: 7 | L22: d | M22: 7 | N22: 0 | O22: 0 | P22: 0 | Q22: 0 | R22: 0
B23: Pheromone | C23: CM | D23: 74 | E23: Isomate C+ | F23: 200 | G23: ea | H23: 110 | I23: ea | J23: 70 | K23: =+H23*J23*0.01*0.5 -> 38.5 | L23: i | M23: =IF(IPestC=PestCat,ISprayC,0) -> 0 | N23: 38.5 | O23: 0 | P23: 0 | Q23: 0 | R23: 0
B24: Puffer | C24: CM | D24: 74 | E24: Puffer | F24: 1 | G24: ea | H24: 110 | I24: ea | J24: 10 | K24: 11 | L24: i | M24: 0 | N24: 11 | O24: 0 | P24: 0 | Q24: 0 | R24: 0
A25: =+A19+1 -> 7 | B25: KBPF | C25: FB | D25: 172 | E25: Kasumin | F25: 2 | G25: qt | H25: 60 | I25: 0 | J25: 35 | K25: 21 | L25: d | M25: 21 | N25: 0 | O25: 0 | P25: 0 | Q25: 0 | R25: 0
C26: FB | D26: 82 | E26: Mycoshield | F26: =VLOOKUP($D26,SprayCost,11) -> 1.5 | G26: lb | H26: 14 | I26: lb | J26: 80 | K26: 11.2 | L26: d | M26: 11.2 | N26: 0 | O26: 0 | P26: 0 | Q26: 0 | R26: 0
C27: Shoot Blight, PGR | D27: 21 | E27: Apogee | F27: 8 | G27: oz | H27: 48.36 | I27: oz | J27: 70 | K27: 33.852 | L27: pgr | M27: 0 | N27: 0 | O27: 33.852 | P27: 0 | Q27: 0 | R27: 0
A28: =+A25+1 -> 8 | B28: Petal Fall | C28: FB | D28: 56 | E28: Dithane | F28: =VLOOKUP($D28,SprayCost,11) -> 6 | G28: lb | H28: 23.25 | I28: lb | J28: 100 | K28: 23.25 | L28: d | M28: 23.25 | N28: 0 | O28: 0 | P28: 0 | Q28: 0 | R28: 0
C29: PC, OBLR | D29: 27 | E29: Avaunt | F29: =VLOOKUP($D29,SprayCost,11) -> 6 | G29: oz | H29: 36.78 | I29: oz | J29: 90 | K29: 33.102 | L29: i | M29: 0 | N29: 33.102 | O29: 0 | P29: 0 | Q29: 0 | R29: 0
C30: Mites | D30: 13 | E30: Agrimek | F30: =VLOOKUP($D30,SprayCost,11) -> 10 | G30: oz | H30: 39.6578125 | I30: oz | J30: 90 | K30: 35.69203125 | L30: i | M30: 0 | N30: 35.69203125 | O30: 0 | P30: 0 | Q30: 0 | R30: 0
C31: Mites | D31: 32 | E31: Oil | F31: 0.25 | G31: gal | H31: 45 | I31: gal | J31: 50 | K31: 22.5 | L31: i | M31: 0 | N31: 22.5 | O31: 0 | P31: 0 | Q31: 0 | R31: 0
D32: 98 | E32: Provide 10 SG | F32: =VLOOKUP($D32,SprayCost,11) -> 60 | G32: gr | H32: 39 | I32: gr | J32: 30 | K32: 11.7 | L32: pgr | M32: 0 | N32: 0 | O32: 11.7 | P32: 0 | Q32: 0 | R32: 0
A33: =+A28+1 -> 9 | B33: 1st Cover | C33: PC,CM | D33: 103 | E33: Rimon | F33: =VLOOKUP($D33,SprayCost,11) -> 20 | G33: oz | H33: 29 | I33: oz | J33: 100 | K33: 29 | L33: i | M33: =IF(IPestC=PestCat,ISprayC,0) -> 0 | N33: 29 | O33: 0 | P33: 0 | Q33: 0 | R33: 0
C34: AS, Sum Dis. | D34: 38 | E34: Captan 50W | F34: 6 | G34: lb | H34: 17.88 | I34: lb | J34: 100 | K34: 17.88 | L34: d | M34: 17.88 | N34: 0 | O34: 0 | P34: 0 | Q34: 0 | R34: 0
C35: Shoot Blight, PGR | D35: 21 | E35: Apogee | F35: 8 | G35: oz | H35: =VLOOKUP($D35,SprayCost,17) -> 48.36 | I35: oz | J35: 65 | K35: 31.434 | L35: pgr | M35: 0 | N35: 0 | O35: 31.434 | P35: 0 | Q35: 0 | R35: 0
D36: 98 | E36: Provide 10 SG | F36: =VLOOKUP($D36,SprayCost,11) -> 60 | G36: gr | H36: 39 | I36: gr | J36: 30 | K36: 11.7 | L36: pgr | M36: 0 | N36: 0 | O36: 11.7 | P36: 0 | Q36: 0 | R36: 0
A37: =+A33+1 -> 10 | B37: Thinning | C37: Cropping | D37: 115 | E37: Sevin XLR | F37: 1 | G37: qt | H37: 3.9375 | I37: qt | J37: 80 | K37: 3.15 | L37: pgr | M37: 0 | N37: 0 | O37: 3.15 | P37: 0 | Q37: 0 | R37: 0
C38: Cropping | D38: 80 | E38: Maxcel | F38: 2 | G38: qt | H38: 52 | I38: qt | J38: 80 | K38: 41.6 | L38: pgr | M38: 0 | N38: 0 | O38: 41.6 | P38: 0 | Q38: 0 | R38: 0
D39: 98 | E39: Provide 10 SG | F39: =VLOOKUP($D39,SprayCost,11) -> 60 | G39: gr | H39: 39 | I39: gr | J39: 30 | K39: 11.7 | L39: pgr | M39: 0 | N39: 0 | O39: 11.7 | P39: 0 | Q39: 0 | R39: 0
A40: =+A37+1 -> 11 | B40: Thinning | C40: Cropping | D40: 115 | E40: Sevin XLR | F40: 1 | G40: qt | H40: 3.9375 | I40: qt | J40: 60 | K40: 2.3625 | L40: pgr | M40: 0 | N40: 0 | O40: 2.3625 | P40: 0 | Q40: 0 | R40: 0
C41: Cropping | D41: 65 | E41: Fruitone N | F41: 4 | G41: oz | H41: 22.16 | I41: oz | J41: 60 | K41: 13.296 | L41: pgr | M41: 0 | N41: 0 | O41: 13.296 | P41: 0 | Q41: 0 | R41: 0
D42: 98 | E42: Provide 10 SG | F42: =VLOOKUP($D42,SprayCost,11) -> 60 | G42: gr | H42: 39 | I42: gr | J42: 30 | K42: 11.7 | L42: pgr | M42: 0 | N42: 0 | O42: 11.7 | P42: 0 | Q42: 0 | R42: 0
A43: =+A40+1 -> 12 | B43: 2nd Cover | C43: PC | D43: 36 | E43: Calypso | F43: 6 | G43: oz | H43: 35.1 | I43: oz | J43: 80 | K43: 28.08 | L43: i | M43: =IF(IPestC=PestCat,ISprayC,0) -> 0 | N43: 28.08 | O43: 0 | P43: 0 | Q43: 0 | R43: 0
C44: SJS | D44: 173 | E44: Movento | F44: 6 | G44: 0 | H44: 41.953125 | I44: 0 | J44: 20 | K44: 8.390625 | L44: i | M44: 0 | N44: 8.390625 | O44: 0 | P44: 0 | Q44: 0 | R44: 0
D45: 40 | E45: Captan 80WDG | F45: 3.75 | G45: lb | H45: 13.09 | I45: lb | J45: 100 | K45: 13.09 | L45: d | M45: 13.09 | N45: 0 | O45: 0 | P45: 0 | Q45: 0 | R45: 0
C46: Shoot Blight, PGR | D46: 21 | E46: Apogee | F46: 8 | G46: oz | H46: 48.36 | I46: oz | J46: 60 | K46: 29.016 | L46: pgr | M46: 0 | N46: 0 | O46: 29.016 | P46: 0 | Q46: 0 | R46: 0
C47: Return Bloom | D47: 65 | E47: Fruitone N | F47: 8 | G47: oz | H47: 22.16 | I47: oz | J47: 25 | K47: 5.54 | L47: pgr | M47: 0 | N47: 0 | O47: 5.54 | P47: 0 | Q47: 0 | R47: 0
A48: =+A43+1 -> 13 | B48: 3rd Cover | C48: AS, Sum Dis. | D48: 39 | E48: Captan 80WDG | F48: 3 | G48: lb | H48: 6.54 | I48: lb | J48: 100 | K48: 6.54 | L48: d | M48: 6.54 | N48: 0 | O48: 0 | P48: 0 | Q48: 0 | R48: 0
C49: AS, Sum Dis. | D49: 163 | E49: Rally | F49: =VLOOKUP($D49,SprayCost,11) -> 5 | G49: oz | H49: 17 | I49: oz | J49: 90 | K49: 15.3 | L49: d | M49: 15.3 | N49: 0 | O49: 0 | P49: 0 | Q49: 0 | R49: 0
D50: 95 | E50: Proclaim | F50: =VLOOKUP($D50,SprayCost,11) -> 4.8 | G50: oz | H50: 30.72 | I50: oz | J50: 100 | K50: 30.72 | L50: i | M50: 0 | N50: 30.72 | O50: 0 | P50: 0 | Q50: 0 | R50: 0
C51: Return Bloom | D51: 65 | E51: Fruitone N | F51: 8 | G51: oz | H51: 22.16 | I51: oz | J51: 25 | K51: 5.54 | L51: pgr | M51: 0 | N51: 0 | O51: 5.54 | P51: 0 | Q51: 0 | R51: 0
A52: =+A48+1 -> 14 | B52: 4th Cover | C52: Sum Dis. | D52: 39 | E52: Captan 80WDG | F52: 3 | G52: lb | H52: 6.54 | I52: lb | J52: 100 | K52: 6.54 | L52: d | M52: 6.54 | N52: 0 | O52: 0 | P52: 0 | Q52: 0 | R52: 0
C53: OBLR, Jap B | D53: 70 | E53: Imidan 70 WSB | F53: =VLOOKUP($D53,SprayCost,11) -> 3 | G53: lb | H53: 31.8 | I53: lb | J53: 35 | K53: 11.13 | L53: i | M53: =IF(IPestC=PestCat,ISprayC,0) -> 0 | N53: 11.13 | O53: 0 | P53: 0 | Q53: 0 | R53: 0
C54: Return Bloom | D54: 65 | E54: Fruitone N | F54: 8 | G54: oz | H54: 22.16 | I54: oz | J54: 25 | K54: 5.54 | L54: pgr | M54: 0 | N54: 0 | O54: 5.54 | P54: 0 | Q54: 0 | R54: 0
A55: =+A52+1 -> 15 | B55: 5th Cover | C55: Sum Dis. | D55: 39 | E55: Captan 80WDG | F55: 1.875 | G55: lb | H55: 6.54 | I55: lb | J55: 100 | K55: 6.54 | L55: d | M55: 6.54 | N55: 0 | O55: 0 | P55: 0 | Q55: 0 | R55: 0
C56: Sum Dis. | D56: 120 | E56: Sovran | F56: 4 | G56: oz | H56: 14.76 | I56: oz | J56: 50 | K56: 7.38 | L56: d | M56: 7.38 | N56: 0 | O56: 0 | P56: 0 | Q56: 0 | R56: 0
C57: AM, CM, Jap B | D57: 174 | E57: Voliam Flexi | F57: 7 | G57: oz | H57: 44.22 | I57: oz | J57: 90 | K57: 39.798 | L57: i | M57: 0 | N57: 39.798 | O57: 0 | P57: 0 | Q57: 0 | R57: 0
C58: Mites | D58: 137 | E58: Envidor | F58: 2 | G58: oz | H58: 33 | I58: oz | J58: 25 | K58: 8.25 | M58: 0 | N58: 0 | O58: 0 | P58: 0 | Q58: 0 | R58: 0
A59: =+A55+1 -> 16 | B59: 6th Cover | C59: Sum Dis. | D59: 39 | E59: Captan 80WDG | F59: 1.875 | G59: lb | H59: 6.54 | I59: lb | J59: 100 | K59: 6.54 | L59: d | M59: 6.54 | N59: 0 | O59: 0 | P59: 0 | Q59: 0 | R59: 0
C60: AM, CM, Jap B | D60: 70 | E60: Imidan 70 WSB | F60: 3 | G60: lb | H60: 31.8 | I60: lb | J60: 100 | K60: 31.8 | L60: i | M60: 0 | N60: 31.8 | O60: 0 | P60: 0 | Q60: 0 | R60: 0
A61: =+A59+1 -> 17 | B61: 7th Cover | C61: Sum Dis. | D61: 39 | E61: Captan 80WDG | F61: 1.875 | G61: lb | H61: 6.54 | I61: lb | J61: 60 | K61: 3.924 | L61: d | M61: 3.924 | N61: 0 | O61: 0 | P61: 0 | Q61: 0 | R61: 0
C62: Sum Dis. | D62: 120 | E62: Sovran | F62: 4 | G62: oz | H62: 14.76 | I62: oz | J62: 55 | K62: 8.118 | L62: d | M62: 8.118 | N62: 0 | O62: 0 | P62: 0 | Q62: 0 | R62: 0
C63: CM, OBLR, Jap B | D63: 70 | E63: Imidan 70 WSB | F63: 3 | G63: lb | H63: 31.8 | I63: lb | J63: 100 | K63: 31.8 | L63: i | M63: 0 | N63: 31.8 | O63: 0 | P63: 0 | Q63: 0 | R63: 0
C64: CM | D64: 17 | E64: Altachor | F64: 5 | G64: oz | H64: 36 | I64: oz | J64: 100 | K64: 36 | L64: i | M64: 0 | N64: 36 | O64: 0 | P64: 0 | Q64: 0 | R64: 0
C65: Stop Drop | D65: 101 | E65: Retain | F65: 0.5 | G65: ea | H65: 232.5 | I65: ea | J65: 40 | K65: 93 | L65: pgr | M65: 0 | N65: 0 | O65: 93 | P65: 0 | Q65: 0 | R65: 0
C66: Stop Drop | D66: 65 | E66: Fruitone N | F66: 16 | G66: oz | H66: 22.16 | I66: oz | J66: 30 | K66: =+H66*J66*0.01 -> 6.648 | L66: pgr | M66: 0 | N66: 0 | O66: 6.648 | P66: 0 | Q66: 0 | R66: 0
A67: =+A61+1 -> 18 | B67: Post-Harvest | C67: N, B, Zn | J67: 100
B68: Total Spray Trips | C68: =+A67 -> 18
A69: Total | J69: =SUM(K3:K67) -> 1163.618096 | M69: =SUM(M3:M68) -> 417.696 | N69: =SUM(N3:N68) -> 407.7435963 | O69: 329.9285 | P69: 0 | Q69: 0 | R69: 0
A70: Foliar Nutrient Sprays
A71: Apps & Timing | C71: Pests | D71: # | E71: Material | F71: Rate Used | H71: Price | J71: % Farm Treated | K71: Total Cost/Acre
A72: 1 | B72: Prebloom | C72: N, B, Zn | D72: 147 | E72: =VLOOKUP($D72,SprayCost,3) -> Foliar Feed II (16-8-3 + micros) | F72: 0.5 | G72: =VLOOKUP($D72,SprayCost,12) -> qt | H72: =VLOOKUP($D72,SprayCost,10) -> 0 | I72: =VLOOKUP($D72,SprayCost,12) -> qt | J72: 95 | K72: =+F72*H72*J72*0.01*A72 -> 0 | L72: f | M72: =IF(IPestC=PestCat,ISprayC,0) -> 0 | N72: 0 | O72: 0 | P72: 0 | Q72: 0 | R72: 0
A73: 1 | B73: Postbloom | C73: 0-50-30 | D73: 147 | E73: =VLOOKUP($D73,SprayCost,3) -> Foliar Feed II (16-8-3 + micros) | F73: 0.5 | G73: =VLOOKUP($D73,SprayCost,12) -> qt | H73: =VLOOKUP($D73,SprayCost,10) -> 0 | I73: =VLOOKUP($D73,SprayCost,12) -> qt | J73: 90 | K73: =+F73*H73*J73*0.01*A73 -> 0 | L73: f | M73: 0 | N73: 0 | O73: 0 | P73: 0 | Q73: 0 | R73: 0
A74: 6 | B74: Summer Calcium | C74: Calcium Sprays | D74: 143 | E74: =VLOOKUP($D74,SprayCost,3) -> Calcium 10% (1.25# Cal/gal) | F74: 0.5 | G74: =VLOOKUP($D74,SprayCost,12) -> gal | H74: =VLOOKUP($D74,SprayCost,10) -> 0 | I74: =VLOOKUP($D74,SprayCost,12) -> gal | J74: 40 | K74: =+F74*H74*J74*0.01*A74 -> 0 | L74: f | M74: 0 | N74: 0 | O74: 0 | P74: 0 | Q74: 0 | R74: 0
A75: 4 | B75: Complete Foliar | C75: 20-20-20 | D75: 148 | E75: =VLOOKUP($D75,SprayCost,3) -> Nuta Leaf 20-20-20 | F75: 1.5 | G75: =VLOOKUP($D75,SprayCost,12) -> lb | H75: =VLOOKUP($D75,SprayCost,10) -> 0 | I75: =VLOOKUP($D75,SprayCost,12) -> lb | J75: 100 | K75: =+F75*H75*J75*0.01*A75 -> 0 | L75: f | M75: 0 | N75: 0 | O75: 0 | P75: 0 | Q75: 0 | R75: 0
A76: 1 | B76: Post-Harvest | C76: N, B, Zn | D76: 147 | E76: =VLOOKUP($D76,SprayCost,3) -> Foliar Feed II (16-8-3 + micros) | F76: 2.5 | G76: =VLOOKUP($D76,SprayCost,12) -> qt | H76: =VLOOKUP($D76,SprayCost,10) -> 0 | I76: =VLOOKUP($D76,SprayCost,12) -> qt | J76: 95 | K76: =+F76*H76*J76*0.01*A76 -> 0 | L76: f | M76: 0 | N76: 0 | O76: 0 | P76: 0 | Q76: 0 | R76: 0
B77: All of these applications trips are already included in the Spray Program above. | L77: f | M77: 0 | N77: 0 | O77: 0 | P77: 0 | Q77: 0 | R77: 0
A78: Total Foliar Program | E78: =+FoliarMat -> 0 | K78: =SUM(K72:K77) -> 0 | M78: =SUM(M72:M77) -> 0 | N78: =SUM(N72:N77) -> 0 | O78: 0 | P78: 0 | Q78: 0 | R78: 0
A80: Total Spray Program Cost | E80: =+TotSpCost -> 1163.618096 | K80: =+SprayMat4+FoliarMat -> 1163.618096 | M80: =+M69+M78 -> 417.696 | N80: =+N69+N78 -> 407.7435963 | O80: 329.9285 | P80: =+StandHerb -> 36.88890625 | Q80: 0 | R80: 0

Sheet Summary
A1: Summaries
A2: Costs Per Acre
B3: Central Leader | F3: Vertical Axe | J3: Tall Spindle | N3: Fruiting Wall
A4: Activity | B4: Labor | C4: Equipment | D4: Labor | E4: Total | F4: Labor | G4: Equipment | H4: Labor | I4: Total | J4: Labor | K4: Equipment | L4: Labor | M4: Total | N4: Labor | O4: Equipment | P4: Labor | Q4: Total
A5: Year | B5: hours | C5: cost | D5: cost | E5: cost | F5: hours | G5: cost | H5: cost | I5: cost | J5: hours | K5: cost | L5: cost | M5: cost | N5: hours | O5: cost | P5: cost | Q5: cost
A6: 0 | B6: =Year0LHours -> 1 | C6: =Year0EqCost -> 224 | D6: =Year0LCost -> 15 | E6: =year0 -> 794 | F6: =Year0LHours -> 1 | G6: =Year0EqCost -> 224 | H6: =Year0LCost -> 15 | I6: =year0 -> 794 | J6: =Year0LHours -> 1 | K6: =Year0EqCost -> 224 | L6: =Year0LCost -> 15 | M6: =year0 -> 794 | N6: =Year0LHours -> 1 | O6: =Year0EqCost -> 224 | P6: =Year0LCost -> 15 | Q6: =year0 -> 794
A7: 1 | B7: =+'Central Leader'!B53 -> 21.50014706 | C7: =+'Central Leader'!F53 -> 166.2642478 | D7: =+'Central Leader'!D53 -> 240.4014706 | E7: =+'Central Leader'!I53 -> 2384.848998 | F7: =+'Vertical Axe'!B55 -> 88.64571429 | G7: =+'Vertical Axe'!F55 -> 203.6491881 | H7: =+'Vertical Axe'!D55 -> 913.5714286 | I7: =+'Vertical Axe'!I55 -> 9556.811402 | J7: =+'Tall Spindle'!B55 -> 209.9083333 | K7: =+'Tall Spindle'!F55 -> 213.4937515 | L7: =+'Tall Spindle'!D55 -> 2127.375 | M7: =+'Tall Spindle'!I55 -> 16601.12114 | N7: =+'Fruiting Wall'!B55 -> 160.2738095 | O7: =+'Fruiting Wall'!F55 -> 219.959436 | P7: =+'Fruiting Wall'!D55 -> 1632.52381 | Q7: =+'Fruiting Wall'!I55 -> 15960.11858
A8: 2 | B8: =+'Central Leader'!B83 -> 6.091932773 | C8: =+'Central Leader'!F83 -> 61.28103045 | D8: =+'Central Leader'!D83 -> 66.71932773 | E8: =+'Central Leader'!I83 -> 460.5340848 | F8: =+'Vertical Axe'!B85 -> 5.362857143 | G8: =+'Vertical Axe'!F85 -> 168.1631122 | H8: =+'Vertical Axe'!D85 -> 62.94285714 | I8: =+'Vertical Axe'!I85 -> 1521.830337 | J8: =+'Tall Spindle'!B85 -> 7.7 | K8: =+'Tall Spindle'!F85 -> 242.9774032 | L8: =+'Tall Spindle'!D85 -> 97.16666667 | M8: =+'Tall Spindle'!I85 -> 1849.146217 | N8: =+'Fruiting Wall'!B85 -> 8.585714286 | O8: =+'Fruiting Wall'!F85 -> 264.2453952 | P8: =+'Fruiting Wall'!D85 -> 109.2857143 | Q8: =+'Fruiting Wall'!I85 -> 1707.959567
A9: 3 | B9: =+'Central Leader'!B114 -> 5.207647059 | C9: =+'Central Leader'!F114 -> 96.71530154 | D9: =+'Central Leader'!D114 -> 63.27647059 | E9: =+'Central Leader'!I114 -> 949.2588006 | F9: =+'Vertical Axe'!B115 -> 7.88 | G9: =+'Vertical Axe'!F115 -> 247.3699912 | H9: =+'Vertical Axe'!D115 -> 98.91428571 | I9: =+'Vertical Axe'!I115 -> 1636.917901 | J9: =+'Tall Spindle'!B116 -> 8.583333333 | K9: =+'Tall Spindle'!F116 -> 294.8910897 | L9: =+'Tall Spindle'!D116 -> 108.3333333 | M9: =+'Tall Spindle'!I116 -> 2146.63632 | N9: =+'Fruiting Wall'!B116 -> 9.542857143 | O9: =+'Fruiting Wall'!F116 -> 323.8504905 | P9: =+'Fruiting Wall'!D116 -> 121.1428571 | Q9: =+'Fruiting Wall'!I116 -> 1886.16535
A10: 4 | B10: =+'Central Leader'!B145 -> 21.73014706 | C10: =+'Central Leader'!F145 -> 165.8136665 | D10: =+'Central Leader'!D145 -> 232.1014706 | E10: =+'Central Leader'!I145 -> 1254.177995 | F10: =+'Vertical Axe'!B146 -> 34.78571429 | G10: =+'Vertical Axe'!F146 -> 344.7449483 | H10: =+'Vertical Axe'!D146 -> 374.0714286 | I10: =+'Vertical Axe'!I146 -> 1943.779849 | J10: =+'Tall Spindle'!B148 -> 48.66666667 | K10: =+'Tall Spindle'!F148 -> 515.3862563 | L10: =+'Tall Spindle'!D148 -> 525.8333333 | M10: =+'Tall Spindle'!I148 -> 2205.912335 | N10: =+'Fruiting Wall'!B148 -> 35.77619048 | O10: =+'Fruiting Wall'!F148 -> 483.4126238 | P10: =+'Fruiting Wall'!D148 -> 401.4761905 | Q10: =+'Fruiting Wall'!I148 -> 1953.630553
A11: 5 | B11: =+'Central Leader'!B176 -> 24.41764706 | C11: =+'Central Leader'!F176 -> 248.5417015 | D11: =+'Central Leader'!D176 -> 268.6764706 | E11: =+'Central Leader'!I176 -> 1849.675909 | F11: =+'Vertical Axe'!B177 -> 30.47142857 | G11: =+'Vertical Axe'!F177 -> 374.3967054 | H11: =+'Vertical Axe'!D177 -> 333.4285714 | I11: =+'Vertical Axe'!I177 -> 1922.788749
A12: 6 | B12: =+'Central Leader'!B207 -> 25.96764706 | C12: =+'Central Leader'!F207 -> 282.1225015 | D12: =+'Central Leader'!D207 -> 286.6764706 | E12: =+'Central Leader'!I207 -> 1952.044193 | F12: =+'Vertical Axe'!B209 -> 47.21428571 | G12: =+'Vertical Axe'!F209 -> 480.848734 | H12: =+'Vertical Axe'!D209 -> 505.8571429 | I12: =+'Vertical Axe'!I209 -> 2201.266939
A13: 7 | B13: =+'Central Leader'!B238 -> 39.06764706 | C13: =+'Central Leader'!F238 -> 349.2841015 | D13: =+'Central Leader'!D238 -> 422.6764706 | E13: =+'Central Leader'!I238 -> 2153.438762
A14: 8 | B14: =+'Central Leader'!B270 -> 40.61764706 | C14: =+'Central Leader'!F270 -> 370.7099015 | D14: =+'Central Leader'!D270 -> 435.6764706 | E14: =+'Central Leader'!I270 -> 2179.963156
A15: =+B3 -> Central Leader
A16: =+'Central Leader'!A273 -> Year 0, Site Preparation Cost. | I16: =+'Central Leader'!I273 -> 794
A17: =+'Central Leader'!A274 -> Year 1, Planting Year. | I17: =+'Central Leader'!I274 -> 2384.848998
A18: =+'Central Leader'!A275 -> Year 2, Non-bearing Year | I18: =+'Central Leader'!I275 -> 460.5340848
A19: =+'Central Leader'!A276 -> Year 3, Non-bearing Year | I19: =+'Central Leader'!I276 -> 949.2588006
A20: =+'Central Leader'!A277 -> Year 4, Early Cropping Year | I20: =+'Central Leader'!I277 -> 1254.177995
A21: =+'Central Leader'!A278 -> Year 5, Early Cropping Year | I21: =+'Central Leader'!I278 -> 1849.675909
A22: =+'Central Leader'!A279 -> Year 6, Early Cropping Year | I22: =+'Central Leader'!I279 -> 1952.044193
A23: =+'Central Leader'!A280 -> Year 7, Early Cropping Year | I23: =+'Central Leader'!I280 -> 2153.438762
A24: =+'Central Leader'!A281 -> Year 8, Full Bearing Year | I24: =+'Central Leader'!I281 -> 2179.963156
A25: =+F3 -> Vertical Axe
A26: =+'Vertical Axe'!A212 -> Year 0, Site Preparation Cost. | I26: =+'Vertical Axe'!I212 -> 794
A27: =+'Vertical Axe'!A213 -> Year 1, Planting Year. | I27: =+'Vertical Axe'!I213 -> 9556.811402
A28: =+'Vertical Axe'!A214 -> Year 2, Non-bearing Year | I28: =+'Vertical Axe'!I214 -> 1521.830337
A29: =+'Vertical Axe'!A215 -> Year 3, Early Cropping Year | I29: =+'Vertical Axe'!I215 -> 1636.917901
A30: =+'Vertical Axe'!A216 -> Year 4, Early Cropping Year | I30: =+'Vertical Axe'!I216 -> 1943.779849
A31: =+'Vertical Axe'!A217 -> Year 5, Early Cropping Year | I31: =+'Vertical Axe'!I217 -> 1922.788749
A32: =+'Vertical Axe'!A218 -> Year 6, Full Bearing Year | I32: =+'Vertical Axe'!I218 -> 2201.266939
A33: =+J3 -> Tall Spindle
A34: =+'Tall Spindle'!A152 -> Year 0, Site Preparation Cost. | I34: =+'Tall Spindle'!I152 -> 794
A35: =+'Tall Spindle'!A153 -> Year 1, Planting Year. | I35: =+'Tall Spindle'!I153 -> 16601.12114
A36: =+'Tall Spindle'!A154 -> Year 2, Early Bearing Year | I36: =+'Tall Spindle'!I154 -> 1849.146217
A37: =+'Tall Spindle'!A155 -> Year 3, Early Bearing Year | I37: =+'Tall Spindle'!I155 -> 2146.63632
A38: =+'Tall Spindle'!A156 -> Year 4, Full Bearing Year | I38: =+'Tall Spindle'!I156 -> 2205.912335
A39: Fruiting Wall
A40: =+'Fruiting Wall'!A152 -> Year 0, Site Preparation Cost. | I40: =+'Fruiting Wall'!I152 -> 794
A41: =+'Fruiting Wall'!A153 -> Year 1, Planting Year. | I41: =+'Fruiting Wall'!I153 -> 15960.11858
A42: =+'Fruiting Wall'!A154 -> Year 2, Early Bearing Year | I42: =+'Fruiting Wall'!I154 -> 1707.959567
A43: =+'Fruiting Wall'!A155 -> Year 3, Early Bearing Year | I43: =+'Fruiting Wall'!I155 -> 1886.16535
A44: =+'Fruiting Wall'!A156 -> Year 4, Full Bearing Year | I44: =+'Fruiting Wall'!I156 -> 1953.630553

Sheet Chart
A1: Year | B1: Price | C1: Cost | O1: Year | P1: cents_lb | Q1: lbs/acre
A2: 1970 | B2: 3.7 | C2: 3.9 | O2: 1970 | P2: 0.037 | Q2: 12278
A3: =+A2+1 -> 1971 | B3: 3.6 | C3: =+C2+0.133 -> 4.033 | O3: =O2+1 -> 1971 | P3: 0.036 | Q3: 13153
A4: =+A3+1 -> 1972 | B4: 4.3 | C4: =+C3+0.133 -> 4.166 | O4: =O3+1 -> 1972 | P4: 0.043 | Q4: 13394
A5: 1973 | B5: 9.3 | C5: =+C4+0.133 -> 4.299 | O5: 1973 | P5: 0.093 | Q5: 8785
A6: 1974 | B6: 6.2 | C6: =+C5+0.133 -> 4.432 | O6: 1974 | P6: 0.062 | Q6: 12762
A7: 1975 | B7: 5.1 | C7: =+C6+0.133 -> 4.565 | O7: 1975 | P7: 0.051 | Q7: 13540
A8: 1976 | B8: 8.8 | C8: 4.7 | O8: 1976 | P8: 0.088 | Q8: 9816
A9: 1977 | B9: 7.9 | C9: =+C8+0.5 -> 5.2 | O9: 1977 | P9: 0.079 | Q9: 12364
A10: 1978 | B10: 7.6 | C10: =+C9+0.5 -> 5.7 | O10: 1978 | P10: 0.076 | Q10: 21247
A11: 1979 | B11: 7.8 | C11: 6.2 | O11: 1979 | P11: 0.078 | Q11: 16000
A12: 1980 | B12: 6.2 | C12: =+C11+1.12 -> 7.32 | O12: 1980 | P12: 0.062 | Q12: 20930
A13: 1981 | B13: 9.1 | C13: =+C12+1.12 -> 8.44 | O13: 1981 | P13: 0.091 | Q13: 15000
A14: 1982 | B14: 6.9 | C14: =+C13+1.12 -> 9.56 | O14: 1982 | P14: 0.069 | Q14: 22022
A15: 1983 | B15: 7.7 | C15: =+C14+1.12 -> 10.68 | O15: 1983 | P15: 0.077 | Q15: 16816
A16: 1984 | B16: 8 | C16: 11.8 | O16: 1984 | P16: 0.08 | Q16: 17188
A17: 1985 | B17: 7.5 | C17: =+C16+0.14 -> 11.94 | O17: 1985 | P17: 0.075 | Q17: 23810
A18: 1986 | B18: 9.3 | C18: =+C17+0.14 -> 12.08 | O18: 1986 | P18: 0.093 | Q18: 14785
A19: 1987 | B19: 7.6 | C19: =+C18+0.14 -> 12.22 | O19: 1987 | P19: 0.076 | Q19: 21212
A20: 1988 | B20: 8.8 | C20: =+C19+0.14 -> 12.36 | O20: 1988 | P20: 0.088 | Q20: 16275
A21: 1989 | B21: 8.2 | C21: 12.5 | O21: 1989 | P21: 0.082 | Q21: 18304
A22: 1990 | B22: 10.3 | C22: =+C21-0.125 -> 12.375 | O22: 1990 | P22: 0.103 | Q22: 14395
A23: 1991 | B23: 10.9 | C23: =+C22-0.125 -> 12.25 | O23: 1991 | P23: 0.109 | Q23: 16604
A24: 1992 | B24: 8.5 | C24: 12.125 | O24: 1992 | P24: 0.085 | Q24: 20000
A25: 1993 | B25: 8.5 | C25: 12 | O25: 1993 | P25: 0.085 | Q25: 18545
A26: 1994 | B26: 8.6 | C26: 11.875 | O26: 1994 | P26: 0.086 | Q26: 18889
A27: 1995 | B27: 9.9 | C27: 11.75 | O27: 1995 | P27: 0.099 | Q27: 22593
A28: 1996 | B28: 12 | C28: 11.625 | O28: 1996 | P28: 0.126 | Q28: 13000
A29: 1997 | B29: =+P29*100 -> 9.8 | C29: 11.5 | D29: =+C40-C29 -> 1.5 | O29: 1997 | P29: 0.098 | Q29: 18500
A30: 1998 | B30: =+P30*100 -> 8.7 | C30: =+$D$29*1/$D$39+C29 -> 11.65 | D30: 1 | O30: 1998 | P30: 0.087 | Q30: 18500
A31: 1999 | B31: 8.8 | C31: 11.8 | D31: 2 | O31: 1999 | P31: 0.088 | Q31: 23100
A32: 2000 | B32: 9.3 | C32: 11.95 | D32: 3 | O32: 2000 | P32: 0.093 | Q32: 16500
A33: 2001 | B33: 9.4 | C33: 12.1 | D33: 4 | O33: 2001 | P33: 0.094 | Q33: 20200
A34: 2002 | B34: 12.4 | C34: 12.25 | D34: 5 | O34: 2002 | P34: 0.124 | Q34: 12000
A35: 2003 | B35: 11.7 | C35: 12.4 | D35: 6 | O35: 2003 | P35: 0.117 | Q35: 21400
A36: 2004 | B36: 12.3 | C36: 12.55 | D36: 7 | O36: 2004 | P36: 0.123 | Q36: 18000
A37: 2005 | B37: 12.6 | C37: 12.7 | D37: 8 | O37: 2005 | P37: 0.126 | Q37: 19000
A38: 2006 | B38: 14.1 | C38: 12.85 | D38: 9 | O38: 2006 | P38: =+B38*0.01 -> 0.141 | Q38: 22900
A39: 2007 | B39: 16.9 | C39: 13 | D39: 10 | O39: 2007 | P39: =+B39*0.01 -> 0.169 | Q39: 21400
A40: 2008 | B40: 20 | C40: 13 | O40: 2008 | P40: 0.2 | Q40: 15900
A41: 2009 | B41: 13.1 | C41: 13.1 | O41: 2009 | P41: 0.131 | Q41: 30300
A42: 2010 | B42: 17.6 | C42: =+C41+0.5 -> 13.6 | O42: 2010 | P42: 0.176 | Q42: 39000
A43: 2011 | B43: 17 | C43: =+C42+0.5 -> 14.1 | O43: 2011 | P43: 0.17 | Q43: 22000
A44: 2012 | B44: 17 | C44: =+C43+0.5 -> 14.6 | O44: 2012 | P44: 0.17 | Q44: 22000
A45: 2013 | B45: 17 | C45: 15 | O45: 2013 | P45: 0.17 | Q45: 22000
A46: 2014 | B46: 12 | O46: 2014 | P46: 0.12 | Q46: 22000
A47: 2015 | O47: 2015 | P47: 0 | Q47: 22000
A48: 2016 | O48: 2016 | P48: 0 | Q48: 22000
B51: Michigan Agricultural Statistics 2010-2011
B53: Fruit: Acres, production, and value, 2006-2010
B54: -----------------------------------------------------------------------------------------------------
B55: Fruit : : : Production : :
B56: and Year : Bearing : Yield :---------------------------: Price : Value of
B57: : acres : : Total : Utilized : : production
B58: -----------------------------------------------------------------------------------------------------
B59: : Acres Pounds --- Million pounds -- Dollars 1,000 dollars
B60: : per pound
B61: Apples :
B62: 2006 : 38,500 22,900 880 855 0.141 120,386
B63: 2007 : 36,000 21,400 770 770 0.169 130,325
B64: 2008 : 37,000 15,900 590 590 0.200 118,063
B65: 2009 : 38,000 30,300 1,150 995 0.131 130,038
B66: 2010 : 39,000 15,100 590 590 0.176 104,100
H95: 100 | I95: =+F95*D95*#REF!*H95*0.01 -> 
D96: 5 | H96: 100 | I96: =+F96*D96*#REF!*H96*0.01 -> 
D97: 5 | H97: 100 | I97: =+F97*D97*#REF!*H97*0.01 -> 
H99: 100 | I99: =+F99*D99*#REF!*H99*0.01 -> 
B101: Calcium Sprays | C101: EG-615 | H101: 100 | I101: =+F101*D101*#REF!*H101*0.01 -> 
H103: 100 | I103: =+F103*D103*#REF!*H103*0.01 -> 
A105: Post-Harvest | B105: Boron | D105: 2 | H105: 100 | I105: =+F105*D105*#REF!*H105*0.01 -> 
D106: 5 | H106: 100 | I106: =+F106*D106*#REF!*H106*0.01 -> 
D107: 5 | H107: 100 | I107: =+F107*D107*#REF!*H107*0.01 -> 

Sheet Fruiting Wall
A1: Fruiting Wall
A3: The Fruiting Wall orchard remains non-bearing for the 1st year.. The 1st crop is produced in the 2nd year and the orchard
A4: become full bearing in the 4th year. A reduced spray program is followed only during the 1st year. A full bearing spray
A5: program is followed starting in year 2.
A8: Year 1, Planting Year.
A9: Activity | B9: Labor Hours | C9: Eq. Hours | D9: Labor Cost | E9: Eq. Code | F9: Eq. Cost | G9: Material Cost | H9: Other Cost | I9: Total Cost
A11: Ground Preparation
A12: 80hp tractor | B12: 0.5 | C12: =B12 -> 0.5 | D12: =B12*LaborSkill -> 7.5 | E12: 2 | F12: =IF(E12>0,VLOOKUP(E12,EquipCost,15)*C12,0) -> 11.855 | I12: =SUM(F12:H12)+D12 -> 19.355
A13: Plow | C13: =B12 -> 0.5 | E13: 8 | F13: =IF(E13>0,VLOOKUP(E13,EquipCost,15)*C13,0) -> 2.223888889 | I13: =SUM(F13:H13)+D13 -> 2.223888889
A14: 80hp tractor | B14: 0.3 | C14: =B14 -> 0.3 | D14: =B14*LaborSkill -> 4.5 | E14: 2 | F14: =IF(E14>0,VLOOKUP(E14,EquipCost,15)*C14,0) -> 7.113 | I14: =SUM(F14:H14)+D14 -> 11.613
A15: Disc | C15: =B14 -> 0.3 | E15: 9 | F15: =IF(E15>0,VLOOKUP(E15,EquipCost,15)*C15,0) -> 1.63 | I15: =SUM(F15:H15)+D15 -> 1.63
A16: Pick stone & roots | B16: 3 | C16: =B16 -> 3 | D16: =B16*LaborNoSkill -> 30 | E16: 15 | F16: =IF(E16>0,VLOOKUP(E16,EquipCost,15)*C16,0) -> 30.13125 | I16: =SUM(F16:H16)+D16 -> 60.13125
A17: Planting Trees
A18: Layout | B18: 0.5 | C18: =B18 -> 0.5 | D18: =B18*LaborSkill -> 7.5 | E18: 1 | F18: =IF(E18>0,VLOOKUP(E18,EquipCost,15)*C18,0) -> 8.4924 | I18: =SUM(F18:H18)+D18 -> 15.9924
A19: Marking | B19: 0.5 | C19: 0.5 | D19: =B19*LaborSkill -> 7.5 | E19: 1 | F19: =IF(E19>0,VLOOKUP(E19,EquipCost,15)*C19,0) -> 8.4924 | I19: =SUM(F19:H19)+D19 -> 15.9924
A20: Purchase trees | G20: =FWTree*TreeCost -> 9256.5 | I20: =SUM(F20:H20)+D20 -> 9256.5
A21: Custom Plant @ .30 /tree | H21: =FWTree*CustomPlant -> 381.15 | I21: =SUM(F21:H21)+D21 -> 381.15
A22: System
A23: Trellis | B23: 40 | D23: =B23*LaborNoSkill -> 400 | F23: =IF(E23>0,VLOOKUP(E23,EquipCost,15)*C23,0) -> 0 | G23: =+FWTrellis -> 2907.508709 | I23: =SUM(F23:H23)+D23 -> 3307.508709
A24: Trickle irrigation | B24: 8 | C24: 20 | D24: =B24*LaborNoSkill -> 80 | E24: 17 | F24: =IF(E24>0,VLOOKUP(E24,EquipCost,15)*C24,0) -> 44 | G24: =+FWIrr -> 1282.6112 | I24: =SUM(F24:H24)+D24 -> 1406.6112
A25: Training | B25: =+FWTrain1 -> 100 | C25: 2 | D25: =B25*LaborNoSkill -> 1000 | E25: 1 | F25: =IF(E25>0,VLOOKUP(E25,EquipCost,15)*C25,0) -> 33.9696 | G25: =+FWTrainMat1 -> 80 | I25: =SUM(F25:H25)+D25 -> 1113.9696
A26: Pruning | B26: =+FWPrune1 -> 2.016666667 | C26: =+B26 -> 2.016666667 | D26: =B26*LaborNoSkill -> 20.16666667 | E26: 18 | F26: =IF(E26>0,VLOOKUP(E26,EquipCost,15)*C26,0) -> 9.167766667 | I26: =SUM(F26:H26)+D26 -> 29.33443333
A27: Nematode Control | I27: =SUM(F27:H27)+D27 -> 0
A28: Herbicide Program
A29: 40 hp tractor | B29: =+FWHerbTime -> 1.6 | C29: =+B29 -> 1.6 | D29: =B29*LaborSkill -> 24 | E29: 3 | F29: =IF(E29>0,VLOOKUP(E29,EquipCost,15)*C29,0) -> 19.448 | I29: =SUM(F29:H29)+D29 -> 43.448
A30: Weed sprayer | C30: =+C29 -> 1.6 | E30: 5 | F30: =IF(E30>0,VLOOKUP(E30,EquipCost,15)*C30,0) -> 7.090666667 | G30: =+FWHerb1 -> 4.144 | I30: =SUM(F30:H30)+D30 -> 11.23466667
A31: Spray Program
A32: 80 hp tractor | B32: =+FWSprayTime1 -> 0.2571428571 | C32: =+B32 -> 0.2571428571 | D32: =B32*LaborSkill -> 3.857142857 | E32: 2 | F32: =IF(E32>0,VLOOKUP(E32,EquipCost,15)*C32,0) -> 6.096857143 | G32: =+FWSprayMat1 -> 75.63517626 | I32: =SUM(F32:H32)+D32 -> 85.58917626
A33: Airblast spr. | C33: =+C32 -> 0.2571428571 | E33: 4 | F33: =IF(E33>0,VLOOKUP(E33,EquipCost,15)*C33,0) -> 2.925 | I33: =SUM(F33:H33)+D33 -> 2.925
A34: Fertilize | I34: =SUM(F34:H34)+D34 -> 0
A35: 40 hp tractor | B35: =+FWFertTime1 -> 0.2 | C35: =+B35 -> 0.2 | D35: =B35*LaborNoSkill -> 2 | E35: 3 | F35: =IF(E35>0,VLOOKUP(E35,EquipCost,15)*C35,0) -> 2.431 | G35: =+FWFert1 -> 6.80625 | I35: =SUM(F35:H35)+D35 -> 11.23725
A36: Vicon Spreader | C36: 0.2 | E36: 6 | F36: =IF(E36>0,VLOOKUP(E36,EquipCost,15)*C36,0) -> 0.627047619 | I36: =SUM(F36:H36)+D36 -> 0.627047619
A37: Sod Establishment
A38: 40 hp tractor | B38: 0.3 | C38: =0.3*3 -> 0.9 | D38: =B38*LaborSkill -> 4.5 | E38: 3 | F38: =IF(E38>0,VLOOKUP(E38,EquipCost,15)*C38,0) -> 10.9395 | I38: =SUM(F38:H38)+D38 -> 15.4395
A39: Spreader | C39: =+B38 -> 0.3 | E39: 6 | F39: =IF(E39>0,VLOOKUP(E39,EquipCost,15)*C39,0) -> 0.9405714286 | G39: 11 | I39: =SUM(F39:H39)+D39 -> 11.94057143
A40: Cultipack | B40: 0.3 | C40: =B40 -> 0.3 | D40: =B40*LaborNoSkill -> 3 | E40: 12 | F40: =IF(E40>0,VLOOKUP(E40,EquipCost,15)*C40,0) -> 2.116 | I40: =SUM(F40:H40)+D40 -> 5.116
A41: Drag | B41: 0.3 | C41: =B41 -> 0.3 | D41: =B41*LaborNoSkill -> 3 | E41: 12 | F41: =IF(E41>0,VLOOKUP(E41,EquipCost,15)*C41,0) -> 2.116 | I41: =SUM(F41:H41)+D41 -> 5.116
A42: Mowing
A43: 40 hp tractor | B43: =+FWMowTime1 -> 0 | C43: =B43 -> 0 | D43: =+B43*LaborNoSkill -> 0 | E43: 3 | F43: =IF(E43>0,VLOOKUP(E43,EquipCost,15)*C43,0) -> 0 | I43: =SUM(F43:H43)+D43 -> 0
A44: Mower | C44: =B43 -> 0 | E44: 7 | F44: =IF(E44>0,VLOOKUP(E44,EquipCost,15)*C44,0) -> 0 | I44: =SUM(F44:H44)+D44 -> 0
A45: Mouse control
A46: 40 hp tractor | B46: =+FWBaitTime1 -> 0.2 | C46: =+B46 -> 0.2 | D46: =+B46*LaborNoSkill -> 2 | E46: 3 | F46: =IF(E46>0,VLOOKUP(E46,EquipCost,15)*C46,0) -> 2.431 | I46: =SUM(F46:H46)+D46 -> 4.431
A47: Vicon Spreader | C47: =+B46 -> 0.2 | E47: 6 | F47: =IF(E47>0,VLOOKUP(E47,EquipCost,15)*C47,0) -> 0.627047619 | G47: =+FWBait1 -> 5.5 | I47: =SUM(F47:H47)+D47 -> 6.127047619
A48: Mouse guards | I48: =SUM(F48:G48)+D48 -> 0
A49: Wildlife Control | B49: 0.3 | C49: =B49 -> 0.3 | D49: =B49*LaborNoSkill -> 3 | E49: 1 | F49: =IF(E49>0,VLOOKUP(E49,EquipCost,15)*C49,0) -> 5.09544 | G49: =+FWWild*FWTree -> 21.78 | I49: =SUM(F49:H49)+D49 -> 29.87544
A50: Scouting | I50: =SUM(F50:H50)+D50 -> 0
A51: Bees | I51: =SUM(F51:H51)+D51 -> 0
A52: Real Estate Tax | H52: =+RETax -> 35 | I52: =SUM(F52:H52)+D52 -> 35
A53: Management | B53: 2 | D53: =B53*LaborSkill -> 30 | F53: =IF(E53>0,VLOOKUP(E53,EquipCost,15)*C53,0) -> 0 | H53: =+other -> 40 | I53: =SUM(F53:H53)+D53 -> 70
A55: Total | B55: =SUM(B10:B54) -> 160.2738095 | C55: =SUM(C10:C54) -> 36.23095238 | D55: =SUM(D10:D54) -> 1632.52381 | F55: =SUM(F10:F54) -> 219.959436 | G55: =SUM(G10:G54) -> 13651.48533 | H55: =SUM(H10:H54) -> 456.15 | I55: =SUM(I10:I54) -> 15960.11858
A56: Year 2, Early Bearing Year
A57: Activity | B57: Labor Hours | C57: Eq. Hours | D57: Labor Cost | E57: Eq. Code | F57: Eq. Cost | G57: Material Cost | H57: Other Cost | I57: Total Cost
A59: Training | B59: =+FWTrain2 -> 20 | C59: 2 | D59: =B59*LaborNoSkill -> 200 | E59: 1 | F59: =IF(E59>0,VLOOKUP(E59,EquipCost,15)*C59,0) -> 33.9696 | G59: =+FWTrainMAt2 -> 10 | I59: =SUM(F59:H59)+D59 -> 243.9696
A60: Pruning | B60: =+FWPrune2 -> 2.016666667 | C60: =+B60 -> 2.016666667 | D60: =B60*LaborNoSkill -> 20.16666667 | E60: 18 | F60: =IF(E60>0,VLOOKUP(E60,EquipCost,15)*C60,0) -> 9.167766667 | I60: =SUM(F60:H60)+D60 -> 29.33443333
A61: Brush Removal | B61: 0 | C61: =+B61 -> 0 | D61: =B61*LaborSkill -> 0 | E61: 3 | F61: =IF(E61>0,VLOOKUP(E61,EquipCost,15)*C61,0) -> 0 | I61: =SUM(F61:H61)+D61 -> 0
A62: Tree replacement | B62: =0.0333333333333333*FWTree*0.05 -> 1.815 | C62: =B62 -> 1.815 | D62: =B62*LaborNoSkill -> 18.15 | E62: 1 | F62: =IF(E62>0,VLOOKUP(E62,EquipCost,15)*C62,0) -> 30.827412 | G62: =+FWTree*TreeCost*0.01 -> 92.565 | I62: =SUM(F62:H62)+D62 -> 141.542412
A63: Herbicide Program
A64: 40 hp tractor | B64: =+FWHerbTime -> 1.6 | C64: =+B64 -> 1.6 | D64: =B64*LaborSkill -> 24 | E64: 3 | F64: =IF(E64>0,VLOOKUP(E64,EquipCost,15)*C64,0) -> 19.448 | I64: =SUM(F64:H64)+D64 -> 43.448
A65: Weed sprayer | C65: =+C64 -> 1.6 | E65: 5 | F65: =IF(E65>0,VLOOKUP(E65,EquipCost,15)*C65,0) -> 7.090666667 | G65: =+FWHerb2 -> 4.144 | I65: =SUM(F65:H65)+D65 -> 11.23466667
A66: Spray Program
A67: 80 hp tractor | B67: =+FWSprayTime2 -> 3.085714286 | C67: =+B67 -> 3.085714286 | D67: =B67*LaborSkill -> 46.28571429 | E67: 2 | F67: =IF(E67>0,VLOOKUP(E67,EquipCost,15)*C67,0) -> 73.16228571 | G67: =+FWSprayMat2 -> 756.3517626 | I67: =SUM(F67:H67)+D67 -> 875.7997626
A68: Airblast spr. | C68: =+C67 -> 3.085714286 | E68: 4 | F68: =IF(E68>0,VLOOKUP(E68,EquipCost,15)*C68,0) -> 35.1 | I68: =SUM(F68:H68)+D68 -> 35.1
A69: Fertilizer
A70: 40 hp tractor | B70: =+FWFertTime2 -> 0.2 | C70: 0.3 | D70: =+B70*LaborNoSkill -> 2 | E70: 3 | F70: =IF(E70>0,VLOOKUP(E70,EquipCost,15)*C70,0) -> 3.6465 | G70: =+FWFert2 -> 6.80625 | I70: =SUM(F70:H70)+D70 -> 12.45275
A71: Vicon Spreader | C71: =+C70 -> 0.3 | E71: 6 | F71: =IF(E71>0,VLOOKUP(E71,EquipCost,15)*C71,0) -> 0.9405714286 | I71: =SUM(F71:H71)+D71 -> 0.9405714286
A72: Mowing
A73: 40 hp tractor | B73: =+FWMowTime2 -> 1 | C73: =B73 -> 1 | D73: =+B73*LaborNoSkill -> 10 | E73: 3 | F73: =IF(E73>0,VLOOKUP(E73,EquipCost,15)*C73,0) -> 12.155 | I73: =SUM(F73:H73)+D73 -> 22.155
A74: Mower | C74: =B73 -> 1 | E74: 7 | F74: =IF(E74>0,VLOOKUP(E74,EquipCost,15)*C74,0) -> 4.65952381 | I74: =SUM(F74:H74)+D74 -> 4.65952381
A75: Mouse control
A76: 40 hp tractor | B76: =+FWBaitTime3 -> 0.2 | C76: =+B76 -> 0.2 | D76: =B76*LaborNoSkill -> 2 | E76: 3 | F76: =IF(E76>0,VLOOKUP(E76,EquipCost,15)*C76,0) -> 2.431 | I76: =SUM(F76:H76)+D76 -> 4.431
A77: Vicon Spreader | C77: =+C76 -> 0.2 | E77: 6 | F77: =IF(E77>0,VLOOKUP(E77,EquipCost,15)*C77,0) -> 0.627047619 | G77: =+FWBait3 -> 5.5 | I77: 6.127047619
A78: Wildlife Control | B78: 2 | C78: 1 | D78: =B78*LaborNoSkill -> 20 | E78: 1 | F78: =IF(E78>0,VLOOKUP(E78,EquipCost,15)*C78,0) -> 16.9848 | G78: =+FWWild*FWTree -> 21.78 | I78: 58.7648
A79: Scouting | H79: 15 | I79: 15
A80: Bees | H80: 35 | I80: 35
A81: Trickle Irrigation | B81: 0.5 | C81: 40 | D81: =B81*LaborNoSkill -> 5 | E81: 17 | F81: =IF(E81>0,VLOOKUP(E81,EquipCost,15)*C81,0) -> 88 | I81: 93
A82: Real Estate Tax | D82: =B82*LaborNoSkill -> 0 | F82: =IF(E82>0,VLOOKUP(E82,EquipCost,15)*C82,0) -> 0 | H82: =+RETax -> 35 | I82: 35
A83: Management | D83: =B83*LaborNoSkill -> 0 | F83: =IF(E83>0,VLOOKUP(E83,EquipCost,15)*C83,0) -> 0 | H83: =+other -> 40 | I83: 40
A85: Total | B85: =SUM(B64:B84) -> 8.585714286 | C85: =SUM(C64:C84) -> 53.37142857 | D85: =SUM(D64:D84) -> 109.2857143 | F85: =SUM(F64:F84) -> 264.2453952 | G85: =SUM(G64:G84) -> 794.5820126 | H85: =SUM(H64:H84) -> 125 | I85: =SUM(I58:I84) -> 1707.959567
A86: Year 3, Early Bearing Year
A87: Activity | B87: Labor Hours | C87: Eq. Hours | D87: Labor Cost | E87: Eq. Code | F87: Eq. Cost | G87: Material Cost | H87: Other Cost | I87: Total Cost
A89: Training | B89: =+FWTrain4 -> 5 | C89: 2 | D89: =B89*LaborNoSkill -> 50 | E89: 1 | F89: =IF(E89>0,VLOOKUP(E89,EquipCost,15)*C89,0) -> 33.9696 | G89: =+FWTrainMat3 -> 10 | I89: =SUM(F89:H89)+D89 -> 93.9696
A90: Pruning | B90: =+FWPrune4 -> 16.13333333 | C90: =+B90 -> 16.13333333 | D90: =B90*LaborNoSkill -> 161.3333333 | E90: 18 | F90: =IF(E90>0,VLOOKUP(E90,EquipCost,15)*C90,0) -> 73.34213333 | I90: =SUM(F90:H90)+D90 -> 234.6754667
A91: Brush Removal | B91: 1 | C91: =+B91 -> 1 | D91: =B91*LaborSkill -> 15 | E91: 3 | F91: =IF(E91>0,VLOOKUP(E91,EquipCost,15)*C91,0) -> 12.155 | I91: =SUM(F91:H91)+D91 -> 27.155
A92: Tree replacement | B92: 0.5 | C92: =B92 -> 0.5 | D92: =B92*LaborNoSkill -> 5 | E92: 1 | F92: =IF(E92>0,VLOOKUP(E92,EquipCost,15)*C92,0) -> 8.4924 | G92: =+FWTree*TreeCost*0.01 -> 92.565 | I92: =SUM(F92:H92)+D92 -> 106.0574
A93: Herbicide Program
A94: 40 hp tractor | B94: =+FWHerbTime -> 1.6 | C94: =+B94 -> 1.6 | D94: =B94*LaborSkill -> 24 | E94: 3 | F94: =IF(E94>0,VLOOKUP(E94,EquipCost,15)*C94,0) -> 19.448 | I94: =SUM(F94:H94)+D94 -> 43.448
A95: Weed sprayer | C95: =+C94 -> 1.6 | E95: 5 | F95: =IF(E95>0,VLOOKUP(E95,EquipCost,15)*C95,0) -> 7.090666667 | G95: =+FWHerb3 -> 16.60000781 | I95: =SUM(F95:H95)+D95 -> 23.69067448
A96: Spray Program
A97: 80 hp tractor | B97: =+FWSprayTime3 -> 5.142857143 | C97: =+B97 -> 5.142857143 | D97: =B97*LaborSkill -> 77.14285714 | E97: 2 | F97: =IF(E97>0,VLOOKUP(E97,EquipCost,15)*C97,0) -> 121.9371429 | G97: =+FWSprayMat3 -> 756.3517626 | I97: =SUM(F97:H97)+D97 -> 955.4317626
A98: Airblast spr. | C98: =+C97 -> 5.142857143 | E98: 4 | F98: =IF(E98>0,VLOOKUP(E98,EquipCost,15)*C98,0) -> 58.5 | I98: =SUM(F98:H98)+D98 -> 58.5
A99: Fertilizer
A100: 40 hp tractor | B100: =+FWFertTime3 -> 0.2 | C100: =+B100 -> 0.2 | D100: =B100*LaborNoSkill -> 2 | E100: 3 | F100: =IF(E100>0,VLOOKUP(E100,EquipCost,15)*C100,0) -> 2.431 | G100: =+FWFert3 -> 10.63476563 | I100: =SUM(F100:H100)+D100 -> 15.06576563
A101: Vicon Spreader | C101: =+C100 -> 0.2 | E101: 6 | F101: =IF(E101>0,VLOOKUP(E101,EquipCost,15)*C101,0) -> 0.627047619 | I101: =SUM(F101:H101)+D101 -> 0.627047619
A102: Lime | G102: 0 | I102: =SUM(F102:H102)+D102 -> 0
A103: Mowing
A104: 40 hp tractor | B104: =+FWMowTime3 -> 1.5 | C104: =+B104 -> 1.5 | D104: =B104*LaborNoSkill -> 15 | E104: 3 | F104: =IF(E104>0,VLOOKUP(E104,EquipCost,15)*C104,0) -> 18.2325 | I104: =SUM(F104:H104)+D104 -> 33.2325
A105: Mower | C105: =+C104 -> 1.5 | E105: 7 | F105: =IF(E105>0,VLOOKUP(E105,EquipCost,15)*C105,0) -> 6.989285714 | I105: =SUM(F105:H105)+D105 -> 6.989285714
A106: Mouse control
A107: 40 hp tractor | B107: =+FWBaitTime3 -> 0.2 | C107: =+B107 -> 0.2 | D107: =B107*LaborNoSkill -> 2 | E107: 3 | F107: =IF(E107>0,VLOOKUP(E107,EquipCost,15)*C107,0) -> 2.431 | I107: =SUM(F107:H107)+D107 -> 4.431
A108: Vicon Spreader | C108: =+C107 -> 0.2 | E108: 6 | F108: =IF(E108>0,VLOOKUP(E108,EquipCost,15)*C108,0) -> 0.627047619 | G108: =+FWBait3 -> 5.5 | I108: 6.127047619
A109: Wildlife Control | B109: 2 | C109: 1 | D109: =B109*LaborNoSkill -> 20 | E109: 1 | F109: =IF(E109>0,VLOOKUP(E109,EquipCost,15)*C109,0) -> 16.9848 | G109: =+FWWild*FWTree -> 21.78 | I109: 58.7648
A110: Scouting | H110: 15 | I110: 15
A111: Bees | H111: 35 | I111: 35
A112: Trickle Irrigation | B112: 0.5 | C112: 40 | D112: =B112*LaborNoSkill -> 5 | E112: 17 | F112: =IF(E112>0,VLOOKUP(E112,EquipCost,15)*C112,0) -> 88 | I112: 93
A113: Real Estate Tax | D113: =B113*LaborNoSkill -> 0 | F113: =IF(E113>0,VLOOKUP(E113,EquipCost,15)*C113,0) -> 0 | H113: =+RETax -> 35 | I113: 35
A114: Management | D114: =B114*LaborNoSkill -> 0 | F114: =IF(E114>0,VLOOKUP(E114,EquipCost,15)*C114,0) -> 0 | H114: =+other -> 40 | I114: 40
A116: Total | B116: =SUM(B95:B115) -> 9.542857143 | C116: =SUM(C95:C115) -> 56.68571429 | D116: =SUM(D95:D115) -> 121.1428571 | F116: =SUM(F95:F115) -> 323.8504905 | G116: =SUM(G95:G115) -> 810.866536 | H116: =SUM(H95:H115) -> 125 | I116: =SUM(I88:I115) -> 1886.16535
A117: Year 4, Full Bearing Year
A118: Activity | B118: Labor Hours | C118: Eq. Hours | D118: Labor Cost | E118: Eq. Code | F118: Eq. Cost | G118: Material Cost | H118: Other Cost | I118: Total Cost
A120: Training | B120: =+FWTrain4 -> 5 | C120: 2 | D120: =B120*LaborNoSkill -> 50 | E120: 1 | F120: =IF(E120>0,VLOOKUP(E120,EquipCost,15)*C120,0) -> 33.9696 | G120: =+FWTrainMat4 -> 4 | I120: =SUM(F120:H120)+D120 -> 87.9696
A121: Pruning | B121: =+FWPrune4 -> 16.13333333 | C121: =+B121 -> 16.13333333 | D121: =B121*LaborNoSkill -> 161.3333333 | E121: 18 | F121: =IF(E121>0,VLOOKUP(E121,EquipCost,15)*C121,0) -> 73.34213333 | I121: =SUM(F121:H121)+D121 -> 234.6754667
A122: Brush Removal | B122: 2 | C122: =+B122 -> 2 | D122: =B122*LaborSkill -> 30 | E122: 3 | F122: =IF(E122>0,VLOOKUP(E122,EquipCost,15)*C122,0) -> 24.31 | I122: =SUM(F122:H122)+D122 -> 54.31
A123: Tree replacement | B123: 0.5 | C123: =B123 -> 0.5 | D123: =B123*LaborNoSkill -> 5 | E123: 1 | F123: =IF(E123>0,VLOOKUP(E123,EquipCost,15)*C123,0) -> 8.4924 | G123: =+FWTree*TreeCost*0.01 -> 92.565 | I123: =SUM(F123:H123)+D123 -> 106.0574
A124: Herbicide Program
A125: 40 hp tractor | B125: =+FWHerbTime -> 1.6 | C125: =+B125 -> 1.6 | D125: =B125*LaborSkill -> 24 | E125: 3 | F125: =IF(E125>0,VLOOKUP(E125,EquipCost,15)*C125,0) -> 19.448 | I125: =SUM(F125:H125)+D125 -> 43.448
A126: Weed sprayer | C126: =+C125 -> 1.6 | E126: 5 | F126: =IF(E126>0,VLOOKUP(E126,EquipCost,15)*C126,0) -> 7.090666667 | G126: =+FWHerb4 -> 16.60000781 | I126: =SUM(F126:H126)+D126 -> 23.69067448
A127: Spray Program
A128: 80 hp tractor | B128: =+FWSprayTime3 -> 5.142857143 | C128: =+B128 -> 5.142857143 | D128: =B128*LaborSkill -> 77.14285714 | E128: 2 | F128: =IF(E128>0,VLOOKUP(E128,EquipCost,15)*C128,0) -> 121.9371429 | G128: =+FWSprayMat4 -> 756.3517626 | I128: =SUM(F128:H128)+D128 -> 955.4317626
A129: Airblast spr. | C129: =+C128 -> 5.142857143 | E129: 4 | F129: =IF(E129>0,VLOOKUP(E129,EquipCost,15)*C129,0) -> 58.5 | I129: =SUM(F129:H129)+D129 -> 58.5
A130: Hand Pheromone | B130: 1 | D130: =B130*LaborNoSkill -> 10 | I130: =SUM(F130:H130)+D130 -> 10
A131: Mowing
A132: 40 hp tractor | B132: =+FWMowTime4 -> 1.5 | C132: =+B132 -> 1.5 | D132: =B132*LaborNoSkill -> 15 | E132: 3 | F132: =IF(E132>0,VLOOKUP(E132,EquipCost,15)*C132,0) -> 18.2325 | I132: =SUM(F132:H132)+D132 -> 33.2325
A133: Mower | C133: =+C132 -> 1.5 | E133: 7 | F133: =IF(E133>0,VLOOKUP(E133,EquipCost,15)*C133,0) -> 6.989285714 | I133: =SUM(F133:H133)+D133 -> 6.989285714
A134: Mouse control
A135: 40 hp tractor | B135: =+FWBaitTIme4 -> 0.2 | C135: =+B135 -> 0.2 | D135: =B135*LaborNoSkill -> 2 | E135: 3 | F135: =IF(E135>0,VLOOKUP(E135,EquipCost,15)*C135,0) -> 2.431 | I135: =SUM(F135:H135)+D135 -> 4.431
A136: Vicon Spreader | C136: =+C135 -> 0.2 | E136: 6 | F136: =IF(E136>0,VLOOKUP(E136,EquipCost,15)*C136,0) -> 0.627047619 | G136: =+FWBait4 -> 5.5 | I136: =SUM(F136:H136)+D136 -> 6.127047619
A137: Wildlife Control | B137: 2 | C137: 1 | D137: =B137*LaborNoSkill -> 20 | E137: 1 | F137: =IF(E137>0,VLOOKUP(E137,EquipCost,15)*C137,0) -> 16.9848 | G137: =+FWWild*FWTree -> 21.78 | I137: =SUM(F137:H137)+D137 -> 58.7648
A138: Fertilizer
A139: 40 hp tractor | B139: =+FWFertTime4 -> 0.2 | C139: =+B139 -> 0.2 | D139: =B139*LaborNoSkill -> 2 | E139: 3 | F139: =IF(E139>0,VLOOKUP(E139,EquipCost,15)*C139,0) -> 2.431 | G139: =+FWFert4 -> 11.94496875 | I139: =SUM(F139:H139)+D139 -> 16.37596875
A140: Vicon Spreader | C140: =+C139 -> 0.2 | E140: 6 | F140: =IF(E140>0,VLOOKUP(E140,EquipCost,15)*C140,0) -> 0.627047619 | I140: =SUM(F140:H140)+D140 -> 0.627047619
A141: Lime (1 tons) | G141: =+Lime -> 35 | I141: =SUM(F141:H141)+D141 -> 35
A142: Scouting | H142: 15 | I142: =SUM(F142:H142)+D142 -> 15
A143: Bees | H143: 35 | I143: =SUM(F143:H143)+D143 -> 35
A144: Trickle Irrigation | B144: 0.5 | C144: 40 | D144: =B144*LaborNoSkill -> 5 | E144: 17 | F144: =IF(E144>0,VLOOKUP(E144,EquipCost,15)*C144,0) -> 88 | I144: 93
A145: Real Estate Tax | D145: =B145*LaborNoSkill -> 0 | F145: =IF(E145>0,VLOOKUP(E145,EquipCost,15)*C145,0) -> 0 | H145: =+RETax -> 35 | I145: 35
A146: Management | D146: =B146*LaborNoSkill -> 0 | F146: =IF(E146>0,VLOOKUP(E146,EquipCost,15)*C146,0) -> 0 | H146: =+other -> 40 | I146: 40
A148: Total | B148: =SUM(B119:B147) -> 35.77619048 | C148: =SUM(C119:C147) -> 78.91904762 | D148: =SUM(D119:D147) -> 401.4761905 | F148: =SUM(F119:F147) -> 483.4126238 | G148: =SUM(G119:G147) -> 943.7417391 | H148: =SUM(H119:H147) -> 125 | I148: =SUM(I119:I147) -> 1953.630553
A150: Tall Spindle
I151: Total Cost
A152: Year 0, Site Preparation Cost. | I152: =+year0 -> 794
A153: =+A8 -> Year 1, Planting Year. | I153: =+FWYear1 -> 15960.11858
A154: =+A56 -> Year 2, Early Bearing Year | I154: =+FWYear2 -> 1707.959567
A155: =+A86 -> Year 3, Early Bearing Year | I155: =+FWYear3 -> 1886.16535
A156: =+A117 -> Year 4, Full Bearing Year | I156: =+FWYear4 -> 1953.630553

Sheet Tall Spindle
A1: Tall Spindle
A3: The Tall Spindle orchard remains non-bearing for the 1st year.. The 1st crop is produced in the 2nd year and the orchard
A4: become full bearing in the 4th year. A reduced spray program is followed only during the 1st & 2nd year. A full bearing spray
A5: program is followed starting in year 3.
A8: Year 1, Planting Year.
A9: Activity | B9: Labor Hours | C9: Eq. Hours | D9: Labor Cost | E9: Eq. Code | F9: Eq. Cost | G9: Material Cost | H9: Other Cost | I9: Total Cost
A11: Ground Preparation
A12: 80hp tractor | B12: 0.5 | C12: =B12 -> 0.5 | D12: =B12*LaborSkill -> 7.5 | E12: 2 | F12: =IF(E12>0,VLOOKUP(E12,EquipCost,15)*C12,0) -> 11.855 | I12: =SUM(F12:H12)+D12 -> 19.355
A13: Plow | C13: =B12 -> 0.5 | E13: 8 | F13: =IF(E13>0,VLOOKUP(E13,EquipCost,15)*C13,0) -> 2.223888889 | I13: =SUM(F13:H13)+D13 -> 2.223888889
A14: 80hp tractor | B14: 0.3 | C14: =B14 -> 0.3 | D14: =B14*LaborSkill -> 4.5 | E14: 2 | F14: =IF(E14>0,VLOOKUP(E14,EquipCost,15)*C14,0) -> 7.113 | I14: =SUM(F14:H14)+D14 -> 11.613
A15: Disc | C15: =B14 -> 0.3 | E15: 9 | F15: =IF(E15>0,VLOOKUP(E15,EquipCost,15)*C15,0) -> 1.63 | I15: =SUM(F15:H15)+D15 -> 1.63
A16: Pick stone & roots | B16: 3 | C16: =B16 -> 3 | D16: =B16*LaborNoSkill -> 30 | E16: 15 | F16: =IF(E16>0,VLOOKUP(E16,EquipCost,15)*C16,0) -> 30.13125 | I16: =SUM(F16:H16)+D16 -> 60.13125
A17: Planting Trees
A18: Layout | B18: 0.5 | C18: =B18 -> 0.5 | D18: =B18*LaborSkill -> 7.5 | E18: 1 | F18: =IF(E18>0,VLOOKUP(E18,EquipCost,15)*C18,0) -> 8.4924 | I18: =SUM(F18:H18)+D18 -> 15.9924
A19: Marking | B19: 0.5 | C19: 0.5 | D19: =B19*LaborSkill -> 7.5 | E19: 1 | F19: =IF(E19>0,VLOOKUP(E19,EquipCost,15)*C19,0) -> 8.4924 | I19: =SUM(F19:H19)+D19 -> 15.9924
A20: Purchase trees | G20: =SSTree*TreeCost -> 10285 | I20: =SUM(F20:H20)+D20 -> 10285
A21: Custom Plant @ .30 /tree | H21: =SSTree*CustomPlant -> 423.5 | I21: =SUM(F21:H21)+D21 -> 423.5
A22: System
A23: Trellis | B23: 40 | D23: =B23*LaborNoSkill -> 400 | F23: =IF(E23>0,VLOOKUP(E23,EquipCost,15)*C23,0) -> 0 | G23: =+SSTrellis -> 2104.152371 | I23: =SUM(F23:H23)+D23 -> 2504.152371
A24: Trickle irrigation | B24: 8 | C24: 20 | D24: =B24*LaborNoSkill -> 80 | E24: 17 | F24: =IF(E24>0,VLOOKUP(E24,EquipCost,15)*C24,0) -> 44 | G24: =+SSIrr -> 1180.9712 | I24: =SUM(F24:H24)+D24 -> 1304.9712
A25: Training | B25: =+SSTrain1 -> 150 | C25: 2 | D25: =B25*LaborNoSkill -> 1500 | E25: 1 | F25: =IF(E25>0,VLOOKUP(E25,EquipCost,15)*C25,0) -> 33.9696 | G25: =+SSTrainMat1 -> 80 | I25: =SUM(F25:H25)+D25 -> 1613.9696
A26: Pruning | B26: =+SSPrune1 -> 2.016666667 | C26: =+B26 -> 2.016666667 | D26: =B26*LaborNoSkill -> 20.16666667 | E26: 18 | F26: =IF(E26>0,VLOOKUP(E26,EquipCost,15)*C26,0) -> 9.167766667 | I26: =SUM(F26:H26)+D26 -> 29.33443333
A27: Nematode Control | I27: =SUM(F27:H27)+D27 -> 0
A28: Herbicide Program
A29: 40 hp tractor | B29: =+SSHerbTIme -> 1.333333333 | C29: =+B29 -> 1.333333333 | D29: =B29*LaborSkill -> 20 | E29: 3 | F29: =IF(E29>0,VLOOKUP(E29,EquipCost,15)*C29,0) -> 16.20666667 | I29: =SUM(F29:H29)+D29 -> 36.20666667
A30: Weed sprayer | C30: =+C29 -> 1.333333333 | E30: 5 | F30: =IF(E30>0,VLOOKUP(E30,EquipCost,15)*C30,0) -> 5.908888889 | G30: =+SSHerb1 -> 10.5396875 | I30: =SUM(F30:H30)+D30 -> 16.44857639
A31: Spray Program
A32: 80 hp tractor | B32: =+TSSprayTime1 -> 0.225 | C32: =+B32 -> 0.225 | D32: =B32*LaborSkill -> 3.375 | E32: 2 | F32: =IF(E32>0,VLOOKUP(E32,EquipCost,15)*C32,0) -> 5.33475 | G32: =+SSSprayMat1 -> 40.72663337 | I32: =SUM(F32:H32)+D32 -> 49.43638337
A33: Airblast spr. | C33: =+C32 -> 0.225 | E33: 4 | F33: =IF(E33>0,VLOOKUP(E33,EquipCost,15)*C33,0) -> 2.559375 | I33: =SUM(F33:H33)+D33 -> 2.559375
A34: Fertilize | I34: =SUM(F34:H34)+D34 -> 0
A35: 40 hp tractor | B35: =+SSFertTime1 -> 0.1666666667 | C35: =+B35 -> 0.1666666667 | D35: =B35*LaborNoSkill -> 1.666666667 | E35: 3 | F35: =IF(E35>0,VLOOKUP(E35,EquipCost,15)*C35,0) -> 2.025833333 | G35: =+SSFert1 -> 7.5625 | I35: =SUM(F35:H35)+D35 -> 11.255
A36: Vicon Spreader | C36: 0.2 | E36: 6 | F36: =IF(E36>0,VLOOKUP(E36,EquipCost,15)*C36,0) -> 0.627047619 | I36: =SUM(F36:H36)+D36 -> 0.627047619
A37: Sod Establishment
A38: 40 hp tractor | B38: 0.3 | C38: =0.3*3 -> 0.9 | D38: =B38*LaborSkill -> 4.5 | E38: 3 | F38: =IF(E38>0,VLOOKUP(E38,EquipCost,15)*C38,0) -> 10.9395 | I38: =SUM(F38:H38)+D38 -> 15.4395
A39: Spreader | C39: =+B38 -> 0.3 | E39: 6 | F39: =IF(E39>0,VLOOKUP(E39,EquipCost,15)*C39,0) -> 0.9405714286 | G39: 11 | I39: =SUM(F39:H39)+D39 -> 11.94057143
A40: Cultipack | B40: 0.3 | C40: =B40 -> 0.3 | D40: =B40*LaborNoSkill -> 3 | E40: 12 | F40: =IF(E40>0,VLOOKUP(E40,EquipCost,15)*C40,0) -> 2.116 | I40: =SUM(F40:H40)+D40 -> 5.116
A41: Drag | B41: 0.3 | C41: =B41 -> 0.3 | D41: =B41*LaborNoSkill -> 3 | E41: 12 | F41: =IF(E41>0,VLOOKUP(E41,EquipCost,15)*C41,0) -> 2.116 | I41: =SUM(F41:H41)+D41 -> 5.116
A42: Mowing
A43: 40 hp tractor | B43: =+SSMowTime1 -> 0 | C43: =B43 -> 0 | D43: =+B43*LaborNoSkill -> 0 | E43: 3 | F43: =IF(E43>0,VLOOKUP(E43,EquipCost,15)*C43,0) -> 0 | I43: =SUM(F43:H43)+D43 -> 0
A44: Mower | C44: =B43 -> 0 | E44: 7 | F44: =IF(E44>0,VLOOKUP(E44,EquipCost,15)*C44,0) -> 0 | I44: =SUM(F44:H44)+D44 -> 0
A45: Mouse control
A46: 40 hp tractor | B46: =+SSBaitTIme1 -> 0.1666666667 | C46: =+B46 -> 0.1666666667 | D46: =+B46*LaborNoSkill -> 1.666666667 | E46: 3 | F46: =IF(E46>0,VLOOKUP(E46,EquipCost,15)*C46,0) -> 2.025833333 | I46: =SUM(F46:H46)+D46 -> 3.6925
A47: Vicon Spreader | C47: =+B46 -> 0.1666666667 | E47: 6 | F47: =IF(E47>0,VLOOKUP(E47,EquipCost,15)*C47,0) -> 0.5225396825 | G47: =+SSBait1 -> 5.5 | I47: =SUM(F47:H47)+D47 -> 6.022539683
A48: Mouse guards | I48: =SUM(F48:G48)+D48 -> 0
A49: Wildlife Control | B49: 0.3 | C49: =B49 -> 0.3 | D49: =B49*LaborNoSkill -> 3 | E49: 1 | F49: =IF(E49>0,VLOOKUP(E49,EquipCost,15)*C49,0) -> 5.09544 | G49: =+SSWild*SSTree -> 36.3 | I49: =SUM(F49:H49)+D49 -> 44.39544
A50: Scouting | I50: =SUM(F50:H50)+D50 -> 0
A51: Bees | I51: =SUM(F51:H51)+D51 -> 0
A52: Real Estate Tax | H52: =+RETax -> 35 | I52: =SUM(F52:H52)+D52 -> 35
A53: Management | B53: 2 | D53: =B53*LaborSkill -> 30 | F53: =IF(E53>0,VLOOKUP(E53,EquipCost,15)*C53,0) -> 0 | H53: =+other -> 40 | I53: =SUM(F53:H53)+D53 -> 70
A55: Total | B55: =SUM(B10:B54) -> 209.9083333 | C55: =SUM(C10:C54) -> 35.53333333 | D55: =SUM(D10:D54) -> 2127.375 | F55: =SUM(F10:F54) -> 213.4937515 | G55: =SUM(G10:G54) -> 13761.75239 | H55: =SUM(H10:H54) -> 498.5 | I55: =SUM(I10:I54) -> 16601.12114
A56: Year 2, Early Bearing Year
A57: Activity | B57: Labor Hours | C57: Eq. Hours | D57: Labor Cost | E57: Eq. Code | F57: Eq. Cost | G57: Material Cost | H57: Other Cost | I57: Total Cost
A59: Training | B59: =+SSTrain2 -> 20 | C59: 2 | D59: =B59*LaborNoSkill -> 200 | E59: 1 | F59: =IF(E59>0,VLOOKUP(E59,EquipCost,15)*C59,0) -> 33.9696 | G59: =+SSTrainMat2 -> 10 | I59: =SUM(F59:H59)+D59 -> 243.9696
A60: Pruning | B60: =+SSPrune2 -> 2.016666667 | C60: =+B60 -> 2.016666667 | D60: =B60*LaborNoSkill -> 20.16666667 | E60: 18 | F60: =IF(E60>0,VLOOKUP(E60,EquipCost,15)*C60,0) -> 9.167766667 | I60: =SUM(F60:H60)+D60 -> 29.33443333
A61: Brush Removal | B61: 0 | C61: =+B61 -> 0 | D61: =B61*LaborSkill -> 0 | E61: 3 | F61: =IF(E61>0,VLOOKUP(E61,EquipCost,15)*C61,0) -> 0 | I61: =SUM(F61:H61)+D61 -> 0
A62: Tree replacement | B62: =0.0333333333333333*SSTree*0.05 -> 2.016666667 | C62: =B62 -> 2.016666667 | D62: =B62*LaborNoSkill -> 20.16666667 | E62: 1 | F62: =IF(E62>0,VLOOKUP(E62,EquipCost,15)*C62,0) -> 34.25268 | G62: =+SSTree*TreeCost*0.05 -> 514.25 | I62: =SUM(F62:H62)+D62 -> 568.6693467
A63: Herbicide Program
A64: 40 hp tractor | B64: =+SSHerbTIme -> 1.333333333 | C64: =+B64 -> 1.333333333 | D64: =B64*LaborSkill -> 20 | E64: 3 | F64: =IF(E64>0,VLOOKUP(E64,EquipCost,15)*C64,0) -> 16.20666667 | I64: =SUM(F64:H64)+D64 -> 36.20666667
A65: Weed sprayer | C65: =+C64 -> 1.333333333 | E65: 5 | F65: =IF(E65>0,VLOOKUP(E65,EquipCost,15)*C65,0) -> 5.908888889 | G65: =+SSHerb2 -> 3.946666667 | I65: =SUM(F65:H65)+D65 -> 9.855555556
A66: Spray Program
A67: 80 hp tractor | B67: =+TSSPrayTime2 -> 2.7 | C67: =+B67 -> 2.7 | D67: =B67*LaborSkill -> 40.5 | E67: 2 | F67: =IF(E67>0,VLOOKUP(E67,EquipCost,15)*C67,0) -> 64.017 | G67: =+SSSprayMat2 -> 488.7196004 | I67: =SUM(F67:H67)+D67 -> 593.2366004
A68: Airblast spr. | C68: =+C67 -> 2.7 | E68: 4 | F68: =IF(E68>0,VLOOKUP(E68,EquipCost,15)*C68,0) -> 30.7125 | I68: =SUM(F68:H68)+D68 -> 30.7125
A69: Fertilizer
A70: 40 hp tractor | B70: =+SSFertTime2 -> 0.1666666667 | C70: 0.3 | D70: =+B70*LaborNoSkill -> 1.666666667 | E70: 3 | F70: =IF(E70>0,VLOOKUP(E70,EquipCost,15)*C70,0) -> 3.6465 | G70: =+SSFert2 -> 7.5625 | I70: =SUM(F70:H70)+D70 -> 12.87566667
A71: Vicon Spreader | C71: =+C70 -> 0.3 | E71: 6 | F71: =IF(E71>0,VLOOKUP(E71,EquipCost,15)*C71,0) -> 0.9405714286 | I71: =SUM(F71:H71)+D71 -> 0.9405714286
A72: Mowing
A73: 40 hp tractor | B73: =+SSMowTime2 -> 0.8333333333 | C73: =B73 -> 0.8333333333 | D73: =+B73*LaborNoSkill -> 8.333333333 | E73: 3 | F73: =IF(E73>0,VLOOKUP(E73,EquipCost,15)*C73,0) -> 10.12916667 | I73: =SUM(F73:H73)+D73 -> 18.4625
A74: Mower | C74: =B73 -> 0.8333333333 | E74: 7 | F74: =IF(E74>0,VLOOKUP(E74,EquipCost,15)*C74,0) -> 3.882936508 | I74: =SUM(F74:H74)+D74 -> 3.882936508
A75: Mouse control
A76: 40 hp tractor | B76: =+SSBaitTime3 -> 0.1666666667 | C76: =+B76 -> 0.1666666667 | D76: =B76*LaborNoSkill -> 1.666666667 | E76: 3 | F76: =IF(E76>0,VLOOKUP(E76,EquipCost,15)*C76,0) -> 2.025833333 | I76: =SUM(F76:H76)+D76 -> 3.6925
A77: Vicon Spreader | C77: =+C76 -> 0.1666666667 | E77: 6 | F77: =IF(E77>0,VLOOKUP(E77,EquipCost,15)*C77,0) -> 0.5225396825 | G77: =+SSBait3 -> 5.5 | I77: 6.022539683
A78: Wildlife Control | B78: 2 | C78: 1 | D78: =B78*LaborNoSkill -> 20 | E78: 1 | F78: =IF(E78>0,VLOOKUP(E78,EquipCost,15)*C78,0) -> 16.9848 | G78: =+SSWild*SSTree -> 36.3 | I78: 73.2848
A79: Scouting | H79: 15 | I79: 15
A80: Bees | H80: 35 | I80: 35
A81: Trickle Irrigation | B81: 0.5 | C81: 40 | D81: =B81*LaborNoSkill -> 5 | E81: 17 | F81: =IF(E81>0,VLOOKUP(E81,EquipCost,15)*C81,0) -> 88 | I81: 93
A82: Real Estate Tax | D82: =B82*LaborNoSkill -> 0 | F82: =IF(E82>0,VLOOKUP(E82,EquipCost,15)*C82,0) -> 0 | H82: =+RETax -> 35 | I82: 35
A83: Management | D83: =B83*LaborNoSkill -> 0 | F83: =IF(E83>0,VLOOKUP(E83,EquipCost,15)*C83,0) -> 0 | H83: =+other -> 40 | I83: 40
A85: Total | B85: =SUM(B64:B84) -> 7.7 | C85: =SUM(C64:C84) -> 51.66666667 | D85: =SUM(D64:D84) -> 97.16666667 | F85: =SUM(F64:F84) -> 242.9774032 | G85: =SUM(G64:G84) -> 542.0287671 | H85: =SUM(H64:H84) -> 125 | I85: =SUM(I58:I84) -> 1849.146217
A86: Year 3, Early Bearing Year
A87: Activity | B87: Labor Hours | C87: Eq. Hours | D87: Labor Cost | E87: Eq. Code | F87: Eq. Cost | G87: Material Cost | H87: Other Cost | I87: Total Cost
A89: Training | B89: =+SSTrain4 -> 5 | C89: 2 | D89: =B89*LaborNoSkill -> 50 | E89: 1 | F89: =IF(E89>0,VLOOKUP(E89,EquipCost,15)*C89,0) -> 33.9696 | G89: =+SSTrainMat3 -> 10 | I89: =SUM(F89:H89)+D89 -> 93.9696
A90: Pruning | B90: =+SSPrune4 -> 30.25 | C90: =+B90 -> 30.25 | D90: =B90*LaborNoSkill -> 302.5 | E90: 18 | F90: =IF(E90>0,VLOOKUP(E90,EquipCost,15)*C90,0) -> 137.5165 | I90: =SUM(F90:H90)+D90 -> 440.0165
A91: Brush Removal | B91: 2 | C91: =+B91 -> 2 | D91: =B91*LaborSkill -> 30 | E91: 3 | F91: =IF(E91>0,VLOOKUP(E91,EquipCost,15)*C91,0) -> 24.31 | I91: =SUM(F91:H91)+D91 -> 54.31
A92: Tree replacement | B92: 0.5 | C92: =B92 -> 0.5 | D92: =B92*LaborNoSkill -> 5 | E92: 1 | F92: =IF(E92>0,VLOOKUP(E92,EquipCost,15)*C92,0) -> 8.4924 | G92: =+SSTree*TreeCost*0.01 -> 102.85 | I92: =SUM(F92:H92)+D92 -> 116.3424
A93: Herbicide Program
A94: 40 hp tractor | B94: =+SSHerbTIme -> 1.333333333 | C94: =+B94 -> 1.333333333 | D94: =B94*LaborSkill -> 20 | E94: 3 | F94: =IF(E94>0,VLOOKUP(E94,EquipCost,15)*C94,0) -> 16.20666667 | I94: =SUM(F94:H94)+D94 -> 36.20666667
A95: Weed sprayer | C95: =+C94 -> 1.333333333 | E95: 5 | F95: =IF(E95>0,VLOOKUP(E95,EquipCost,15)*C95,0) -> 5.908888889 | G95: =+SSHerb3 -> 5.92 | I95: =SUM(F95:H95)+D95 -> 11.82888889
A96: Spray Program
A97: 80 hp tractor | B97: =+TSSprayTIme3 -> 4.5 | C97: =+B97 -> 4.5 | D97: =B97*LaborSkill -> 67.5 | E97: 2 | F97: =IF(E97>0,VLOOKUP(E97,EquipCost,15)*C97,0) -> 106.695 | G97: =+SSSprayMat3 -> 814.5326674 | I97: =SUM(F97:H97)+D97 -> 988.7276674
A98: Airblast spr. | C98: =+C97 -> 4.5 | E98: 4 | F98: =IF(E98>0,VLOOKUP(E98,EquipCost,15)*C98,0) -> 51.1875 | I98: =SUM(F98:H98)+D98 -> 51.1875
A99: Fertilizer
A100: 40 hp tractor | B100: =+SSFertTime3 -> 0.1666666667 | C100: =+B100 -> 0.1666666667 | D100: =B100*LaborNoSkill -> 1.666666667 | E100: 3 | F100: =IF(E100>0,VLOOKUP(E100,EquipCost,15)*C100,0) -> 2.025833333 | G100: =+SSFert3 -> 15.3140625 | I100: =SUM(F100:H100)+D100 -> 19.0065625
A101: Vicon Spreader | C101: =+C100 -> 0.1666666667 | E101: 6 | F101: =IF(E101>0,VLOOKUP(E101,EquipCost,15)*C101,0) -> 0.5225396825 | I101: =SUM(F101:H101)+D101 -> 0.5225396825
A102: Lime | G102: 0 | I102: =SUM(F102:H102)+D102 -> 0
A103: Mowing
A104: 40 hp tractor | B104: =+SSMowTime3 -> 1.25 | C104: =+B104 -> 1.25 | D104: =B104*LaborNoSkill -> 12.5 | E104: 3 | F104: =IF(E104>0,VLOOKUP(E104,EquipCost,15)*C104,0) -> 15.19375 | I104: =SUM(F104:H104)+D104 -> 27.69375
A105: Mower | C105: =+C104 -> 1.25 | E105: 7 | F105: =IF(E105>0,VLOOKUP(E105,EquipCost,15)*C105,0) -> 5.824404762 | I105: =SUM(F105:H105)+D105 -> 5.824404762
A106: Mouse control
A107: 40 hp tractor | B107: =+SSBaitTime3 -> 0.1666666667 | C107: =+B107 -> 0.1666666667 | D107: =B107*LaborNoSkill -> 1.666666667 | E107: 3 | F107: =IF(E107>0,VLOOKUP(E107,EquipCost,15)*C107,0) -> 2.025833333 | I107: =SUM(F107:H107)+D107 -> 3.6925
A108: Vicon Spreader | C108: =+C107 -> 0.1666666667 | E108: 6 | F108: =IF(E108>0,VLOOKUP(E108,EquipCost,15)*C108,0) -> 0.5225396825 | G108: =+SSBait3 -> 5.5 | I108: 6.022539683
A109: Wildlife Control | B109: 2 | C109: 1 | D109: =B109*LaborNoSkill -> 20 | E109: 1 | F109: =IF(E109>0,VLOOKUP(E109,EquipCost,15)*C109,0) -> 16.9848 | G109: =+SSWild*SSTree -> 36.3 | I109: 73.2848
A110: Scouting | H110: 15 | I110: 15
A111: Bees | H111: 35 | I111: 35
A112: Trickle Irrigation | B112: 0.5 | C112: 40 | D112: =B112*LaborNoSkill -> 5 | E112: 17 | F112: =IF(E112>0,VLOOKUP(E112,EquipCost,15)*C112,0) -> 88 | I112: 93
A113: Real Estate Tax | D113: =B113*LaborNoSkill -> 0 | F113: =IF(E113>0,VLOOKUP(E113,EquipCost,15)*C113,0) -> 0 | H113: =+RETax -> 35 | I113: 35
A114: Management | D114: =B114*LaborNoSkill -> 0 | F114: =IF(E114>0,VLOOKUP(E114,EquipCost,15)*C114,0) -> 0 | H114: =+other -> 40 | I114: 40
A116: Total | B116: =SUM(B95:B115) -> 8.583333333 | C116: =SUM(C95:C115) -> 54.5 | D116: =SUM(D95:D115) -> 108.3333333 | F116: =SUM(F95:F115) -> 294.8910897 | G116: =SUM(G95:G115) -> 877.5667299 | H116: =SUM(H95:H115) -> 125 | I116: =SUM(I88:I115) -> 2146.63632
A117: Year 4, Full Bearing Year
A118: Activity | B118: Labor Hours | C118: Eq. Hours | D118: Labor Cost | E118: Eq. Code | F118: Eq. Cost | G118: Material Cost | H118: Other Cost | I118: Total Cost
A120: Training | B120: =+SSTrain4 -> 5 | C120: 2 | D120: =B120*LaborNoSkill -> 50 | E120: 1 | F120: =IF(E120>0,VLOOKUP(E120,EquipCost,15)*C120,0) -> 33.9696 | G120: =+SSTrainMat4 -> 4 | I120: =SUM(F120:H120)+D120 -> 87.9696
A121: Pruning | B121: =+SSPrune4 -> 30.25 | C121: =+B121 -> 30.25 | D121: =B121*LaborNoSkill -> 302.5 | E121: 18 | F121: =IF(E121>0,VLOOKUP(E121,EquipCost,15)*C121,0) -> 137.5165 | I121: =SUM(F121:H121)+D121 -> 440.0165
A122: Brush Removal | B122: 2 | C122: =+B122 -> 2 | D122: =B122*LaborSkill -> 30 | E122: 3 | F122: =IF(E122>0,VLOOKUP(E122,EquipCost,15)*C122,0) -> 24.31 | I122: =SUM(F122:H122)+D122 -> 54.31
A123: Tree replacement | B123: 0.5 | C123: =B123 -> 0.5 | D123: =B123*LaborNoSkill -> 5 | E123: 1 | F123: =IF(E123>0,VLOOKUP(E123,EquipCost,15)*C123,0) -> 8.4924 | G123: =+SSTree*TreeCost*0.01 -> 102.85 | I123: =SUM(F123:H123)+D123 -> 116.3424
A124: Herbicide Program
A125: 40 hp tractor | B125: =+SSHerbTIme -> 1.333333333 | C125: =+B125 -> 1.333333333 | D125: =B125*LaborSkill -> 20 | E125: 3 | F125: =IF(E125>0,VLOOKUP(E125,EquipCost,15)*C125,0) -> 16.20666667 | I125: =SUM(F125:H125)+D125 -> 36.20666667
A126: Weed sprayer | C126: =+C125 -> 1.333333333 | E126: 5 | F126: =IF(E126>0,VLOOKUP(E126,EquipCost,15)*C126,0) -> 5.908888889 | G126: =+SSHerb4 -> 18.44445312 | I126: =SUM(F126:H126)+D126 -> 24.35334201
A127: Spray Program
A128: 80 hp tractor | B128: =+TSSprayTIme3 -> 4.5 | C128: =+B128 -> 4.5 | D128: =B128*LaborSkill -> 67.5 | E128: 2 | F128: =IF(E128>0,VLOOKUP(E128,EquipCost,15)*C128,0) -> 106.695 | G128: =+SSSprayMat4 -> 814.5326674 | I128: =SUM(F128:H128)+D128 -> 988.7276674
A129: Airblast spr. | C129: =+C128 -> 4.5 | E129: 4 | F129: =IF(E129>0,VLOOKUP(E129,EquipCost,15)*C129,0) -> 51.1875 | I129: =SUM(F129:H129)+D129 -> 51.1875
A130: Hand Pheromone | B130: 1 | D130: =B130*LaborNoSkill -> 10 | I130: =SUM(F130:H130)+D130 -> 10
A131: Mowing
A132: 40 hp tractor | B132: =+SSMowTime4 -> 1.25 | C132: =+B132 -> 1.25 | D132: =B132*LaborNoSkill -> 12.5 | E132: 3 | F132: =IF(E132>0,VLOOKUP(E132,EquipCost,15)*C132,0) -> 15.19375 | I132: =SUM(F132:H132)+D132 -> 27.69375
A133: Mower | C133: =+C132 -> 1.25 | E133: 7 | F133: =IF(E133>0,VLOOKUP(E133,EquipCost,15)*C133,0) -> 5.824404762 | I133: =SUM(F133:H133)+D133 -> 5.824404762
A134: Mouse control
A135: 40 hp tractor | B135: =+SSBaitTime4 -> 0.1666666667 | C135: =+B135 -> 0.1666666667 | D135: =B135*LaborNoSkill -> 1.666666667 | E135: 3 | F135: =IF(E135>0,VLOOKUP(E135,EquipCost,15)*C135,0) -> 2.025833333 | I135: =SUM(F135:H135)+D135 -> 3.6925
A136: Vicon Spreader | C136: =+C135 -> 0.1666666667 | E136: 6 | F136: =IF(E136>0,VLOOKUP(E136,EquipCost,15)*C136,0) -> 0.5225396825 | G136: =+SSBait4 -> 5.5 | I136: =SUM(F136:H136)+D136 -> 6.022539683
A137: Wildlife Control | B137: 2 | C137: 1 | D137: =B137*LaborNoSkill -> 20 | E137: 1 | F137: =IF(E137>0,VLOOKUP(E137,EquipCost,15)*C137,0) -> 16.9848 | G137: =+SSWild*SSTree -> 36.3 | I137: =SUM(F137:H137)+D137 -> 73.2848
A138: Fertilizer
A139: 40 hp tractor | B139: =+SSFertTime4 -> 0.1666666667 | C139: =+B139 -> 0.1666666667 | D139: =B139*LaborNoSkill -> 1.666666667 | E139: 3 | F139: =IF(E139>0,VLOOKUP(E139,EquipCost,15)*C139,0) -> 2.025833333 | G139: =+SSFert4 -> 23.065625 | I139: =SUM(F139:H139)+D139 -> 26.758125
A140: Vicon Spreader | C140: =+C139 -> 0.1666666667 | E140: 6 | F140: =IF(E140>0,VLOOKUP(E140,EquipCost,15)*C140,0) -> 0.5225396825 | I140: =SUM(F140:H140)+D140 -> 0.5225396825
A141: Lime (1 tons) | G141: =+Lime -> 35 | I141: =SUM(F141:H141)+D141 -> 35
A142: Scouting | H142: 15 | I142: =SUM(F142:H142)+D142 -> 15
A143: Bees | H143: 35 | I143: =SUM(F143:H143)+D143 -> 35
A144: Trickle Irrigation | B144: 0.5 | C144: 40 | D144: =B144*LaborNoSkill -> 5 | E144: 17 | F144: =IF(E144>0,VLOOKUP(E144,EquipCost,15)*C144,0) -> 88 | I144: 93
A145: Real Estate Tax | D145: =B145*LaborNoSkill -> 0 | F145: =IF(E145>0,VLOOKUP(E145,EquipCost,15)*C145,0) -> 0 | H145: =+RETax -> 35 | I145: 35
A146: Management | D146: =B146*LaborNoSkill -> 0 | F146: =IF(E146>0,VLOOKUP(E146,EquipCost,15)*C146,0) -> 0 | H146: =+other -> 40 | I146: 40
A148: Total | B148: =SUM(B119:B147) -> 48.66666667 | C148: =SUM(C119:C147) -> 90.58333333 | D148: =SUM(D119:D147) -> 525.8333333 | F148: =SUM(F119:F147) -> 515.3862563 | G148: =SUM(G119:G147) -> 1039.692745 | H148: =SUM(H119:H147) -> 125 | I148: =SUM(I119:I147) -> 2205.912335
A150: Tall Spindle
I151: Total Cost
A152: Year 0, Site Preparation Cost. | I152: =+year0 -> 794
A153: =+A8 -> Year 1, Planting Year. | I153: =+SSYear1 -> 16601.12114
A154: =+A56 -> Year 2, Early Bearing Year | I154: =+TSYear2 -> 1849.146217
A155: =+A86 -> Year 3, Early Bearing Year | I155: =+SSYear3 -> 2146.63632
A156: =+A117 -> Year 4, Full Bearing Year | I156: =+SSYear4 -> 2205.912335

Sheet Vertical Axe
A1: Vertical Axe
A3: The vertical axe orchard remains non-bearing for years 1 through 3. The 1st crop is produced in the 4th year and the orchard
A4: become full bearing in the 6th year. A reduced spray program is followed during the 2nd through 4th year. A full bearing spray
A5: program is followed starting in year 5.
A8: Year 1, Planting Year.
A9: Activity | B9: Labor Hours | C9: Eq. Hours | D9: Labor Cost | E9: Eq. Code | F9: Eq. Cost | G9: Material Cost | H9: Other Cost | I9: Total Cost
A11: Ground Preparation
A12: 80hp tractor | B12: 0.5 | C12: =B12 -> 0.5 | D12: =B12*LaborSkill -> 7.5 | E12: 2 | F12: =IF(E12>0,VLOOKUP(E12,EquipCost,15)*C12,0) -> 11.855 | I12: =SUM(F12:H12)+D12 -> 19.355
A13: Plow | C13: =B12 -> 0.5 | E13: 8 | F13: =IF(E13>0,VLOOKUP(E13,EquipCost,15)*C13,0) -> 2.223888889 | I13: =SUM(F13:H13)+D13 -> 2.223888889
A14: 80hp tractor | B14: 0.3 | C14: =B14 -> 0.3 | D14: =B14*LaborSkill -> 4.5 | E14: 2 | F14: =IF(E14>0,VLOOKUP(E14,EquipCost,15)*C14,0) -> 7.113 | I14: =SUM(F14:H14)+D14 -> 11.613
A15: Disc | C15: =B14 -> 0.3 | E15: 9 | F15: =IF(E15>0,VLOOKUP(E15,EquipCost,15)*C15,0) -> 1.63 | I15: =SUM(F15:H15)+D15 -> 1.63
A16: Pick stone & roots | B16: 3 | C16: =B16 -> 3 | D16: =B16*LaborNoSkill -> 30 | E16: 15 | F16: =IF(E16>0,VLOOKUP(E16,EquipCost,15)*C16,0) -> 30.13125 | I16: =SUM(F16:H16)+D16 -> 60.13125
A17: Planting Trees
A18: Layout | B18: 0.5 | C18: =B18 -> 0.5 | D18: =B18*LaborSkill -> 7.5 | E18: 1 | F18: =IF(E18>0,VLOOKUP(E18,EquipCost,15)*C18,0) -> 8.4924 | I18: =SUM(F18:H18)+D18 -> 15.9924
A19: Marking | B19: 0.5 | C19: 0.5 | D19: =B19*LaborSkill -> 7.5 | E19: 1 | F19: =IF(E19>0,VLOOKUP(E19,EquipCost,15)*C19,0) -> 8.4924 | I19: =SUM(F19:H19)+D19 -> 15.9924
A20: Purchase trees | G20: =VATree*TreeCost -> 5289.428571 | I20: =SUM(F20:H20)+D20 -> 5289.428571
A21: Custom Plant @ .30 /tree | H21: =VATree*CustomPlant -> 217.8 | I21: =SUM(F21:H21)+D21 -> 217.8
A22: System
A23: Trellis | B23: 40 | D23: =B23*LaborNoSkill -> 400 | F23: =IF(E23>0,VLOOKUP(E23,EquipCost,15)*C23,0) -> 0 | G23: =+VATrellis -> 1633.782718 | I23: =SUM(F23:H23)+D23 -> 2033.782718
A24: Trickle irrigation | B24: 8 | C24: 20 | D24: =B24*LaborNoSkill -> 80 | E24: 17 | F24: =IF(E24>0,VLOOKUP(E24,EquipCost,15)*C24,0) -> 44 | G24: =+VAIrr -> 1108.3712 | I24: =SUM(F24:H24)+D24 -> 1232.3712
A25: Training | B25: =+VATrain1 -> 30 | C25: 2 | D25: =B25*LaborNoSkill -> 300 | E25: 1 | F25: =IF(E25>0,VLOOKUP(E25,EquipCost,15)*C25,0) -> 33.9696 | G25: =+VATrainMat1 -> 20 | I25: =SUM(F25:H25)+D25 -> 353.9696
A26: Pruning | B26: =+VAPrune1 -> 1.037142857 | C26: =+B26 -> 1.037142857 | D26: =B26*LaborNoSkill -> 10.37142857 | E26: 18 | F26: =IF(E26>0,VLOOKUP(E26,EquipCost,15)*C26,0) -> 4.714851429 | I26: =SUM(F26:H26)+D26 -> 15.08628
A27: Nematode Control | I27: =SUM(F27:H27)+D27 -> 0
A28: Herbicide Program
A29: 40 hp tractor | B29: =+VAHerbTime -> 1.142857143 | C29: =+B29 -> 1.142857143 | D29: =B29*LaborSkill -> 17.14285714 | E29: 3 | F29: =IF(E29>0,VLOOKUP(E29,EquipCost,15)*C29,0) -> 13.89142857 | I29: =SUM(F29:H29)+D29 -> 31.03428571
A30: Weed sprayer | C30: =+C29 -> 1.142857143 | E30: 5 | F30: =IF(E30>0,VLOOKUP(E30,EquipCost,15)*C30,0) -> 5.064761905 | G30: =+VAHerb1 -> 3.382857143 | I30: =SUM(F30:H30)+D30 -> 8.447619048
A31: Spray Program
A32: 80 hp tractor | B32: =+VASprayTime1 -> 0.18 | C32: =+B32 -> 0.18 | D32: =B32*LaborSkill -> 2.7 | E32: 2 | F32: =IF(E32>0,VLOOKUP(E32,EquipCost,15)*C32,0) -> 4.2678 | G32: =+VASprayMat1 -> 46.54472385 | I32: =SUM(F32:H32)+D32 -> 53.51252385
A33: Airblast spr. | C33: =+C32 -> 0.18 | E33: 4 | F33: =IF(E33>0,VLOOKUP(E33,EquipCost,15)*C33,0) -> 2.0475 | I33: =SUM(F33:H33)+D33 -> 2.0475
A34: Fertilize | I34: =SUM(F34:H34)+D34 -> 0
A35: 40 hp tractor | B35: =+VAFertTime1 -> 0.1428571429 | C35: =+B35 -> 0.1428571429 | D35: =B35*LaborNoSkill -> 1.428571429 | E35: 3 | F35: =IF(E35>0,VLOOKUP(E35,EquipCost,15)*C35,0) -> 1.736428571 | G35: =+VAFert1 -> 3.889285714 | I35: =SUM(F35:H35)+D35 -> 7.054285714
A36: Vicon Spreader | C36: 0.2 | E36: 6 | F36: =IF(E36>0,VLOOKUP(E36,EquipCost,15)*C36,0) -> 0.627047619 | I36: =SUM(F36:H36)+D36 -> 0.627047619
A37: Sod Establishment
A38: 40 hp tractor | B38: 0.3 | C38: =0.3*3 -> 0.9 | D38: =B38*LaborSkill -> 4.5 | E38: 3 | F38: =IF(E38>0,VLOOKUP(E38,EquipCost,15)*C38,0) -> 10.9395 | I38: =SUM(F38:H38)+D38 -> 15.4395
A39: Spreader | C39: =+B38 -> 0.3 | E39: 6 | F39: =IF(E39>0,VLOOKUP(E39,EquipCost,15)*C39,0) -> 0.9405714286 | G39: 11 | I39: =SUM(F39:H39)+D39 -> 11.94057143
A40: Cultipack | B40: 0.3 | C40: =B40 -> 0.3 | D40: =B40*LaborNoSkill -> 3 | E40: 12 | F40: =IF(E40>0,VLOOKUP(E40,EquipCost,15)*C40,0) -> 2.116 | I40: =SUM(F40:H40)+D40 -> 5.116
A41: Drag | B41: 0.3 | C41: =B41 -> 0.3 | D41: =B41*LaborNoSkill -> 3 | E41: 12 | F41: =IF(E41>0,VLOOKUP(E41,EquipCost,15)*C41,0) -> 2.116 | I41: =SUM(F41:H41)+D41 -> 5.116
A42: Mowing
A43: 40 hp tractor | B43: =+VAMowTIme1 -> 0 | C43: =B43 -> 0 | D43: =+B43*LaborNoSkill -> 0 | E43: 3 | F43: =IF(E43>0,VLOOKUP(E43,EquipCost,15)*C43,0) -> 0 | I43: =SUM(F43:H43)+D43 -> 0
A44: Mower | C44: =B43 -> 0 | E44: 7 | F44: =IF(E44>0,VLOOKUP(E44,EquipCost,15)*C44,0) -> 0 | I44: =SUM(F44:H44)+D44 -> 0
A45: Mouse control
A46: 40 hp tractor | B46: =+VABaitTime1 -> 0.1428571429 | C46: =+B46 -> 0.1428571429 | D46: =+B46*LaborNoSkill -> 1.428571429 | E46: 3 | F46: =IF(E46>0,VLOOKUP(E46,EquipCost,15)*C46,0) -> 1.736428571 | I46: =SUM(F46:H46)+D46 -> 3.165
A47: Vicon Spreader | C47: =+B46 -> 0.1428571429 | E47: 6 | F47: =IF(E47>0,VLOOKUP(E47,EquipCost,15)*C47,0) -> 0.4478911565 | G47: =+VABait1 -> 5.5 | I47: =SUM(F47:H47)+D47 -> 5.947891156
A48: Mouse guards | I48: =SUM(F48:G48)+D48 -> 0
A49: Wildlife Control | B49: 0.3 | C49: =B49 -> 0.3 | D49: =B49*LaborNoSkill -> 3 | E49: 1 | F49: =IF(E49>0,VLOOKUP(E49,EquipCost,15)*C49,0) -> 5.09544 | G49: =+VAWild*VATree -> 24.89142857 | I49: =SUM(F49:H49)+D49 -> 32.98686857
A50: Scouting | I50: =SUM(F50:H50)+D50 -> 0
A51: Bees | I51: =SUM(F51:H51)+D51 -> 0
A52: Real Estate Tax | H52: =+RETax -> 35 | I52: =SUM(F52:H52)+D52 -> 35
A53: Management | B53: 2 | D53: =B53*LaborSkill -> 30 | F53: =IF(E53>0,VLOOKUP(E53,EquipCost,15)*C53,0) -> 0 | H53: =+other -> 40 | I53: =SUM(F53:H53)+D53 -> 70
A55: Total | B55: =SUM(B10:B54) -> 88.64571429 | C55: =SUM(C10:C54) -> 34.01142857 | D55: =SUM(D10:D54) -> 913.5714286 | F55: =SUM(F10:F54) -> 203.6491881 | G55: =SUM(G10:G54) -> 8146.790785 | H55: =SUM(H10:H54) -> 292.8 | I55: =SUM(I10:I54) -> 9556.811402
A56: Year 2, Non-bearing Year
A57: Activity | B57: Labor Hours | C57: Eq. Hours | D57: Labor Cost | E57: Eq. Code | F57: Eq. Cost | G57: Material Cost | H57: Other Cost | I57: Total Cost
A59: Training | B59: =+VATrain2 -> 80 | C59: 2 | D59: =B59*LaborNoSkill -> 800 | E59: 1 | F59: =IF(E59>0,VLOOKUP(E59,EquipCost,15)*C59,0) -> 33.9696 | G59: =+VATrainMat2 -> 60 | I59: =SUM(F59:H59)+D59 -> 893.9696
A60: Pruning | B60: =+VAPrune2 -> 1.037142857 | C60: =+B60 -> 1.037142857 | D60: =B60*LaborNoSkill -> 10.37142857 | E60: 18 | F60: =IF(E60>0,VLOOKUP(E60,EquipCost,15)*C60,0) -> 4.714851429 | I60: =SUM(F60:H60)+D60 -> 15.08628
A61: Brush Removal | B61: 0 | C61: =+B61 -> 0 | D61: =B61*LaborSkill -> 0 | E61: 3 | F61: =IF(E61>0,VLOOKUP(E61,EquipCost,15)*C61,0) -> 0 | I61: =SUM(F61:H61)+D61 -> 0
A62: Tree replacement | B62: =0.0333333333333333*VATree*0.05 -> 1.037142857 | C62: =B62 -> 1.037142857 | D62: =B62*LaborNoSkill -> 10.37142857 | E62: 1 | F62: =IF(E62>0,VLOOKUP(E62,EquipCost,15)*C62,0) -> 17.615664 | G62: =+VATree*TreeCost*0.01 -> 52.89428571 | I62: =SUM(F62:H62)+D62 -> 80.88137829
A63: Herbicide Program
A64: 40 hp tractor | B64: =+VAHerbTime -> 1.142857143 | C64: =+B64 -> 1.142857143 | D64: =B64*LaborSkill -> 17.14285714 | E64: 3 | F64: =IF(E64>0,VLOOKUP(E64,EquipCost,15)*C64,0) -> 13.89142857 | I64: =SUM(F64:H64)+D64 -> 31.03428571
A65: Weed sprayer | C65: =+C64 -> 1.142857143 | E65: 5 | F65: =IF(E65>0,VLOOKUP(E65,EquipCost,15)*C65,0) -> 5.064761905 | G65: =+VAHerb2 -> 3.382857143 | I65: =SUM(F65:H65)+D65 -> 8.447619048
A66: Spray Program
A67: 80 hp tractor | B67: =+VASprayTime2 -> 0.72 | C67: =+B67 -> 0.72 | D67: =B67*LaborSkill -> 10.8 | E67: 2 | F67: =IF(E67>0,VLOOKUP(E67,EquipCost,15)*C67,0) -> 17.0712 | G67: =+VASprayMat2 -> 186.1788954 | I67: =SUM(F67:H67)+D67 -> 214.0500954
A68: Airblast spr. | C68: =+C67 -> 0.72 | E68: 4 | F68: =IF(E68>0,VLOOKUP(E68,EquipCost,15)*C68,0) -> 8.19 | I68: =SUM(F68:H68)+D68 -> 8.19
A69: Fertilizer
A70: 40 hp tractor | B70: =+VAFertTime2 -> 0.1428571429 | C70: 0.3 | D70: =+B70*LaborNoSkill -> 1.428571429 | E70: 3 | F70: =IF(E70>0,VLOOKUP(E70,EquipCost,15)*C70,0) -> 3.6465 | G70: =+VAFert2 -> 5.833928571 | I70: =SUM(F70:H70)+D70 -> 10.909
A71: Vicon Spreader | C71: =+C70 -> 0.3 | D71: =B71*LaborNoSkill -> 0 | E71: 6 | F71: =IF(E71>0,VLOOKUP(E71,EquipCost,15)*C71,0) -> 0.9405714286 | I71: =SUM(F71:H71)+D71 -> 0.9405714286
A72: Mowing
A73: 40 hp tractor | B73: =+VAMowTime2 -> 0.7142857143 | C73: =B73 -> 0.7142857143 | D73: =+B73*LaborNoSkill -> 7.142857143 | E73: 3 | F73: =IF(E73>0,VLOOKUP(E73,EquipCost,15)*C73,0) -> 8.682142857 | I73: =SUM(F73:H73)+D73 -> 15.825
A74: Mower | C74: =B73 -> 0.7142857143 | E74: 7 | F74: =IF(E74>0,VLOOKUP(E74,EquipCost,15)*C74,0) -> 3.328231293 | I74: =SUM(F74:H74)+D74 -> 3.328231293
A75: Mouse control
A76: 40 hp tractor | B76: =+VABaitTime2 -> 0.1428571429 | C76: =B76 -> 0.1428571429 | D76: =B76*LaborNoSkill -> 1.428571429 | E76: 3 | F76: =IF(E76>0,VLOOKUP(E76,EquipCost,15)*C76,0) -> 1.736428571 | I76: =SUM(F76:H76)+D76 -> 3.165
A77: Vicon Spreader | C77: 0.2 | E77: 6 | F77: =IF(E77>0,VLOOKUP(E77,EquipCost,15)*C77,0) -> 0.627047619 | G77: =+VABait2 -> 5.5 | I77: =SUM(F77:H77)+D77 -> 6.127047619
A78: Wildlife Control | B78: 2 | C78: 1 | D78: =B78*LaborNoSkill -> 20 | E78: 1 | F78: =IF(E78>0,VLOOKUP(E78,EquipCost,15)*C78,0) -> 16.9848 | G78: =+VAWild*VATree -> 24.89142857 | I78: =SUM(F78:H78)+D78 -> 61.87622857
A79: Scouting | I79: =SUM(F79:H79)+D79 -> 0
A80: Bees | I80: 0
A81: Trickle Irrigation | B81: 0.5 | C81: 40 | D81: =B81*LaborNoSkill -> 5 | E81: 17 | F81: =IF(E81>0,VLOOKUP(E81,EquipCost,15)*C81,0) -> 88 | I81: 93
A82: Real Estate Tax | D82: =B82*LaborNoSkill -> 0 | F82: =IF(E82>0,VLOOKUP(E82,EquipCost,15)*C82,0) -> 0 | H82: =+RETax -> 35 | I82: 35
A83: Management | D83: =B83*LaborNoSkill -> 0 | F83: =IF(E83>0,VLOOKUP(E83,EquipCost,15)*C83,0) -> 0 | H83: =+other -> 40 | I83: 40
A85: Total | B85: =SUM(B63:B84) -> 5.362857143 | C85: =SUM(C63:C84) -> 47.09714286 | D85: =SUM(D63:D84) -> 62.94285714 | F85: =SUM(F63:F84) -> 168.1631122 | G85: =SUM(G63:G84) -> 225.7871097 | H85: =SUM(H63:H84) -> 75 | I85: =SUM(I59:I84) -> 1521.830337
A86: Year 3, Early Cropping Year
A87: Activity | B87: Labor Hours | C87: Eq. Hours | D87: Labor Cost | E87: Eq. Code | F87: Eq. Cost | G87: Material Cost | H87: Other Cost | I87: Total Cost
A88: Training | B88: =+VATrain4 -> 20 | C88: 2 | D88: =B88*LaborNoSkill -> 200 | E88: 1 | F88: =IF(E88>0,VLOOKUP(E88,EquipCost,15)*C88,0) -> 33.9696 | G88: =+VATrainMat3 -> 40 | I88: =SUM(F88:H88)+D88 -> 273.9696
A89: Pruning | B89: =+VAPrune4 -> 5.185714286 | C89: =+B89 -> 5.185714286 | D89: =B89*LaborNoSkill -> 51.85714286 | E89: 18 | F89: =IF(E89>0,VLOOKUP(E89,EquipCost,15)*C89,0) -> 23.57425714 | I89: =SUM(F89:H89)+D89 -> 75.4314
A90: Brush Removal | B90: 0.5 | C90: =+B90 -> 0.5 | D90: =B90*LaborSkill -> 7.5 | E90: 3 | F90: =IF(E90>0,VLOOKUP(E90,EquipCost,15)*C90,0) -> 6.0775 | I90: =SUM(F90:H90)+D90 -> 13.5775
A91: Tree replacement | B91: 0.5 | C91: =B91 -> 0.5 | D91: =B91*LaborNoSkill -> 5 | E91: 1 | F91: =IF(E91>0,VLOOKUP(E91,EquipCost,15)*C91,0) -> 8.4924 | G91: =+VATree*TreeCost*0.01 -> 52.89428571 | I91: =SUM(F91:H91)+D91 -> 66.38668571
A92: Herbicide Program
A93: 40 hp tractor | B93: =+VAHerbTime -> 1.142857143 | C93: =+B93 -> 1.142857143 | D93: =B93*LaborSkill -> 17.14285714 | E93: 3 | F93: =IF(E93>0,VLOOKUP(E93,EquipCost,15)*C93,0) -> 13.89142857 | I93: =SUM(F93:H93)+D93 -> 31.03428571
A94: Weed sprayer | C94: =+B93 -> 1.142857143 | E94: 5 | F94: =IF(E94>0,VLOOKUP(E94,EquipCost,15)*C94,0) -> 5.064761905 | G94: =+VAHerb3 -> 3.382857143 | I94: =SUM(F94:H94)+D94 -> 8.447619048
A95: Spray Program
A96: 80 hp tractor | B96: =+VASprayTIme3 -> 2.88 | C96: =+B96 -> 2.88 | D96: =B96*LaborSkill -> 43.2 | E96: 2 | F96: =IF(E96>0,VLOOKUP(E96,EquipCost,15)*C96,0) -> 68.2848 | G96: =+VASprayMat3 -> 744.7155816 | I96: =SUM(F96:H96)+D96 -> 856.2003816
A97: Airblast spr. | C97: =+C96 -> 2.88 | E97: 4 | F97: =IF(E97>0,VLOOKUP(E97,EquipCost,15)*C97,0) -> 32.76 | I97: =SUM(F97:H97)+D97 -> 32.76
A98: Fertilizer
A99: 40 hp tractor | B99: =+VAFertTime3 -> 0.1428571429 | C99: =+B99 -> 0.1428571429 | D99: =B99*LaborNoSkill -> 1.428571429 | E99: 3 | F99: =IF(E99>0,VLOOKUP(E99,EquipCost,15)*C99,0) -> 1.736428571 | G99: =+VAFert3 -> 7.778571429 | I99: =SUM(F99:H99)+D99 -> 10.94357143
A100: Vicon Spreader | C100: =+C99 -> 0.1428571429 | E100: 6 | F100: =IF(E100>0,VLOOKUP(E100,EquipCost,15)*C100,0) -> 0.4478911565 | I100: =SUM(F100:H100)+D100 -> 0.4478911565
A101: Lime | G101: 0 | I101: =SUM(F101:H101)+D101 -> 0
A102: Mowing
A103: 40 hp tractor | B103: =+VAMowTime3 -> 1.071428571 | C103: =+B103 -> 1.071428571 | D103: =B103*LaborNoSkill -> 10.71428571 | E103: 3 | F103: =IF(E103>0,VLOOKUP(E103,EquipCost,15)*C103,0) -> 13.02321429 | I103: =SUM(F103:H103)+D103 -> 23.7375
A104: Mower | C104: =+C103 -> 1.071428571 | E104: 7 | F104: =IF(E104>0,VLOOKUP(E104,EquipCost,15)*C104,0) -> 4.992346939 | I104: =SUM(F104:H104)+D104 -> 4.992346939
A105: Mouse control | C105: Sevin 80S
A106: 40 hp tractor | B106: =+VABaitTime3 -> 0.1428571429 | C106: =+B106 -> 0.1428571429 | D106: =B106*LaborNoSkill -> 1.428571429 | E106: 3 | F106: =IF(E106>0,VLOOKUP(E106,EquipCost,15)*C106,0) -> 1.736428571 | I106: =SUM(F106:H106)+D106 -> 3.165
A107: Vicon Spreader | C107: =+C106 -> 0.1428571429 | E107: 6 | F107: =IF(E107>0,VLOOKUP(E107,EquipCost,15)*C107,0) -> 0.4478911565 | G107: =+VABait3 -> 5.5 | I107: 5.947891156
A108: Wildlife Control | B108: 2 | C108: 1 | D108: =B108*LaborNoSkill -> 20 | E108: 1 | F108: =IF(E108>0,VLOOKUP(E108,EquipCost,15)*C108,0) -> 16.9848 | G108: =+VAWild*VATree -> 24.89142857 | I108: 61.87622857
A109: Scouting | I109: 0
A110: Bees | I110: 0
A111: Trickle Irrigation | B111: 0.5 | C111: 40 | D111: =B111*LaborNoSkill -> 5 | E111: 17 | F111: =IF(E111>0,VLOOKUP(E111,EquipCost,15)*C111,0) -> 88 | I111: 93
A112: Real Estate Tax | D112: =B112*LaborNoSkill -> 0 | F112: =IF(E112>0,VLOOKUP(E112,EquipCost,15)*C112,0) -> 0 | H112: =+RETax -> 35 | I112: 35
A113: Management | D113: =B113*LaborNoSkill -> 0 | F113: =IF(E113>0,VLOOKUP(E113,EquipCost,15)*C113,0) -> 0 | H113: =+other -> 40 | I113: 40
A115: Total | B115: =SUM(B93:B114) -> 7.88 | C115: =SUM(C93:C114) -> 51.76 | D115: =SUM(D93:D114) -> 98.91428571 | F115: =SUM(F93:F114) -> 247.3699912 | G115: =SUM(G93:G114) -> 786.2684387 | H115: =SUM(H93:H114) -> 75 | I115: =SUM(I88:I114) -> 1636.917901
A116: Year 4, Early Cropping Year
A117: Activity | B117: Labor Hours | C117: Eq. Hours | D117: Labor Cost | E117: Eq. Code | F117: Eq. Cost | G117: Material Cost | H117: Other Cost | I117: Total Cost
A119: Training | B119: =+VATrain4 -> 20 | C119: 2 | D119: =B119*LaborNoSkill -> 200 | E119: 1 | F119: =IF(E119>0,VLOOKUP(E119,EquipCost,15)*C119,0) -> 33.9696 | G119: =+VATrainMat4 -> 20 | I119: =SUM(F119:H119)+D119 -> 253.9696
A120: Pruning | B120: =+VAPrune4 -> 5.185714286 | C120: =+B120 -> 5.185714286 | D120: =B120*LaborNoSkill -> 51.85714286 | E120: 18 | F120: =IF(E120>0,VLOOKUP(E120,EquipCost,15)*C120,0) -> 23.57425714 | I120: =SUM(F120:H120)+D120 -> 75.4314
A121: Brush Removal | B121: 0.5 | C121: =+B121 -> 0.5 | D121: =B121*LaborSkill -> 7.5 | E121: 3 | F121: =IF(E121>0,VLOOKUP(E121,EquipCost,15)*C121,0) -> 6.0775 | I121: =SUM(F121:H121)+D121 -> 13.5775
A122: Tree replacement | B122: 0.5 | C122: =B122 -> 0.5 | D122: =B122*LaborNoSkill -> 5 | E122: 1 | F122: =IF(E122>0,VLOOKUP(E122,EquipCost,15)*C122,0) -> 8.4924 | G122: =+VATree*TreeCost*0.01 -> 52.89428571 | I122: =SUM(F122:H122)+D122 -> 66.38668571
A123: Herbicide Program
A124: 40 hp tractor | B124: =+VAHerbTime -> 1.142857143 | C124: =+B124 -> 1.142857143 | D124: =B124*LaborSkill -> 17.14285714 | E124: 3 | F124: =IF(E124>0,VLOOKUP(E124,EquipCost,15)*C124,0) -> 13.89142857 | I124: =SUM(F124:H124)+D124 -> 31.03428571
A125: Weed sprayer | C125: =+C124 -> 1.142857143 | E125: 5 | F125: =IF(E125>0,VLOOKUP(E125,EquipCost,15)*C125,0) -> 5.064761905 | G125: =+VAHerb4 -> 15.80953125 | I125: =SUM(F125:H125)+D125 -> 20.87429315
A126: Spray Program
A127: 80 hp tractor | B127: =+VASprayTime4 -> 3.6 | C127: =+B127 -> 3.6 | D127: =B127*LaborSkill -> 54 | E127: 2 | F127: =IF(E127>0,VLOOKUP(E127,EquipCost,15)*C127,0) -> 85.356 | G127: =+VASprayMat4 -> 930.894477 | I127: =SUM(F127:H127)+D127 -> 1070.250477
A128: Airblast spr. | C128: =+C127 -> 3.6 | E128: 4 | F128: =IF(E128>0,VLOOKUP(E128,EquipCost,15)*C128,0) -> 40.95 | I128: =SUM(F128:H128)+D128 -> 40.95
A129: Mowing
A130: 40 hp tractor | B130: =+VAMowTime4 -> 1.071428571 | C130: =+B130 -> 1.071428571 | D130: =B130*LaborNoSkill -> 10.71428571 | E130: 3 | F130: =IF(E130>0,VLOOKUP(E130,EquipCost,15)*C130,0) -> 13.02321429 | I130: =SUM(F130:H130)+D130 -> 23.7375
A131: Mower | C131: =+C130 -> 1.071428571 | E131: 7 | F131: =IF(E131>0,VLOOKUP(E131,EquipCost,15)*C131,0) -> 4.992346939 | I131: =SUM(F131:H131)+D131 -> 4.992346939
A132: Mouse control
A133: 40 hp tractor | B133: =+VABaitTime4 -> 0.1428571429 | C133: =+B133 -> 0.1428571429 | D133: =B133*LaborNoSkill -> 1.428571429 | E133: 3 | F133: =IF(E133>0,VLOOKUP(E133,EquipCost,15)*C133,0) -> 1.736428571 | I133: =SUM(F133:H133)+D133 -> 3.165
A134: Vicon Spreader | C134: =+C133 -> 0.1428571429 | E134: 6 | F134: =IF(E134>0,VLOOKUP(E134,EquipCost,15)*C134,0) -> 0.4478911565 | G134: =+VABait4 -> 5.5 | I134: =SUM(F134:H134)+D134 -> 5.947891156
A135: Wildlife Control | B135: 2 | C135: 1 | D135: =B135*LaborNoSkill -> 20 | E135: 1 | F135: =IF(E135>0,VLOOKUP(E135,EquipCost,15)*C135,0) -> 16.9848 | G135: =+VAWild*VATree -> 24.89142857 | I135: =SUM(F135:H135)+D135 -> 61.87622857
A136: Fertilizer
A137: 40 hp tractor | B137: =+VAFertTime4 -> 0.1428571429 | C137: =+B137 -> 0.1428571429 | D137: =B137*LaborNoSkill -> 1.428571429 | E137: 3 | F137: =IF(E137>0,VLOOKUP(E137,EquipCost,15)*C137,0) -> 1.736428571 | G137: =+VAFert4 -> 14.97375 | I137: =SUM(F137:H137)+D137 -> 18.13875
A138: Vicon Spreader | C138: =+C137 -> 0.1428571429 | E138: 6 | F138: =IF(E138>0,VLOOKUP(E138,EquipCost,15)*C138,0) -> 0.4478911565 | I138: =SUM(F138:H138)+D138 -> 0.4478911565
A139: Lime (1 tons) | G139: =+Lime -> 35 | I139: =SUM(F139:H139)+D139 -> 35
A140: Scouting | H140: 15 | I140: =SUM(F140:H140)+D140 -> 15
A141: Bees | H141: 35 | I141: =SUM(F141:H141)+D141 -> 35
A142: Trickle Irrigation | B142: 0.5 | C142: 40 | D142: =B142*LaborNoSkill -> 5 | E142: 17 | F142: =IF(E142>0,VLOOKUP(E142,EquipCost,15)*C142,0) -> 88 | I142: 93
A143: Real Estate Tax | D143: =B143*LaborNoSkill -> 0 | F143: =IF(E143>0,VLOOKUP(E143,EquipCost,15)*C143,0) -> 0 | H143: =+RETax -> 35 | I143: 35
A144: Management | D144: =B144*LaborNoSkill -> 0 | F144: =IF(E144>0,VLOOKUP(E144,EquipCost,15)*C144,0) -> 0 | H144: =+other -> 40 | I144: 40
A146: Total | B146: =SUM(B118:B145) -> 34.78571429 | C146: =SUM(C118:C145) -> 61.38571429 | D146: =SUM(D118:D145) -> 374.0714286 | F146: =SUM(F118:F145) -> 344.7449483 | G146: =SUM(G118:G145) -> 1099.963473 | H146: =SUM(H118:H145) -> 125 | I146: =SUM(I118:I145) -> 1943.779849
A147: Year 5, Early Cropping Year
A148: Activity | B148: Labor Hours | C148: Eq. Hours | D148: Labor Cost | E148: Eq. Code | F148: Eq. Cost | G148: Material Cost | H148: Other Cost | I148: Total Cost
A150: Training | B150: =+VATrain5 -> 10 | C150: 2 | D150: =B150*LaborNoSkill -> 100 | E150: 1 | F150: =IF(E150>0,VLOOKUP(E150,EquipCost,15)*C150,0) -> 33.9696 | G150: =+VATrainMat5 -> 10 | I150: =SUM(F150:H150)+D150 -> 143.9696
A151: Pruning | B151: =+VAPrune5 -> 10.37142857 | C151: =+B151 -> 10.37142857 | D151: =B151*LaborNoSkill -> 103.7142857 | E151: 18 | F151: =IF(E151>0,VLOOKUP(E151,EquipCost,15)*C151,0) -> 47.14851429 | I151: =SUM(F151:H151)+D151 -> 150.8628
A152: Brush Removal | B152: 1 | C152: =+B152 -> 1 | D152: =B152*LaborSkill -> 15 | E152: 3 | F152: =IF(E152>0,VLOOKUP(E152,EquipCost,15)*C152,0) -> 12.155 | I152: =SUM(F152:H152)+D152 -> 27.155
A153: Tree replacement | B153: 0.5 | C153: =B153 -> 0.5 | D153: =B153*LaborNoSkill -> 5 | E153: 1 | F153: =IF(E153>0,VLOOKUP(E153,EquipCost,15)*C153,0) -> 8.4924 | G153: =+VATree*TreeCost*0.01 -> 52.89428571 | I153: =SUM(F153:H153)+D153 -> 66.38668571
A154: Herbicide Program
A155: 40 hp tractor | B155: =+VAHerbTime -> 1.142857143 | C155: =+B155 -> 1.142857143 | D155: =B155*LaborSkill -> 17.14285714 | E155: 3 | F155: =IF(E155>0,VLOOKUP(E155,EquipCost,15)*C155,0) -> 13.89142857 | I155: =SUM(F155:H155)+D155 -> 31.03428571
A156: Weed sprayer | C156: =+C155 -> 1.142857143 | E156: 5 | F156: =IF(E156>0,VLOOKUP(E156,EquipCost,15)*C156,0) -> 5.064761905 | G156: =+VAHerb5 -> 15.80953125 | I156: =SUM(F156:H156)+D156 -> 20.87429315
A157: Spray Program
A158: 80 hp tractor | B158: =+VASprayTime4 -> 3.6 | C158: =+B158 -> 3.6 | D158: =B158*LaborSkill -> 54 | E158: 2 | F158: =IF(E158>0,VLOOKUP(E158,EquipCost,15)*C158,0) -> 85.356 | G158: =+VASprayMat5 -> 930.894477 | I158: =SUM(F158:H158)+D158 -> 1070.250477
A159: Airblast spr. | C159: =+C158 -> 3.6 | E159: 4 | F159: =IF(E159>0,VLOOKUP(E159,EquipCost,15)*C159,0) -> 40.95 | I159: =SUM(F159:H159)+D159 -> 40.95
A160: Mowing
A161: 40 hp tractor | B161: =+VAMowTime5 -> 1.071428571 | C161: =+B161 -> 1.071428571 | D161: =B161*LaborNoSkill -> 10.71428571 | E161: 3 | F161: =IF(E161>0,VLOOKUP(E161,EquipCost,15)*C161,0) -> 13.02321429 | I161: =SUM(F161:H161)+D161 -> 23.7375
A162: Mower | C162: =+C161 -> 1.071428571 | E162: 7 | F162: =IF(E162>0,VLOOKUP(E162,EquipCost,15)*C162,0) -> 4.992346939 | I162: =SUM(F162:H162)+D162 -> 4.992346939
A163: Mouse control
A164: 40 hp tractor | B164: =+VABaitTime5 -> 0.1428571429 | C164: =+B164 -> 0.1428571429 | D164: =B164*LaborNoSkill -> 1.428571429 | E164: 3 | F164: =IF(E164>0,VLOOKUP(E164,EquipCost,15)*C164,0) -> 1.736428571 | I164: =SUM(F164:H164)+D164 -> 3.165
A165: Vicon Spreader | C165: =+C164 -> 0.1428571429 | E165: 6 | F165: =IF(E165>0,VLOOKUP(E165,EquipCost,15)*C165,0) -> 0.4478911565 | G165: =+VABait5 -> 5.5 | I165: =SUM(F165:H165)+D165 -> 5.947891156
A166: Wildlife Control | B166: 2 | C166: 1 | D166: =B166*LaborNoSkill -> 20 | E166: 1 | F166: =IF(E166>0,VLOOKUP(E166,EquipCost,15)*C166,0) -> 16.9848 | G166: =+VAWild*VATree -> 24.89142857 | I166: =SUM(F166:H166)+D166 -> 61.87622857
A167: Fertilizer
A168: 40 hp tractor | B168: =+VAFertTime5 -> 0.1428571429 | C168: =+B168 -> 0.1428571429 | D168: =B168*LaborNoSkill -> 1.428571429 | E168: 3 | F168: =IF(E168>0,VLOOKUP(E168,EquipCost,15)*C168,0) -> 1.736428571 | G168: =+VAFert5 -> 14.97375 | I168: =SUM(F168:H168)+D168 -> 18.13875
A169: Vicon Spreader | C169: =+C168 -> 0.1428571429 | E169: 6 | F169: =IF(E169>0,VLOOKUP(E169,EquipCost,15)*C169,0) -> 0.4478911565 | I169: =SUM(F169:H169)+D169 -> 0.4478911565
A170: Lime (1 tons) | G170: =+Lime -> 35 | I170: =SUM(F170:H170)+D170 -> 35
A171: Scouting | H171: 15 | I171: =SUM(F171:H171)+D171 -> 15
A172: Bees | H172: 35 | I172: =SUM(F172:H172)+D172 -> 35
A173: Trickle Irrigation | B173: 0.5 | C173: 40 | D173: =B173*LaborNoSkill -> 5 | E173: 17 | F173: =IF(E173>0,VLOOKUP(E173,EquipCost,15)*C173,0) -> 88 | I173: 93
A174: Real Estate Tax | D174: =B174*LaborNoSkill -> 0 | F174: =IF(E174>0,VLOOKUP(E174,EquipCost,15)*C174,0) -> 0 | H174: =+RETax -> 35 | I174: 35
A175: Management | D175: =B175*LaborNoSkill -> 0 | F175: =IF(E175>0,VLOOKUP(E175,EquipCost,15)*C175,0) -> 0 | H175: =+other -> 40 | I175: 40
A177: Total | B177: =SUM(B149:B176) -> 30.47142857 | C177: =SUM(C149:C176) -> 67.07142857 | D177: =SUM(D149:D176) -> 333.4285714 | F177: =SUM(F149:F176) -> 374.3967054 | G177: =SUM(G149:G176) -> 1089.963473 | H177: =SUM(H149:H176) -> 125 | I177: =SUM(I149:I176) -> 1922.788749
A178: Year 6, Full Bearing Year
A179: Activity | B179: Labor Hours | C179: Eq. Hours | D179: Labor Cost | E179: Eq. Code | F179: Eq. Cost | G179: Material Cost | H179: Other Cost | I179: Total Cost
A181: Training | B181: =+VATrain6 -> 4 | C181: 2 | D181: =B181*LaborNoSkill -> 40 | E181: 1 | F181: =IF(E181>0,VLOOKUP(E181,EquipCost,15)*C181,0) -> 33.9696 | G181: =+VATrainMat6 -> 6 | I181: =SUM(F181:H181)+D181 -> 79.9696
A182: Pruning | B182: =+VAPrune6 -> 31.11428571 | C182: =+B182 -> 31.11428571 | D182: =B182*LaborNoSkill -> 311.1428571 | E182: 18 | F182: =IF(E182>0,VLOOKUP(E182,EquipCost,15)*C182,0) -> 141.4455429 | I182: =SUM(F182:H182)+D182 -> 452.5884
A183: Brush Removal | B183: 2 | C183: =+B183 -> 2 | D183: =B183*LaborSkill -> 30 | E183: 3 | F183: =IF(E183>0,VLOOKUP(E183,EquipCost,15)*C183,0) -> 24.31 | I183: =SUM(F183:H183)+D183 -> 54.31
A184: Tree replacement | B184: 0.5 | C184: =B184 -> 0.5 | D184: =B184*LaborNoSkill -> 5 | E184: 1 | F184: =IF(E184>0,VLOOKUP(E184,EquipCost,15)*C184,0) -> 8.4924 | G184: =+VATree*TreeCost*0.01 -> 52.89428571 | I184: =SUM(F184:H184)+D184 -> 66.38668571
A185: Herbicide Program
A186: 40 hp tractor | B186: =+VAHerbTime -> 1.142857143 | C186: =+B186 -> 1.142857143 | D186: =B186*LaborSkill -> 17.14285714 | E186: 3 | F186: =IF(E186>0,VLOOKUP(E186,EquipCost,15)*C186,0) -> 13.89142857 | I186: =SUM(F186:H186)+D186 -> 31.03428571
A187: Weed sprayer | C187: =+C186 -> 1.142857143 | E187: 5 | F187: =IF(E187>0,VLOOKUP(E187,EquipCost,15)*C187,0) -> 5.064761905 | G187: =+VAHerb6 -> 15.80953125 | I187: =SUM(F187:H187)+D187 -> 20.87429315
A188: Spray Program
A189: 80 hp tractor | B189: =+VASprayTime4 -> 3.6 | C189: =+B189 -> 3.6 | D189: =B189*LaborSkill -> 54 | E189: 2 | F189: =IF(E189>0,VLOOKUP(E189,EquipCost,15)*C189,0) -> 85.356 | G189: =+VASprayMat6 -> 930.894477 | I189: =SUM(F189:H189)+D189 -> 1070.250477
A190: Airblast spr. | C190: =+C189 -> 3.6 | E190: 4 | F190: =IF(E190>0,VLOOKUP(E190,EquipCost,15)*C190,0) -> 40.95 | I190: =SUM(F190:H190)+D190 -> 40.95
A191: Hand Pheromone | B191: 1 | D191: =B191*LaborNoSkill -> 10 | I191: =SUM(F191:H191)+D191 -> 10
A192: Mowing
A193: 40 hp tractor | B193: =+VAMowTime6 -> 1.071428571 | C193: =+B193 -> 1.071428571 | D193: =B193*LaborNoSkill -> 10.71428571 | E193: 3 | F193: =IF(E193>0,VLOOKUP(E193,EquipCost,15)*C193,0) -> 13.02321429 | I193: =SUM(F193:H193)+D193 -> 23.7375
A194: Mower | C194: =+C193 -> 1.071428571 | E194: 7 | F194: =IF(E194>0,VLOOKUP(E194,EquipCost,15)*C194,0) -> 4.992346939 | I194: =SUM(F194:H194)+D194 -> 4.992346939
A195: Mouse control
A196: 40 hp tractor | B196: =+VABaitTIme6 -> 0.1428571429 | C196: =+B196 -> 0.1428571429 | D196: =B196*LaborNoSkill -> 1.428571429 | E196: 3 | F196: =IF(E196>0,VLOOKUP(E196,EquipCost,15)*C196,0) -> 1.736428571 | I196: =SUM(F196:H196)+D196 -> 3.165
A197: Vicon Spreader | C197: =+C196 -> 0.1428571429 | E197: 6 | F197: =IF(E197>0,VLOOKUP(E197,EquipCost,15)*C197,0) -> 0.4478911565 | G197: =+VABait6 -> 5.5 | I197: =SUM(F197:H197)+D197 -> 5.947891156
A198: Wildlife Control | B198: 2 | C198: 1 | D198: =B198*LaborNoSkill -> 20 | E198: 1 | F198: =IF(E198>0,VLOOKUP(E198,EquipCost,15)*C198,0) -> 16.9848 | G198: =+VAWild*VATree -> 24.89142857 | I198: =SUM(F198:H198)+D198 -> 61.87622857
A199: Fertilizer
A200: 40 hp tractor | B200: =+VAFertTime6 -> 0.1428571429 | C200: =+B200 -> 0.1428571429 | D200: =B200*LaborNoSkill -> 1.428571429 | E200: 3 | F200: =IF(E200>0,VLOOKUP(E200,EquipCost,15)*C200,0) -> 1.736428571 | G200: =+VAFert6 -> 18.57133929 | I200: =SUM(F200:H200)+D200 -> 21.73633929
A201: Vicon Spreader | C201: =+C200 -> 0.1428571429 | E201: 6 | F201: =IF(E201>0,VLOOKUP(E201,EquipCost,15)*C201,0) -> 0.4478911565 | I201: =SUM(F201:H201)+D201 -> 0.4478911565
A202: Lime | G202: =+Lime -> 35 | I202: =SUM(F202:H202)+D202 -> 35
A203: Scouting | H203: 15 | I203: =SUM(F203:H203)+D203 -> 15
A204: Bees | H204: 35 | I204: =SUM(F204:H204)+D204 -> 35
A205: Trickle Irrigation | B205: 0.5 | C205: 40 | D205: =B205*LaborNoSkill -> 5 | E205: 17 | F205: =IF(E205>0,VLOOKUP(E205,EquipCost,15)*C205,0) -> 88 | I205: 93
A206: Real Estate Tax | D206: =B206*LaborNoSkill -> 0 | F206: =IF(E206>0,VLOOKUP(E206,EquipCost,15)*C206,0) -> 0 | H206: =+RETax -> 35 | I206: 35
A207: Management | D207: =B207*LaborNoSkill -> 0 | F207: =IF(E207>0,VLOOKUP(E207,EquipCost,15)*C207,0) -> 0 | H207: =+other -> 40 | I207: 40
A209: Total | B209: =SUM(B180:B208) -> 47.21428571 | C209: =SUM(C180:C208) -> 88.81428571 | D209: =SUM(D180:D208) -> 505.8571429 | F209: =SUM(F180:F208) -> 480.848734 | G209: =SUM(G180:G208) -> 1089.561062 | H209: =SUM(H180:H208) -> 125 | I209: =SUM(I180:I208) -> 2201.266939
A210: Vertical Axe
I211: Total Costs
A212: Year 0, Site Preparation Cost. | I212: =+year0 -> 794
A213: =+A8 -> Year 1, Planting Year. | I213: =+VAYear1 -> 9556.811402
A214: =+A56 -> Year 2, Non-bearing Year | I214: =+VAYear2 -> 1521.830337
... 4 more rows

Sheet CL Profit
A1: Potential Profit for Central Leader
B3: Bushel | C3: Gross | D3: Annual | E3: Harvest | G3: Total | H3: Annual | I3: Accum
A4: Year | B4: Yield | C4: Income | D4: Costs | E4: Costs | F4: Interest | G4: Cost | H4: Profit | I4: Profit
A5: 0 | B5: =+'Factors & Yield'!B36 -> 0 | C5: =+B5*42*CLPrice -> 0 | D5: =+year0 -> 794 | E5: =+B5*42*LaborPicking -> 0 | F5: =+(+D5+E5)*0.5*IntOper+LandCost*IntLand -> 383.82 | G5: =SUM(D5:F5) -> 1177.82 | H5: =+C5-G5 -> -1177.82 | I5: =+H5 -> -1177.82
A6: =+A5+1 -> 1 | B6: =+'Factors & Yield'!B37 -> 0 | C6: 0 | D6: =+CLYear1 -> 2384.848998 | E6: =+B6*42*LaborPicking -> 0 | F6: =+(+D6+E6)*0.5*IntOper+LandCost*IntLand -> 431.5454699 | G6: =SUM(D6:F6) -> 2816.394468 | H6: =+C6-G6 -> -2816.394468 | I6: =+H6+I5 -> -3994.214468
A7: =+A6+1 -> 2 | B7: =+'Factors & Yield'!B38 -> 0 | C7: 0 | D7: =+CLYear2 -> 460.5340848 | E7: 0 | F7: 373.8160225 | G7: 834.3501074 | H7: =+C7-G7 -> -834.3501074 | I7: -4828.564576
A8: =+A7+1 -> 3 | B8: =+'Factors & Yield'!B39 -> 0 | C8: 0 | D8: =+CLYear3 -> 949.2588006 | E8: 0 | F8: 388.477764 | G8: 1337.736565 | H8: -1337.736565 | I8: -6166.30114
A9: 4 | B9: =+'Factors & Yield'!B40 -> 100 | C9: 840 | D9: =+CLYear4 -> 1254.177995 | E9: 203.7943839 | F9: 403.7391714 | G9: 1861.71155 | H9: -1021.71155 | I9: -7188.01269
A10: 5 | B10: =+'Factors & Yield'!B41 -> 150 | C10: 1260 | D10: =+CLYear5 -> 1849.675909 | E10: 305.6915758 | F10: 424.6610245 | G10: 2580.028509 | H10: -1320.028509 | I10: -8508.0412
A11: 6 | B11: =+'Factors & Yield'!B42 -> 300 | C11: 2520 | D11: =+CLYear6 -> 1952.044193 | E11: 611.3831516 | F11: 436.9028203 | G11: 3000.330165 | H11: -480.3301653 | I11: -8988.371365
A12: 7 | B12: =+'Factors & Yield'!B43 -> 400 | C12: 3360 | D12: =+CLYear7 -> 2153.438762 | E12: 815.1775354 | F12: 449.0584889 | G12: 3417.674787 | H12: -57.6747865 | I12: -9046.046151
A13: 8 | B13: =+'Factors & Yield'!B44 -> 500 | C13: 4200 | D13: =+CLYear8 -> 2179.963156 | E13: 1018.971919 | F13: 455.9680523 | G13: 3654.903127 | H13: 545.0968726 | I13: -8500.949279
A14: 9 | B14: =+'Factors & Yield'!B45 -> 650 | C14: 5460 | D14: =+CLYear8 -> 2179.963156 | E14: 1324.663495 | F14: 465.1387995 | G14: 3969.765451 | H14: 1490.234549 | I14: -7010.714729
A15: 10 | B15: =+'Factors & Yield'!B46 -> 650 | C15: 5460 | D15: 2179.963156 | E15: 1324.663495 | F15: 465.1387995 | G15: 3969.765451 | H15: 1490.234549 | I15: -5520.48018
A16: 11 | B16: =+'Factors & Yield'!B47 -> 650 | C16: 5460 | D16: 2179.963156 | E16: 1324.663495 | F16: 465.1387995 | G16: 3969.765451 | H16: 1490.234549 | I16: -4030.24563
A17: 12 | B17: =+'Factors & Yield'!B48 -> 650 | C17: 5460 | D17: 2179.963156 | E17: 1324.663495 | F17: 465.1387995 | G17: 3969.765451 | H17: 1490.234549 | I17: -2540.011081
A18: 13 | B18: =+'Factors & Yield'!B49 -> 650 | C18: 5460 | D18: 2179.963156 | E18: 1324.663495 | F18: 465.1387995 | G18: 3969.765451 | H18: 1490.234549 | I18: -1049.776531
A19: 14 | B19: =+'Factors & Yield'!B50 -> 650 | C19: 5460 | D19: 2179.963156 | E19: 1324.663495 | F19: 465.1387995 | G19: 3969.765451 | H19: 1490.234549 | I19: 440.4580181
A20: 15 | B20: =+'Factors & Yield'!B51 -> 650 | C20: 5460 | D20: 2179.963156 | E20: 1324.663495 | F20: 465.1387995 | G20: 3969.765451 | H20: 1490.234549 | I20: 1930.692568
A21: 16 | B21: =+'Factors & Yield'!B52 -> 650 | C21: 5460 | D21: 2179.963156 | E21: 1324.663495 | F21: 465.1387995 | G21: 3969.765451 | H21: 1490.234549 | I21: 3420.927117
A22: 17 | B22: =+'Factors & Yield'!B53 -> 650 | C22: 5460 | D22: 2179.963156 | E22: 1324.663495 | F22: 465.1387995 | G22: 3969.765451 | H22: 1490.234549 | I22: 4911.161667
A23: 18 | B23: =+'Factors & Yield'!B54 -> 650 | C23: 5460 | D23: 2179.963156 | E23: 1324.663495 | F23: 465.1387995 | G23: 3969.765451 | H23: 1490.234549 | I23: 6401.396216
A24: 19 | B24: =+'Factors & Yield'!B55 -> 650 | C24: 5460 | D24: 2179.963156 | E24: 1324.663495 | F24: 465.1387995 | G24: 3969.765451 | H24: 1490.234549 | I24: 7891.630766
A25: 20 | B25: =+'Factors & Yield'!B56 -> 650 | C25: 5460 | D25: 2179.963156 | E25: 1324.663495 | F25: 465.1387995 | G25: 3969.765451 | H25: 1490.234549 | I25: 9381.865315
B27: =SUM(B5:B26) -> 9250 | C27: =SUM(C5:C26) -> 77700 | D27: 40137.49977 | E27: 18850.98051 | F27: 9329.654408 | G27: 68318.13468 | H27: 9381.865315 | I27: =+I25 -> 9381.865315
A29: Sales Price /lb. | D29: =+CLPrice -> 0.2 | F29: Unskilled Labor Cost | J29: =+LaborNoSkill -> 10
A52: =+A1 -> Potential Profit for Central Leader
A54: Effect of varing yield.
A56: This chart is based on Year 8, Mature Bearing Year.
B59: Yield | C59: Growing | D59: Interest | E59: Harvest | F59: Total | G59: Cost | H59: Cost
B60: /Acre | C60: Costs | D60: Costs | E60: Costs | F60: Costs | G60: /Bushel | H60: /lb.
B61: 200 | C61: =+CLYear8 -> 2179.963156 | D61: =+F13 -> 455.9680523 | E61: =+B61*42*LaborPicking -> 407.5887677 | F61: =SUM(C61:E61) -> 3043.519976 | G61: =+F61/B61 -> 15.21759988 | H61: =+G61/42 -> 0.3623238066
B62: =+B61+100 -> 300 | C62: =+CLYear8 -> 2179.963156 | D62: =+D61 -> 455.9680523 | E62: =+B62*42*LaborPicking -> 611.3831516 | F62: =SUM(C62:E62) -> 3247.31436 | G62: =+F62/B62 -> 10.8243812 | H62: =+G62/42 -> 0.2577233619
B63: =+B62+100 -> 400 | C63: 2179.963156 | D63: =+D62 -> 455.9680523 | E63: 815.1775354 | F63: =SUM(C63:E63) -> 3451.108744 | G63: =+F63/B63 -> 8.627771859 | H63: =+G63/42 -> 0.2054231395
B64: 500 | C64: 2179.963156 | D64: 455.9680523 | E64: 1018.971919 | F64: 3654.903127 | G64: 7.309806255 | H64: 0.1740430061
B65: 600 | C65: 2179.963156 | D65: 455.9680523 | E65: 1222.766303 | F65: 3858.697511 | G65: 6.431162519 | H65: 0.1531229171
B66: 700 | C66: 2179.963156 | D66: 455.9680523 | E66: 1426.560687 | F66: 4062.491895 | G66: 5.80355985 | H66: 0.1381799964
B67: 800 | C67: 2179.963156 | D67: 455.9680523 | E67: 1630.355071 | F67: 4266.286279 | G67: 5.332857849 | H67: 0.1269728059
B68: 900 | C68: 2179.963156 | D68: 455.9680523 | E68: 1834.149455 | F68: 4470.080663 | G68: 4.966756292 | H68: 0.1182561022
B69: 1000 | C69: 2179.963156 | D69: 455.9680523 | E69: 2037.943839 | F69: 4673.875047 | G69: 4.673875047 | H69: 0.1112827392
B70: 1100 | C70: 2179.963156 | D70: 455.9680523 | E70: 2241.738222 | F70: 4877.669431 | G70: 4.434244937 | H70: 0.1055772604
B71: 1200 | C71: 2179.963156 | D71: 455.9680523 | E71: 2445.532606 | F71: 5081.463814 | G71: 4.234553179 | H71: 0.1008226947
B72: =+B71+100 -> 1300 | C72: 2179.963156 | D72: =+D71 -> 455.9680523 | E72: 2649.32699 | F72: =SUM(C72:E72) -> 5285.258198 | G72: =+F72/B72 -> 4.065583229 | H72: 0.0967996007
B73: =+B72+100 -> 1400 | C73: 2179.963156 | D73: =+D72 -> 455.9680523 | E73: 2853.121374 | F73: =SUM(C73:E73) -> 5489.052582 | G73: =+F73/B73 -> 3.920751844 | H73: 0.09335123439
B74: =+B73+100 -> 1500 | C74: 2179.963156 | D74: =+D73 -> 455.9680523 | E74: 3056.915758 | F74: =SUM(C74:E74) -> 5692.846966 | G74: =+F74/B74 -> 3.795231311 | H74: 0.09036265025
A96: 1 | I96: 100 | J96: =+G96*E96*A96*I96*0.01 -> 0
A97: 1 | E97: 5 | I97: 100 | J97: =+G97*E97*A97*I97*0.01 -> 0
A98: 1 | E98: 5 | I98: 100 | J98: =+G98*E98*A98*I98*0.01 -> 0
I100: 100 | J100: =+G100*E100*A100*I100*0.01 -> 0
C102: Calcium Sprays | D102: EG-615 | I102: 100 | J102: =+G102*E102*A102*I102*0.01 -> 0
I104: 100 | J104: =+G104*E104*A104*I104*0.01 -> 0
A106: 1 | B106: Post-Harvest | C106: Boron | E106: 2 | I106: 100 | J106: =+G106*E106*A106*I106*0.01 -> 0
A107: 1 | E107: 5 | I107: 100 | J107: =+G107*E107*A107*I107*0.01 -> 0
A108: 1 | E108: 5 | I108: 100 | J108: =+G108*E108*A108*I108*0.01 -> 0
C114: Sevin 80S

Sheet VA Profit
A1: Potential Profit for Vertical Axe
B3: Bushel | C3: Gross | D3: Annual | E3: Harvest | G3: Total | H3: Annual | I3: Accum
A4: Year | B4: Yield | C4: Income | D4: Costs | E4: Costs | F4: Interest | G4: Cost | H4: Profit | I4: Profit
A5: 0 | B5: =+'Factors & Yield'!C36 -> 0 | C5: =+B5*42*VAPrice -> 0 | D5: =+year0 -> 794 | E5: =+B5*42*LaborPicking -> 0 | F5: =+(+D5+E5)*0.5*IntOper+LandCost*IntLand -> 383.82 | G5: =SUM(D5:F5) -> 1177.82 | H5: =+C5-G5 -> -1177.82 | I5: =+H5 -> -1177.82
A6: =+A5+1 -> 1 | B6: =+'Factors & Yield'!C37 -> 0 | C6: 0 | D6: =+VAYear1 -> 9556.811402 | E6: =+B6*42*LaborPicking -> 0 | F6: =+(+D6+E6)*0.5*IntOper+LandCost*IntLand -> 646.7043421 | G6: =SUM(D6:F6) -> 10203.51574 | H6: =+C6-G6 -> -10203.51574 | I6: =+H6+I5 -> -11381.33574
A7: =+A6+1 -> 2 | B7: =+'Factors & Yield'!C38 -> 0 | C7: 0 | D7: =+VAYear2 -> 1521.830337 | E7: 0 | F7: 405.6549101 | G7: 1927.485247 | H7: =+C7-G7 -> -1927.485247 | I7: -13308.82099
A8: =+A7+1 -> 3 | B8: =+'Factors & Yield'!C39 -> 150 | C8: 1323 | D8: =+VAYear3 -> 1636.917901 | E8: 305.6915758 | F8: 418.2782843 | G8: 2360.887761 | H8: -1037.887761 | I8: -14346.70875
A9: 4 | B9: =+'Factors & Yield'!C40 -> 300 | C9: 2646 | D9: =+VAYear4 -> 1943.779849 | E9: 611.3831516 | F9: 436.65489 | G9: 2991.817891 | H9: -345.817891 | I9: -14692.52664
A10: 5 | B10: =+'Factors & Yield'!C41 -> 600 | C10: 5292 | D10: =+VAYear5 -> 1922.788749 | E10: 1222.766303 | F10: 454.3666516 | G10: 3599.921704 | H10: 1692.078296 | I10: -13000.44835
A11: 6 | B11: =+'Factors & Yield'!C42 -> 800 | C11: 7056 | D11: =+VAYear6 -> 2201.266939 | E11: 1630.355071 | F11: 474.9486603 | G11: 4306.57067 | H11: 2749.42933 | I11: -10251.01902
A12: 7 | B12: =+'Factors & Yield'!C43 -> 800 | C12: 7056 | D12: =+VAYear6 -> 2201.266939 | E12: 1630.355071 | F12: 474.9486603 | G12: 4306.57067 | H12: 2749.42933 | I12: -7501.589688
A13: 8 | B13: =+'Factors & Yield'!C44 -> 800 | C13: 7056 | D13: =+VAYear6 -> 2201.266939 | E13: 1630.355071 | F13: 474.9486603 | G13: 4306.57067 | H13: 2749.42933 | I13: -4752.160358
A14: 9 | B14: =+'Factors & Yield'!C45 -> 800 | C14: 7056 | D14: 2201.266939 | E14: 1630.355071 | F14: 474.9486603 | G14: 4306.57067 | H14: 2749.42933 | I14: -2002.731027
A15: 10 | B15: =+'Factors & Yield'!C46 -> 800 | C15: 7056 | D15: 2201.266939 | E15: 1630.355071 | F15: 474.9486603 | G15: 4306.57067 | H15: 2749.42933 | I15: 746.6983027
A16: 11 | B16: =+'Factors & Yield'!C47 -> 800 | C16: 7056 | D16: 2201.266939 | E16: 1630.355071 | F16: 474.9486603 | G16: 4306.57067 | H16: 2749.42933 | I16: 3496.127633
A17: 12 | B17: =+'Factors & Yield'!C48 -> 800 | C17: 7056 | D17: 2201.266939 | E17: 1630.355071 | F17: 474.9486603 | G17: 4306.57067 | H17: 2749.42933 | I17: 6245.556963
A18: 13 | B18: =+'Factors & Yield'!C49 -> 800 | C18: 7056 | D18: 2201.266939 | E18: 1630.355071 | F18: 474.9486603 | G18: 4306.57067 | H18: 2749.42933 | I18: 8994.986293
A19: 14 | B19: =+'Factors & Yield'!C50 -> 800 | C19: 7056 | D19: 2201.266939 | E19: 1630.355071 | F19: 474.9486603 | G19: 4306.57067 | H19: 2749.42933 | I19: 11744.41562
A20: 15 | B20: =+'Factors & Yield'!C51 -> 800 | C20: 7056 | D20: 2201.266939 | E20: 1630.355071 | F20: 474.9486603 | G20: 4306.57067 | H20: 2749.42933 | I20: 14493.84495
A21: 16 | B21: =+'Factors & Yield'!C52 -> 800 | C21: 7056 | D21: 2201.266939 | E21: 1630.355071 | F21: 474.9486603 | G21: 4306.57067 | H21: 2749.42933 | I21: 17243.27428
A22: 17 | B22: =+'Factors & Yield'!C53 -> 800 | C22: 7056 | D22: 2201.266939 | E22: 1630.355071 | F22: 474.9486603 | G22: 4306.57067 | H22: 2749.42933 | I22: 19992.70361
A23: 18 | B23: =+'Factors & Yield'!C54 -> 800 | C23: 7056 | D23: 2201.266939 | E23: 1630.355071 | F23: 474.9486603 | G23: 4306.57067 | H23: 2749.42933 | I23: 22742.13294
A24: 19 | B24: =+'Factors & Yield'!C55 -> 800 | C24: 7056 | D24: 2201.266939 | E24: 1630.355071 | F24: 474.9486603 | G24: 4306.57067 | H24: 2749.42933 | I24: 25491.56227
A25: 20 | B25: =+'Factors & Yield'!C56 -> 800 | C25: 7056 | D25: 2201.266939 | E25: 1630.355071 | F25: 474.9486603 | G25: 4306.57067 | H25: 2749.42933 | I25: 28240.9916
B27: =SUM(B5:B26) -> 13050 | C27: =SUM(C5:C26) -> 115101 | D27: 50395.13232 | E27: 26595.16709 | F27: 9869.708982 | G27: 86860.0084 | H27: 28240.9916 | I27: =+I25 -> 28240.9916
A29: Sales Price /lb. | D29: =+VAPrice -> 0.21 | F29: Unskilled Labor Cost | J29: =+LaborNoSkill -> 10
A52: =+A1 -> Potential Profit for Vertical Axe
A54: Effect of varing yield.
A56: This chart is based on Year 6, Mature Bearing Year.
B59: Yield | C59: Growing | D59: Interest | E59: Harvest | F59: Total | G59: Cost | H59: Cost
B60: /Acre | C60: Costs | D60: Costs | E60: Costs | F60: Costs | G60: /Bushel | H60: /lb.
B61: 200 | C61: =+VAYear6 -> 2201.266939 | D61: =+F11 -> 474.9486603 | E61: =+B61*42*LaborPicking -> 407.5887677 | F61: =SUM(C61:E61) -> 3083.804367 | G61: =+F61/B61 -> 15.41902183 | H61: =+G61/42 -> 0.3671195675
B62: =+B61+100 -> 300 | C62: =+VAYear6 -> 2201.266939 | D62: =+D61 -> 474.9486603 | E62: =+B62*42*LaborPicking -> 611.3831516 | F62: =SUM(C62:E62) -> 3287.598751 | G62: =+F62/B62 -> 10.9586625 | H62: =+G62/42 -> 0.2609205358
B63: =+B62+100 -> 400 | C63: 2201.266939 | D63: =+D62 -> 474.9486603 | E63: 815.1775354 | F63: =SUM(C63:E63) -> 3491.393134 | G63: =+F63/B63 -> 8.728482836 | H63: =+G63/42 -> 0.2078210199
B64: 500 | C64: 2201.266939 | D64: 474.9486603 | E64: 1018.971919 | F64: 3695.187518 | G64: 7.390375037 | H64: 0.1759613104
B65: 600 | C65: 2201.266939 | D65: 474.9486603 | E65: 1222.766303 | F65: 3898.981902 | G65: 6.49830317 | H65: 0.1547215041
B66: 700 | C66: 2201.266939 | D66: 474.9486603 | E66: 1426.560687 | F66: 4102.776286 | G66: 5.86110898 | H66: 0.1395502138
B67: 800 | C67: 2201.266939 | D67: 474.9486603 | E67: 1630.355071 | F67: 4306.57067 | G67: 5.383213337 | H67: 0.1281717461
B68: 900 | C68: 2201.266939 | D68: 474.9486603 | E68: 1834.149455 | F68: 4510.365054 | G68: 5.011516726 | H68: 0.1193218268
B69: 1000 | C69: 2201.266939 | D69: 474.9486603 | E69: 2037.943839 | F69: 4714.159438 | G69: 4.714159438 | H69: 0.1122418914
B70: 1100 | C70: 2201.266939 | D70: 474.9486603 | E70: 2241.738222 | F70: 4917.953821 | G70: 4.47086711 | H70: 0.1064492169
B71: 1200 | C71: 2201.266939 | D71: 474.9486603 | E71: 2445.532606 | F71: 5121.748205 | G71: 4.268123504 | H71: 0.1016219882
B72: =+B71+100 -> 1300 | C72: 2201.266939 | D72: =+D71 -> 474.9486603 | E72: 2649.32699 | F72: =SUM(C72:E72) -> 5325.542589 | G72: =+F72/B72 -> 4.096571222 | H72: 0.09753741006
B73: =+B72+100 -> 1400 | C73: 2201.266939 | D73: =+D72 -> 474.9486603 | E73: 2853.121374 | F73: =SUM(C73:E73) -> 5529.336973 | G73: =+F73/B73 -> 3.949526409 | H73: 0.09403634308
B74: =+B73+100 -> 1500 | C74: 2201.266939 | D74: =+D73 -> 474.9486603 | E74: 3056.915758 | F74: =SUM(C74:E74) -> 5733.131357 | G74: =+F74/B74 -> 3.822087571 | H74: 0.09100208503
C114: Sevin 80S

Sheet TS Profit
A1: Potential Profit for Tall Spindle
B3: Bushel | C3: Gross | D3: Annual | E3: Harvest | G3: Total | H3: Annual | I3: Accum
A4: Year | B4: Yield | C4: Income | D4: Costs | E4: Costs | F4: Interest | G4: Cost | H4: Profit | I4: Profit
A5: 0 | B5: =+'Factors & Yield'!D36 -> 0 | C5: =+B5*42*TSPrice -> 0 | D5: =+year0 -> 794 | E5: =+B5*42*LaborPicking -> 0 | F5: =+(+D5+E5)*0.5*IntOper+LandCost*IntLand -> 383.82 | G5: =SUM(D5:F5) -> 1177.82 | H5: =+C5-G5 -> -1177.82 | I5: =+H5 -> -1177.82
A6: =+A5+1 -> 1 | B6: =+'Factors & Yield'!D37 -> 0 | C6: 0 | D6: =+SSYear1 -> 16601.12114 | E6: =+B6*42*LaborPicking -> 0 | F6: =+(+D6+E6)*0.5*IntOper+LandCost*IntLand -> 858.0336343 | G6: =SUM(D6:F6) -> 17459.15478 | H6: =+C6-G6 -> -17459.15478 | I6: =+H6+I5 -> -18636.97478
A7: =+A6+1 -> 2 | B7: =+'Factors & Yield'!D38 -> 50 | C7: 462 | D7: =+TSYear2 -> 1849.146217 | E7: 101.8971919 | F7: 418.5313023 | G7: 2369.574711 | H7: =+C7-G7 -> -1907.574711 | I7: -20544.54949
A8: =+A7+1 -> 3 | B8: =+'Factors & Yield'!D39 -> 200 | C8: 1848 | D8: =+SSYear3 -> 2146.63632 | E8: 407.5887677 | F8: 436.6267526 | G8: 2990.85184 | H8: -1142.85184 | I8: -21687.40133
A9: 4 | B9: =+'Factors & Yield'!D40 -> 800 | C9: 7392 | D9: =+SSYear4 -> 2205.912335 | E9: 1630.355071 | F9: 475.0880222 | G9: 4311.355428 | H9: 3080.644572 | I9: -18606.75676
A10: 5 | B10: =+'Factors & Yield'!D41 -> 1000 | C10: 9240 | D10: =+SSYear4 -> 2205.912335 | E10: 2037.943839 | F10: 487.3156852 | G10: 4731.171859 | H10: 4508.828141 | I10: -14097.92862
A11: 6 | B11: =+'Factors & Yield'!D42 -> 1000 | C11: 9240 | D11: 2205.912335 | E11: 2037.943839 | F11: 487.3156852 | G11: 4731.171859 | H11: 4508.828141 | I11: -9589.100475
A12: 7 | B12: =+'Factors & Yield'!D43 -> 1000 | C12: 9240 | D12: 2205.912335 | E12: 2037.943839 | F12: 487.3156852 | G12: 4731.171859 | H12: 4508.828141 | I12: -5080.272334
A13: 8 | B13: =+'Factors & Yield'!D44 -> 1000 | C13: 9240 | D13: 2205.912335 | E13: 2037.943839 | F13: 487.3156852 | G13: 4731.171859 | H13: 4508.828141 | I13: -571.4441934
A14: 9 | B14: =+'Factors & Yield'!D45 -> 1000 | C14: 9240 | D14: 2205.912335 | E14: 2037.943839 | F14: 487.3156852 | G14: 4731.171859 | H14: 4508.828141 | I14: 3937.383948
A15: 10 | B15: =+'Factors & Yield'!D46 -> 1000 | C15: 9240 | D15: 2205.912335 | E15: 2037.943839 | F15: 487.3156852 | G15: 4731.171859 | H15: 4508.828141 | I15: 8446.212089
A16: 11 | B16: =+'Factors & Yield'!D47 -> 1000 | C16: 9240 | D16: 2205.912335 | E16: 2037.943839 | F16: 487.3156852 | G16: 4731.171859 | H16: 4508.828141 | I16: 12955.04023
A17: 12 | B17: =+'Factors & Yield'!D48 -> 1000 | C17: 9240 | D17: 2205.912335 | E17: 2037.943839 | F17: 487.3156852 | G17: 4731.171859 | H17: 4508.828141 | I17: 17463.86837
A18: 13 | B18: =+'Factors & Yield'!D49 -> 1000 | C18: 9240 | D18: 2205.912335 | E18: 2037.943839 | F18: 487.3156852 | G18: 4731.171859 | H18: 4508.828141 | I18: 21972.69651
A19: 14 | B19: =+'Factors & Yield'!D50 -> 1000 | C19: 9240 | D19: 2205.912335 | E19: 2037.943839 | F19: 487.3156852 | G19: 4731.171859 | H19: 4508.828141 | I19: 26481.52465
A20: 15 | B20: =+'Factors & Yield'!D51 -> 1000 | C20: 9240 | D20: 2205.912335 | E20: 2037.943839 | F20: 487.3156852 | G20: 4731.171859 | H20: 4508.828141 | I20: 30990.35279
A21: 16 | B21: =+'Factors & Yield'!D52 -> 1000 | C21: 9240 | D21: 2205.912335 | E21: 2037.943839 | F21: 487.3156852 | G21: 4731.171859 | H21: 4508.828141 | I21: 35499.18093
A22: 17 | B22: =+'Factors & Yield'!D53 -> 1000 | C22: 9240 | D22: 2205.912335 | E22: 2037.943839 | F22: 487.3156852 | G22: 4731.171859 | H22: 4508.828141 | I22: 40008.00908
A23: 18 | B23: =+'Factors & Yield'!D54 -> 1000 | C23: 9240 | D23: 2205.912335 | E23: 2037.943839 | F23: 487.3156852 | G23: 4731.171859 | H23: 4508.828141 | I23: 44516.83722
A24: 19 | B24: =+'Factors & Yield'!D55 -> 1000 | C24: 9240 | D24: 2205.912335 | E24: 2037.943839 | F24: 487.3156852 | G24: 4731.171859 | H24: 4508.828141 | I24: 49025.66536
A25: 20 | B25: =+'Factors & Yield'!D56 -> 1000 | C25: 9240 | D25: 2205.912335 | E25: 2037.943839 | F25: 487.3156852 | G25: 4731.171859 | H25: 4508.828141 | I25: 53534.4935
B27: =SUM(B5:B26) -> 17050 | C27: =SUM(C5:C26) -> 157542 | D27: 58891.41338 | E27: 34746.94245 | F27: 10369.15067 | G27: 104007.5065 | H27: 53534.4935 | I27: =+I25 -> 53534.4935
A29: Sales Price /lb. | D29: =+TSPrice -> 0.22 | F29: Unskilled Labor Cost | J29: =+LaborNoSkill -> 10
A52: =+A1 -> Potential Profit for Tall Spindle
A54: Effect of varing yield.
A56: This chart is based on Year 6, Mature Bearing Year.
B59: Yield | C59: Growing | D59: Interest | E59: Harvest | F59: Total | G59: Cost | H59: Cost
B60: /Acre | C60: Costs | D60: Costs | E60: Costs | F60: Costs | G60: /Bushel | H60: /lb.
B61: 200 | C61: =+SSYear4 -> 2205.912335 | D61: =+F9 -> 475.0880222 | E61: =+B61*42*LaborPicking -> 407.5887677 | F61: =SUM(C61:E61) -> 3088.589125 | G61: =+F61/B61 -> 15.44294563 | H61: =+G61/42 -> 0.3676891816
B62: =+B61+100 -> 300 | C62: =+C61 -> 2205.912335 | D62: =+D61 -> 475.0880222 | E62: =+B62*42*LaborPicking -> 611.3831516 | F62: =SUM(C62:E62) -> 3292.383509 | G62: =+F62/B62 -> 10.9746117 | H62: =+G62/42 -> 0.2613002785
B63: =+B62+100 -> 400 | C63: =+C62 -> 2205.912335 | D63: =+D62 -> 475.0880222 | E63: 815.1775354 | F63: =SUM(C63:E63) -> 3496.177893 | G63: =+F63/B63 -> 8.740444732 | H63: =+G63/42 -> 0.208105827
B64: 500 | C64: 2205.912335 | D64: 475.0880222 | E64: 1018.971919 | F64: 3699.972277 | G64: 7.399944553 | H64: 0.176189156
B65: 600 | C65: 2205.912335 | D65: 475.0880222 | E65: 1222.766303 | F65: 3903.766661 | G65: 6.506277768 | H65: 0.1549113754
B66: 700 | C66: 2205.912335 | D66: 475.0880222 | E66: 1426.560687 | F66: 4107.561044 | G66: 5.867944349 | H66: 0.1397129607
B67: 800 | C67: 2205.912335 | D67: 475.0880222 | E67: 1630.355071 | F67: 4311.355428 | G67: 5.389194285 | H67: 0.1283141497
B68: 900 | C68: 2205.912335 | D68: 475.0880222 | E68: 1834.149455 | F68: 4515.149812 | G68: 5.016833125 | H68: 0.1194484077
B69: 1000 | C69: 2205.912335 | D69: 475.0880222 | E69: 2037.943839 | F69: 4718.944196 | G69: 4.718944196 | H69: 0.1123558142
B70: 1100 | C70: 2205.912335 | D70: 475.0880222 | E70: 2241.738222 | F70: 4922.73858 | G70: 4.475216891 | H70: 0.1065527831
B71: 1200 | C71: 2205.912335 | D71: 475.0880222 | E71: 2445.532606 | F71: 5126.532964 | G71: 4.272110803 | H71: 0.1017169239
B72: =+B71+100 -> 1300 | C72: 2205.912335 | D72: =+D71 -> 475.0880222 | E72: 2649.32699 | F72: =SUM(C72:E72) -> 5330.327348 | G72: =+F72/B72 -> 4.100251806 | H72: 0.097625043
B73: =+B72+100 -> 1400 | C73: 2205.912335 | D73: =+D72 -> 475.0880222 | E73: 2853.121374 | F73: =SUM(C73:E73) -> 5534.121731 | G73: =+F73/B73 -> 3.952944094 | H73: 0.09411771652
B74: =+B73+100 -> 1500 | C74: 2205.912335 | D74: =+D73 -> 475.0880222 | E74: 3056.915758 | F74: =SUM(C74:E74) -> 5737.916115 | G74: =+F74/B74 -> 3.82527741 | H74: 0.09107803358
C114: Sevin 80S

Sheet FW Profit
A1: Potential Profit for Fruiting Wall
B3: Bushel | C3: Gross | D3: Annual | E3: Harvest | G3: Total | H3: Annual | I3: Accum
A4: Year | B4: Yield | C4: Income | D4: Costs | E4: Costs | F4: Interest | G4: Cost | H4: Profit | I4: Profit
A5: 0 | B5: =+'Factors & Yield'!E36 -> 0 | C5: =+B5*42*FWPrice -> 0 | D5: =+year0 -> 794 | E5: =+B5*42*LaborPicking -> 0 | F5: =+(+D5+E5)*0.5*IntOper+LandCost*IntLand -> 383.82 | G5: =SUM(D5:F5) -> 1177.82 | H5: =+C5-G5 -> -1177.82 | I5: =+H5 -> -1177.82
A6: =+A5+1 -> 1 | B6: =+'Factors & Yield'!E37 -> 100 | C6: 966 | D6: =+FWYear1 -> 15960.11858 | E6: =+B6*42*LaborPicking -> 203.7943839 | F6: =+(+D6+E6)*0.5*IntOper+LandCost*IntLand -> 844.9173889 | G6: =SUM(D6:F6) -> 17008.83035 | H6: =+C6-G6 -> -16042.83035 | I6: =+H6+I5 -> -17220.65035
A7: =+A6+1 -> 2 | B7: =+'Factors & Yield'!E38 -> 400 | C7: 3864 | D7: =+FWYear2 -> 1707.959567 | E7: 815.1775354 | F7: 435.6941131 | G7: 2958.831216 | H7: =+C7-G7 -> 905.168784 | I7: -16315.48157
A8: =+A7+1 -> 3 | B8: =+'Factors & Yield'!E39 -> 800 | C8: 7728 | D8: =+FWYear3 -> 1886.16535 | E8: 1630.355071 | F8: 465.4956126 | G8: 3982.016034 | H8: 3745.983966 | I8: -12569.4976
A9: 4 | B9: =+'Factors & Yield'!E40 -> 1200 | C9: 11592 | D9: =+FWYear4 -> 1953.630553 | E9: 2445.532606 | F9: 491.9748948 | G9: 4891.138055 | H9: 6700.861945 | I9: -5868.635657
A10: 5 | B10: =+'Factors & Yield'!E41 -> 1200 | C10: 11592 | D10: 1953.630553 | E10: 2445.532606 | F10: 491.9748948 | G10: 4891.138055 | H10: 6700.861945 | I10: 832.226288
A11: 6 | B11: =+'Factors & Yield'!E42 -> 1200 | C11: 11592 | D11: 1953.630553 | E11: 2445.532606 | F11: 491.9748948 | G11: 4891.138055 | H11: 6700.861945 | I11: 7533.088233
A12: 7 | B12: =+'Factors & Yield'!E43 -> 1200 | C12: 11592 | D12: 1953.630553 | E12: 2445.532606 | F12: 491.9748948 | G12: 4891.138055 | H12: 6700.861945 | I12: 14233.95018
A13: 8 | B13: =+'Factors & Yield'!E44 -> 1200 | C13: 11592 | D13: 1953.630553 | E13: 2445.532606 | F13: 491.9748948 | G13: 4891.138055 | H13: 6700.861945 | I13: 20934.81212
A14: 9 | B14: =+'Factors & Yield'!E45 -> 1200 | C14: 11592 | D14: 1953.630553 | E14: 2445.532606 | F14: 491.9748948 | G14: 4891.138055 | H14: 6700.861945 | I14: 27635.67407
A15: 10 | B15: =+'Factors & Yield'!E46 -> 1200 | C15: 11592 | D15: 1953.630553 | E15: 2445.532606 | F15: 491.9748948 | G15: 4891.138055 | H15: 6700.861945 | I15: 34336.53602
A16: 11 | B16: =+'Factors & Yield'!E47 -> 1200 | C16: 11592 | D16: 1953.630553 | E16: 2445.532606 | F16: 491.9748948 | G16: 4891.138055 | H16: 6700.861945 | I16: 41037.39796
A17: 12 | B17: =+'Factors & Yield'!E48 -> 1200 | C17: 11592 | D17: 1953.630553 | E17: 2445.532606 | F17: 491.9748948 | G17: 4891.138055 | H17: 6700.861945 | I17: 47738.25991
A18: 13 | B18: =+'Factors & Yield'!E49 -> 1200 | C18: 11592 | D18: 1953.630553 | E18: 2445.532606 | F18: 491.9748948 | G18: 4891.138055 | H18: 6700.861945 | I18: 54439.12185
A19: 14 | B19: =+'Factors & Yield'!E50 -> 1200 | C19: 11592 | D19: 1953.630553 | E19: 2445.532606 | F19: 491.9748948 | G19: 4891.138055 | H19: 6700.861945 | I19: 61139.9838
A20: 15 | B20: =+'Factors & Yield'!E51 -> 1200 | C20: 11592 | D20: 1953.630553 | E20: 2445.532606 | F20: 491.9748948 | G20: 4891.138055 | H20: 6700.861945 | I20: 67840.84574
A21: 16 | B21: =+'Factors & Yield'!E52 -> 1200 | C21: 11592 | D21: 1953.630553 | E21: 2445.532606 | F21: 491.9748948 | G21: 4891.138055 | H21: 6700.861945 | I21: 74541.70769
A22: 17 | B22: =+'Factors & Yield'!E53 -> 1200 | C22: 11592 | D22: 1953.630553 | E22: 2445.532606 | F22: 491.9748948 | G22: 4891.138055 | H22: 6700.861945 | I22: 81242.56963
A23: 18 | B23: =+'Factors & Yield'!E54 -> 1200 | C23: 11592 | D23: 1953.630553 | E23: 2445.532606 | F23: 491.9748948 | G23: 4891.138055 | H23: 6700.861945 | I23: 87943.43158
A24: 19 | B24: =+'Factors & Yield'!E55 -> 1200 | C24: 11592 | D24: 1953.630553 | E24: 2445.532606 | F24: 491.9748948 | G24: 4891.138055 | H24: 6700.861945 | I24: 94644.29352
A25: 20 | B25: =+'Factors & Yield'!E56 -> 1200 | C25: 11592 | D25: 1953.630553 | E25: 2445.532606 | F25: 491.9748948 | G25: 4891.138055 | H25: 6700.861945 | I25: 101345.1555
B27: =SUM(B5:B26) -> 21700 | C27: =SUM(C5:C26) -> 209622 | D27: 53559.96291 | E27: 44223.3813 | F27: 10493.50033 | G27: 108276.8445 | H27: 101345.1555 | I27: =+I25 -> 101345.1555
A29: Sales Price /lb. | D29: =+FWPrice -> 0.23 | F29: Unskilled Labor Cost | J29: =+LaborNoSkill -> 10
A52: =+A1 -> Potential Profit for Fruiting Wall
A54: Effect of varing yield.
A56: This chart is based on Year 6, Mature Bearing Year.
B59: Yield | C59: Growing | D59: Interest | E59: Harvest | F59: Total | G59: Cost | H59: Cost
B60: /Acre | C60: Costs | D60: Costs | E60: Costs | F60: Costs | G60: /Bushel | H60: /lb.
B61: 200 | C61: =+FWYear4 -> 1953.630553 | D61: =+F9 -> 491.9748948 | E61: =+B61*42*LaborPicking -> 407.5887677 | F61: =SUM(C61:E61) -> 2853.194216 | G61: =+F61/B61 -> 14.26597108 | H61: =+G61/42 -> 0.3396659781
B62: =+B61+100 -> 300 | C62: =+C61 -> 1953.630553 | D62: =+D61 -> 491.9748948 | E62: =+B62*42*LaborPicking -> 611.3831516 | F62: =SUM(C62:E62) -> 3056.9886 | G62: =+F62/B62 -> 10.189962 | H62: =+G62/42 -> 0.2426181428
B63: =+B62+100 -> 400 | C63: =+C62 -> 1953.630553 | D63: 491.9748948 | E63: 815.1775354 | F63: =SUM(C63:E63) -> 3260.782984 | G63: =+F63/B63 -> 8.151957459 | H63: =+G63/42 -> 0.1940942252
B64: 500 | C64: 1953.630553 | D64: 491.9748948 | E64: 1018.971919 | F64: 3464.577368 | G64: 6.929154735 | H64: 0.1649798746
B65: 600 | C65: 1953.630553 | D65: 491.9748948 | E65: 1222.766303 | F65: 3668.371751 | G65: 6.113952919 | H65: 0.1455703076
B66: 700 | C66: 1953.630553 | D66: 491.9748948 | E66: 1426.560687 | F66: 3872.166135 | G66: 5.531665907 | H66: 0.1317063311
B67: 800 | C67: 1953.630553 | D67: 491.9748948 | E67: 1630.355071 | F67: 4075.960519 | G67: 5.094950649 | H67: 0.1213083488
B68: 900 | C68: 1953.630553 | D68: 491.9748948 | E68: 1834.149455 | F68: 4279.754903 | G68: 4.755283226 | H68: 0.1132210292
B69: 1000 | C69: 1953.630553 | D69: 491.9748948 | E69: 2037.943839 | F69: 4483.549287 | G69: 4.483549287 | H69: 0.1067511735
B70: 1100 | C70: 1953.630553 | D70: 491.9748948 | E70: 2241.738222 | F70: 4687.343671 | G70: 4.261221519 | H70: 0.1014576552
B71: 1200 | C71: 1953.630553 | D71: 491.9748948 | E71: 2445.532606 | F71: 4891.138055 | G71: 4.075948379 | H71: 0.09704638997
B72: =+B71+100 -> 1300 | C72: 1953.630553 | D72: =+D71 -> 491.9748948 | E72: 2649.32699 | F72: =SUM(C72:E72) -> 5094.932438 | G72: =+F72/B72 -> 3.919178799 | H72: 0.09331378092
B73: =+B72+100 -> 1400 | C73: 1953.630553 | D73: =+D72 -> 491.9748948 | E73: 2853.121374 | F73: =SUM(C73:E73) -> 5298.726822 | G73: =+F73/B73 -> 3.784804873 | H73: 0.09011440174
B74: =+B73+100 -> 1500 | C74: 1953.630553 | D74: =+D73 -> 491.9748948 | E74: 3056.915758 | F74: =SUM(C74:E74) -> 5502.521206 | G74: =+F74/B74 -> 3.668347471 | H74: 0.08734160645
C114: Sevin 80S

Sheet Central Leader
A1: Central Leader
A3: The central leader orchard remains non-bearing for years 1 through 3. The 1st crop is produced in the 4th year and the orchard
A4: becomes full bearing in the 8th year. A reduced spray program is followed during the 2nd through 6th year. A full bearing spray
A5: program is followed starting in year 7.
A7: Year 1, Planting Year.
A8: Activity | B8: Labor Hours | C8: Eq. Hours | D8: Labor Cost | E8: Eq. Code | F8: Eq. Cost | G8: Material Cost | H8: Other Cost | I8: Total Cost
A10: Ground Preparation
A11: 80hp tractor | B11: 0.5 | C11: =B11 -> 0.5 | D11: =B11*LaborSkill -> 7.5 | E11: 2 | F11: =IF(E11>0,VLOOKUP(E11,EquipCost,15)*C11,0) -> 11.855 | I11: =SUM(F11:H11)+D11 -> 19.355
A12: Plow | C12: =B11 -> 0.5 | E12: 8 | F12: =IF(E12>0,VLOOKUP(E12,EquipCost,15)*C12,0) -> 2.223888889 | I12: =SUM(F12:H12)+D12 -> 2.223888889
A13: 80hp tractor | B13: 0.3 | C13: =B13 -> 0.3 | D13: =B13*LaborSkill -> 4.5 | E13: 2 | F13: =IF(E13>0,VLOOKUP(E13,EquipCost,15)*C13,0) -> 7.113 | I13: =SUM(F13:H13)+D13 -> 11.613
A14: Disc | C14: =B13 -> 0.3 | E14: 9 | F14: =IF(E14>0,VLOOKUP(E14,EquipCost,15)*C14,0) -> 1.63 | I14: =SUM(F14:H14)+D14 -> 1.63
A15: Pick stone & roots | B15: 3 | C15: =B15 -> 3 | D15: =B15*LaborNoSkill -> 30 | E15: 15 | F15: =IF(E15>0,VLOOKUP(E15,EquipCost,15)*C15,0) -> 30.13125 | I15: =SUM(F15:H15)+D15 -> 60.13125
A16: Planting Trees
A17: Layout | B17: 0.5 | C17: =B17 -> 0.5 | D17: =B17*LaborSkill -> 7.5 | E17: 1 | F17: =IF(E17>0,VLOOKUP(E17,EquipCost,15)*C17,0) -> 8.4924 | I17: =SUM(F17:H17)+D17 -> 15.9924
A18: Marking | B18: 0.5 | C18: 0.5 | D18: =B18*LaborSkill -> 7.5 | E18: 1 | F18: =IF(E18>0,VLOOKUP(E18,EquipCost,15)*C18,0) -> 8.4924 | I18: 15.9924
A19: Purchase trees | G19: =CLTree*TreeCost -> 1542.75 | I19: 1542.75
A20: Custom Plant @ .30 /tree | H20: =VATree*CustomPlant -> 217.8 | I20: 217.8
A21: Watering Trees | B21: 2 | C21: =+B21 -> 2 | D21: =B21*LaborNoSkill -> 20 | E21: 13 | F21: =IF(E21>0,VLOOKUP(E21,EquipCost,15)*C21,0) -> 16.548 | I21: 36.548
A22: 40 hp tractor | C22: =+B22 -> 0 | E22: 3 | F22: =IF(E22>0,VLOOKUP(E22,EquipCost,15)*C22,0) -> 0 | I22: 0
A23: Training | B23: =+CLTrain1 -> 5 | C23: 2 | D23: =B23*LaborNoSkill -> 50 | E23: 1 | F23: =IF(E23>0,VLOOKUP(E23,EquipCost,15)*C23,0) -> 33.9696 | G23: =+CLTrainMat1 -> 10 | I23: 93.9696
A24: Pruning | B24: =+CLPrune1 -> 0.3025 | C24: =+B24 -> 0.3025 | D24: =B24*LaborNoSkill -> 3.025 | E24: 18 | F24: =IF(E24>0,VLOOKUP(E24,EquipCost,15)*C24,0) -> 1.375165 | I24: 4.400165
A25: Nematode Control | I25: 0
A26: Herbicide Program
A27: 40 hp tractor | B27: =+CLHerbTime -> 0.8 | C27: =+B27 -> 0.8 | D27: =B27*LaborSkill -> 12 | E27: 3 | F27: =IF(E27>0,VLOOKUP(E27,EquipCost,15)*C27,0) -> 9.724 | I27: =SUM(F27:H27)+D27 -> 21.724
A28: Weed sprayer | C28: =+C27 -> 0.8 | E28: 5 | F28: =IF(E28>0,VLOOKUP(E28,EquipCost,15)*C28,0) -> 3.545333333 | G28: =+CLHerb1 -> 2.368 | I28: =SUM(F28:H28)+D28 -> 5.913333333
A29: Spray Program
A30: 80 hp tractor | B30: =+CLSprayTime1 -> 0.18 | C30: =+B30 -> 0.18 | D30: =B30*LaborSkill -> 2.7 | E30: 2 | F30: =IF(E30>0,VLOOKUP(E30,EquipCost,15)*C30,0) -> 4.2678 | G30: =+CLSprayMat1 -> 58.18090481 | I30: =SUM(F30:H30)+D30 -> 65.14870481
A31: Airblast spr. | C31: =+C30 -> 0.18 | E31: 4 | F31: =IF(E31>0,VLOOKUP(E31,EquipCost,15)*C31,0) -> 2.0475 | I31: =SUM(F31:H31)+D31 -> 2.0475
A32: Fertilize | I32: =SUM(F32:H32)+D32 -> 0
A33: 40 hp tractor | B33: =+CLFertTime1 -> 0.1 | C33: =+B33 -> 0.1 | D33: =B33*LaborNoSkill -> 1 | E33: 3 | F33: =IF(E33>0,VLOOKUP(E33,EquipCost,15)*C33,0) -> 1.2155 | G33: =+CLFert1 -> 1.134375 | I33: =SUM(F33:H33)+D33 -> 3.349875
A34: Vicon Spreader | C34: 0.2 | E34: 6 | F34: =IF(E34>0,VLOOKUP(E34,EquipCost,15)*C34,0) -> 0.627047619 | I34: =SUM(F34:H34)+D34 -> 0.627047619
A35: Sod Establishment
A36: 40 hp tractor | B36: 0.3 | C36: =0.3*3 -> 0.9 | D36: =B36*LaborSkill -> 4.5 | E36: 3 | F36: =IF(E36>0,VLOOKUP(E36,EquipCost,15)*C36,0) -> 10.9395 | I36: =SUM(F36:H36)+D36 -> 15.4395
A37: Spreader | C37: =+B36 -> 0.3 | E37: 6 | F37: =IF(E37>0,VLOOKUP(E37,EquipCost,15)*C37,0) -> 0.9405714286 | G37: 11 | I37: =SUM(F37:H37)+D37 -> 11.94057143
A38: Cultipack | B38: 0.3 | C38: =B38 -> 0.3 | D38: =B38*LaborNoSkill -> 3 | E38: 12 | F38: =IF(E38>0,VLOOKUP(E38,EquipCost,15)*C38,0) -> 2.116 | I38: =SUM(F38:H38)+D38 -> 5.116
A39: Drag | B39: 0.3 | C39: =B39 -> 0.3 | D39: =B39*LaborNoSkill -> 3 | E39: 12 | F39: =IF(E39>0,VLOOKUP(E39,EquipCost,15)*C39,0) -> 2.116 | I39: =SUM(F39:H39)+D39 -> 5.116
A40: Mowing
A41: 40 hp tractor | B41: =+CLMowTime1 -> 0 | C41: =B41 -> 0 | D41: =+B41*LaborNoSkill -> 0 | E41: 3 | F41: =IF(E41>0,VLOOKUP(E41,EquipCost,15)*C41,0) -> 0 | I41: =SUM(F41:H41)+D41 -> 0
A42: Mower | C42: =B41 -> 0 | E42: 7 | F42: =IF(E42>0,VLOOKUP(E42,EquipCost,15)*C42,0) -> 0 | I42: =SUM(F42:H42)+D42 -> 0
A43: Mouse control
A44: 40 hp tractor | B44: =+CLBaitTime1 -> 0.1176470588 | C44: =+B44 -> 0.1176470588 | D44: =+B44*LaborNoSkill -> 1.176470588 | E44: 3 | F44: =IF(E44>0,VLOOKUP(E44,EquipCost,15)*C44,0) -> 1.43 | I44: =SUM(F44:H44)+D44 -> 2.606470588
A45: Vicon Spreader | C45: =+B44 -> 0.1176470588 | E45: 6 | F45: =IF(E45>0,VLOOKUP(E45,EquipCost,15)*C45,0) -> 0.3688515406 | G45: =+CLBait1 -> 5.5 | I45: =SUM(F45:H45)+D45 -> 5.868851541
A46: Mouse guards | B46: 5 | D46: =+B46*LaborNoSkill -> 50 | G46: =+'Factors & Yield'!C14*CLTree -> 45.375 | I46: =SUM(F46:G46)+D46 -> 95.375
A47: Wildlife Control | B47: 0.3 | C47: =B47 -> 0.3 | D47: =B47*LaborNoSkill -> 3 | E47: 1 | F47: =IF(E47>0,VLOOKUP(E47,EquipCost,15)*C47,0) -> 5.09544 | G47: =+CLWild*CLTree -> 9.075 | I47: =SUM(F47:H47)+D47 -> 17.17044
A48: Scouting | I48: =SUM(F48:H48)+D48 -> 0
A49: Bees | I49: =SUM(F49:H49)+D49 -> 0
A50: Real Estate Tax | H50: =+RETax -> 35 | I50: =SUM(F50:H50)+D50 -> 35
A51: Management | B51: 2 | D51: =B51*LaborSkill -> 30 | F51: =IF(E51>0,VLOOKUP(E51,EquipCost,15)*C51,0) -> 0 | H51: =+other -> 40 | I51: =SUM(F51:H51)+D51 -> 70
A53: Total | B53: =SUM(B9:B52) -> 21.50014706 | C53: =SUM(C9:C52) -> 14.49779412 | D53: =SUM(D9:D52) -> 240.4014706 | F53: =SUM(F9:F52) -> 166.2642478 | G53: =SUM(G9:G52) -> 1685.38328 | H53: =SUM(H9:H52) -> 292.8 | I53: =SUM(I9:I52) -> 2384.848998
A54: Year 2, Non-bearing Year
A55: Activity | B55: Labor Hours | C55: Eq. Hours | D55: Labor Cost | E55: Eq. Code | F55: Eq. Cost | G55: Material Cost | H55: Other Cost | I55: Total Cost
A57: Training | B57: =+CLTrain2 -> 5 | C57: 2 | D57: =B57*LaborNoSkill -> 50 | E57: 1 | F57: =IF(E57>0,VLOOKUP(E57,EquipCost,15)*C57,0) -> 33.9696 | G57: =+CLTrainMat2 -> 10 | I57: =SUM(F57:H57)+D57 -> 93.9696
A58: Pruning | B58: =+CLPrune2 -> 0.3025 | C58: =+B58 -> 0.3025 | D58: =B58*LaborNoSkill -> 3.025 | E58: 18 | F58: =IF(E58>0,VLOOKUP(E58,EquipCost,15)*C58,0) -> 1.375165 | I58: =SUM(F58:H58)+D58 -> 4.400165
A59: Brush Removal | B59: 0 | C59: =+B59 -> 0 | D59: =B59*LaborSkill -> 0 | E59: 3 | F59: =IF(E59>0,VLOOKUP(E59,EquipCost,15)*C59,0) -> 0 | I59: =SUM(F59:H59)+D59 -> 0
A60: Tree replacement | B60: =0.0333333333333333*CLTree*0.05 -> 0.3025 | C60: =B60 -> 0.3025 | D60: =B60*LaborNoSkill -> 3.025 | E60: 1 | F60: =IF(E60>0,VLOOKUP(E60,EquipCost,15)*C60,0) -> 5.137902 | G60: =+CLTree*TreeCost*0.01 -> 15.4275 | I60: =SUM(F60:H60)+D60 -> 23.590402
A61: Herbicide Program
A62: 40 hp tractor | B62: =+CLHerbTime -> 0.8 | C62: =+B62 -> 0.8 | D62: =B62*LaborSkill -> 12 | E62: 3 | F62: =IF(E62>0,VLOOKUP(E62,EquipCost,15)*C62,0) -> 9.724 | I62: =SUM(F62:H62)+D62 -> 21.724
A63: Weed sprayer | C63: =+C62 -> 0.8 | E63: 5 | F63: =IF(E63>0,VLOOKUP(E63,EquipCost,15)*C63,0) -> 3.545333333 | G63: =+CLHerb2 -> 2.368 | I63: =SUM(F63:H63)+D63 -> 5.913333333
A64: Spray Program
A65: 80 hp tractor | B65: =+CLSprayTime2 -> 0.36 | C65: =+B65 -> 0.36 | D65: =B65*LaborSkill -> 5.4 | E65: 2 | F65: =IF(E65>0,VLOOKUP(E65,EquipCost,15)*C65,0) -> 8.5356 | G65: =+CLSprayMat2 -> 116.3618096 | I65: =SUM(F65:H65)+D65 -> 130.2974096
A66: Airblast spr. | C66: =+C65 -> 0.36 | E66: 4 | F66: =IF(E66>0,VLOOKUP(E66,EquipCost,15)*C66,0) -> 4.095 | I66: =SUM(F66:H66)+D66 -> 4.095
A67: Fertilizer
A68: 40 hp tractor | B68: =+CLFertTime2 -> 0.1 | C68: 0.3 | D68: =+B68*LaborNoSkill -> 1 | E68: 3 | F68: =IF(E68>0,VLOOKUP(E68,EquipCost,15)*C68,0) -> 3.6465 | G68: =+CLFert2 -> 2.26875 | I68: =SUM(F68:H68)+D68 -> 6.91525
A69: Vicon Spreader | C69: =+C68 -> 0.3 | E69: 6 | F69: =IF(E69>0,VLOOKUP(E69,EquipCost,15)*C69,0) -> 0.9405714286 | I69: =SUM(F69:H69)+D69 -> 0.9405714286
A70: Mowing
A71: 40 hp tractor | B71: =+VAMowTime2 -> 0.7142857143 | C71: =B71 -> 0.7142857143 | D71: =+B71*LaborNoSkill -> 7.142857143 | E71: 3 | F71: =IF(E71>0,VLOOKUP(E71,EquipCost,15)*C71,0) -> 8.682142857 | I71: =SUM(F71:H71)+D71 -> 15.825
A72: Mower | C72: =B71 -> 0.7142857143 | E72: 7 | F72: =IF(E72>0,VLOOKUP(E72,EquipCost,15)*C72,0) -> 3.328231293 | I72: =SUM(F72:H72)+D72 -> 3.328231293
A73: Mouse control
A74: 40 hp tractor | B74: =+CLBaitTime3 -> 0.1176470588 | C74: =+B74 -> 0.1176470588 | D74: =B74*LaborNoSkill -> 1.176470588 | E74: 3 | F74: =IF(E74>0,VLOOKUP(E74,EquipCost,15)*C74,0) -> 1.43 | I74: =SUM(F74:H74)+D74 -> 2.606470588
A75: Vicon Spreader | C75: =+C74 -> 0.1176470588 | E75: 6 | F75: =IF(E75>0,VLOOKUP(E75,EquipCost,15)*C75,0) -> 0.3688515406 | G75: =+CLBait3 -> 5.5 | I75: 5.868851541
A76: Wildlife Control | B76: 2 | C76: 1 | D76: =B76*LaborNoSkill -> 20 | E76: 1 | F76: =IF(E76>0,VLOOKUP(E76,EquipCost,15)*C76,0) -> 16.9848 | G76: =+CLWild*CLTree -> 9.075 | I76: 46.0598
A77: Scouting | I77: 0
A78: Bees | I78: 0
A79: Trickle Irrigation | B79: 0 | C79: 0 | D79: =B79*LaborNoSkill -> 0 | E79: 17 | F79: =IF(E79>0,VLOOKUP(E79,EquipCost,15)*C79,0) -> 0 | I79: 0
A80: Real Estate Tax | B80: =-B1274 -> 0 | D80: =B80*LaborNoSkill -> 0 | F80: =IF(E80>0,VLOOKUP(E80,EquipCost,15)*C80,0) -> 0 | H80: =+RETax -> 35 | I80: =SUM(F80:H80)+D80 -> 35
A81: Management | B81: 2 | D81: =B81*LaborNoSkill -> 20 | F81: =IF(E81>0,VLOOKUP(E81,EquipCost,15)*C81,0) -> 0 | H81: =+other -> 40 | I81: =SUM(F81:H81)+D81 -> 60
A83: Total | B83: =SUM(B61:B82) -> 6.091932773 | C83: =SUM(C61:C82) -> 5.583865546 | D83: =SUM(D61:D82) -> 66.71932773 | F83: =SUM(F61:F82) -> 61.28103045 | G83: =SUM(G61:G82) -> 135.5735596 | H83: =SUM(H61:H82) -> 75 | I83: =SUM(I56:I82) -> 460.5340848
A84: Year 3, Non-bearing Year
A85: Activity | B85: Labor Hours | C85: Eq. Hours | D85: Labor Cost | E85: Eq. Code | F85: Eq. Cost | G85: Material Cost | H85: Other Cost | I85: Total Cost
A87: Training | B87: =+CLTrain4 -> 15 | C87: 2 | D87: =B87*LaborNoSkill -> 150 | E87: 1 | F87: =IF(E87>0,VLOOKUP(E87,EquipCost,15)*C87,0) -> 33.9696 | G87: =+CLTrainMat3 -> 10 | I87: =SUM(F87:H87)+D87 -> 193.9696
A88: Pruning | B88: =+CLPrune4 -> 0.3025 | C88: =+B88 -> 0.3025 | D88: =B88*LaborNoSkill -> 3.025 | E88: 18 | F88: =IF(E88>0,VLOOKUP(E88,EquipCost,15)*C88,0) -> 1.375165 | I88: =SUM(F88:H88)+D88 -> 4.400165
A89: Brush Removal | B89: 0 | C89: =+B89 -> 0 | D89: =B89*LaborSkill -> 0 | E89: 3 | F89: =IF(E89>0,VLOOKUP(E89,EquipCost,15)*C89,0) -> 0 | I89: =SUM(F89:H89)+D89 -> 0
A90: Tree replacement | B90: 0.5 | C90: =B90 -> 0.5 | D90: =B90*LaborNoSkill -> 5 | E90: 1 | F90: =IF(E90>0,VLOOKUP(E90,EquipCost,15)*C90,0) -> 8.4924 | G90: =+CLTree*TreeCost*0.01 -> 15.4275 | I90: =SUM(F90:H90)+D90 -> 28.9199
A91: Herbicide Program
A92: 40 hp tractor | B92: =+CLHerbTime -> 0.8 | C92: =+B92 -> 0.8 | D92: =B92*LaborSkill -> 12 | E92: 3 | F92: =IF(E92>0,VLOOKUP(E92,EquipCost,15)*C92,0) -> 9.724 | I92: =SUM(F92:H92)+D92 -> 21.724
A93: Weed sprayer | C93: =+C92 -> 0.8 | E93: 5 | F93: =IF(E93>0,VLOOKUP(E93,EquipCost,15)*C93,0) -> 3.545333333 | G93: =+CLHerb3 -> 3.552 | I93: =SUM(F93:H93)+D93 -> 7.097333333
A94: Spray Program
A95: 80 hp tractor | B95: =+CLSprayTime3 -> 1.44 | C95: =+B95 -> 1.44 | D95: =B95*LaborSkill -> 21.6 | E95: 2 | F95: =IF(E95>0,VLOOKUP(E95,EquipCost,15)*C95,0) -> 34.1424 | G95: =+CLSprayMat3 -> 465.4472385 | I95: =SUM(F95:H95)+D95 -> 521.1896385
A96: Airblast spr. | C96: =+C95 -> 1.44 | E96: 4 | F96: =IF(E96>0,VLOOKUP(E96,EquipCost,15)*C96,0) -> 16.38 | I96: =SUM(F96:H96)+D96 -> 16.38
A97: Fertilizer
A98: 40 hp tractor | B98: =+CLFertTime3 -> 0.1 | C98: =+B98 -> 0.1 | D98: =B98*LaborNoSkill -> 1 | E98: 3 | F98: =IF(E98>0,VLOOKUP(E98,EquipCost,15)*C98,0) -> 1.2155 | G98: =+CLFert3 -> 3.403125 | I98: =SUM(F98:H98)+D98 -> 5.618625
A99: Vicon Spreader | C99: =+C98 -> 0.1 | E99: 6 | F99: =IF(E99>0,VLOOKUP(E99,EquipCost,15)*C99,0) -> 0.3135238095 | I99: =SUM(F99:H99)+D99 -> 0.3135238095
A100: Lime | G100: 0 | I100: =SUM(F100:H100)+D100 -> 0
A101: Mowing
A102: 40 hp tractor | B102: =+CLMowTime3 -> 0.75 | C102: =+B102 -> 0.75 | D102: =B102*LaborNoSkill -> 7.5 | E102: 3 | F102: =IF(E102>0,VLOOKUP(E102,EquipCost,15)*C102,0) -> 9.11625 | I102: =SUM(F102:H102)+D102 -> 16.61625
A103: Mower | C103: =+C102 -> 0.75 | E103: 7 | F103: =IF(E103>0,VLOOKUP(E103,EquipCost,15)*C103,0) -> 3.494642857 | I103: =SUM(F103:H103)+D103 -> 3.494642857
A104: Mouse control | C104: Sevin 80S
A105: 40 hp tractor | B105: =+CLBaitTime3 -> 0.1176470588 | C105: =+B105 -> 0.1176470588 | D105: =B105*LaborNoSkill -> 1.176470588 | E105: 3 | F105: =IF(E105>0,VLOOKUP(E105,EquipCost,15)*C105,0) -> 1.43 | I105: =SUM(F105:H105)+D105 -> 2.606470588
A106: Vicon Spreader | C106: =+C105 -> 0.1176470588 | E106: 6 | F106: =IF(E106>0,VLOOKUP(E106,EquipCost,15)*C106,0) -> 0.3688515406 | G106: =+CLBait3 -> 5.5 | I106: 5.868851541
A107: Wildlife Control | B107: 2 | C107: 1 | D107: =B107*LaborNoSkill -> 20 | E107: 1 | F107: =IF(E107>0,VLOOKUP(E107,EquipCost,15)*C107,0) -> 16.9848 | G107: =+CLWild*CLTree -> 9.075 | I107: 46.0598
A108: Scouting | I108: 0
A109: Bees | I109: 0
A110: Trickle Irrigation | B110: 0 | C110: 0 | D110: =B110*LaborNoSkill -> 0 | E110: 17 | F110: =IF(E110>0,VLOOKUP(E110,EquipCost,15)*C110,0) -> 0 | I110: 0
A111: Real Estate Tax | D111: =B111*LaborNoSkill -> 0 | F111: =IF(E111>0,VLOOKUP(E111,EquipCost,15)*C111,0) -> 0 | H111: =+RETax -> 35 | I111: 35
A112: Management | D112: =B112*LaborNoSkill -> 0 | F112: =IF(E112>0,VLOOKUP(E112,EquipCost,15)*C112,0) -> 0 | H112: =+other -> 40 | I112: 40
A114: Total | B114: =SUM(B91:B113) -> 5.207647059 | C114: =SUM(C91:C113) -> 7.415294118 | D114: =SUM(D91:D113) -> 63.27647059 | F114: =SUM(F91:F113) -> 96.71530154 | G114: =SUM(G91:G113) -> 486.9773635 | H114: =SUM(H91:H113) -> 75 | I114: =SUM(I86:I113) -> 949.2588006
A115: Year 4, Early Cropping Year
A116: Activity | B116: Labor Hours | C116: Eq. Hours | D116: Labor Cost | E116: Eq. Code | F116: Eq. Cost | G116: Material Cost | H116: Other Cost | I116: Total Cost
A118: Training | B118: =+CLTrain4 -> 15 | C118: 2 | D118: =B118*LaborNoSkill -> 150 | E118: 1 | F118: =IF(E118>0,VLOOKUP(E118,EquipCost,15)*C118,0) -> 33.9696 | G118: =+CLTrainMat4 -> 10 | I118: =SUM(F118:H118)+D118 -> 193.9696
A119: Pruning | B119: =+CLPrune4 -> 0.3025 | C119: =+B119 -> 0.3025 | D119: =B119*LaborNoSkill -> 3.025 | E119: 18 | F119: =IF(E119>0,VLOOKUP(E119,EquipCost,15)*C119,0) -> 1.375165 | I119: =SUM(F119:H119)+D119 -> 4.400165
A120: Brush Removal | B120: 0 | C120: =+B120 -> 0 | D120: =B120*LaborSkill -> 0 | E120: 3 | F120: =IF(E120>0,VLOOKUP(E120,EquipCost,15)*C120,0) -> 0 | I120: =SUM(F120:H120)+D120 -> 0
A121: Tree replacement | B121: 0.5 | C121: =B121 -> 0.5 | D121: =B121*LaborNoSkill -> 5 | E121: 1 | F121: =IF(E121>0,VLOOKUP(E121,EquipCost,15)*C121,0) -> 8.4924 | G121: =+CLTree*TreeCost*0.01 -> 15.4275 | I121: =SUM(F121:H121)+D121 -> 28.9199
A122: Herbicide Program
A123: 40 hp tractor | B123: =+CLHerbTime -> 0.8 | C123: =+B123 -> 0.8 | D123: =B123*LaborSkill -> 12 | E123: 3 | F123: =IF(E123>0,VLOOKUP(E123,EquipCost,15)*C123,0) -> 9.724 | I123: =SUM(F123:H123)+D123 -> 21.724
A124: Weed sprayer | C124: =+C123 -> 0.8 | E124: 5 | F124: =IF(E124>0,VLOOKUP(E124,EquipCost,15)*C124,0) -> 3.545333333 | G124: =+CLHerb4 -> 3.552 | I124: =SUM(F124:H124)+D124 -> 7.097333333
A125: Spray Program
A126: 80 hp tractor | B126: =+CLSprayTime4 -> 2.16 | C126: =+B126 -> 2.16 | D126: =B126*LaborSkill -> 32.4 | E126: 2 | F126: =IF(E126>0,VLOOKUP(E126,EquipCost,15)*C126,0) -> 51.2136 | G126: =+CLSprayMat4 -> 698.1708577 | I126: =SUM(F126:H126)+D126 -> 781.7844577
A127: Airblast spr. | C127: =+C126 -> 2.16 | E127: 4 | F127: =IF(E127>0,VLOOKUP(E127,EquipCost,15)*C127,0) -> 24.57 | I127: =SUM(F127:H127)+D127 -> 24.57
A128: Mowing
A129: 40 hp tractor | B129: =+CLMowTime4 -> 0.75 | C129: =+B129 -> 0.75 | D129: =B129*LaborNoSkill -> 7.5 | E129: 3 | F129: =IF(E129>0,VLOOKUP(E129,EquipCost,15)*C129,0) -> 9.11625 | I129: =SUM(F129:H129)+D129 -> 16.61625
A130: Mower | C130: =+C129 -> 0.75 | E130: 7 | F130: =IF(E130>0,VLOOKUP(E130,EquipCost,15)*C130,0) -> 3.494642857 | I130: =SUM(F130:H130)+D130 -> 3.494642857
A131: Mouse control
A132: 40 hp tractor | B132: =+CLBaitTIme4 -> 0.1176470588 | C132: =+B132 -> 0.1176470588 | D132: =B132*LaborNoSkill -> 1.176470588 | E132: 3 | F132: =IF(E132>0,VLOOKUP(E132,EquipCost,15)*C132,0) -> 1.43 | I132: =SUM(F132:H132)+D132 -> 2.606470588
A133: Vicon Spreader | C133: =+C132 -> 0.1176470588 | E133: 6 | F133: =IF(E133>0,VLOOKUP(E133,EquipCost,15)*C133,0) -> 0.3688515406 | G133: =+CLBait4 -> 5.5 | I133: =SUM(F133:H133)+D133 -> 5.868851541
A134: Wildlife Control | B134: 2 | C134: 1 | D134: =B134*LaborNoSkill -> 20 | E134: 1 | F134: =IF(E134>0,VLOOKUP(E134,EquipCost,15)*C134,0) -> 16.9848 | G134: =+CLWild*CLTree -> 9.075 | I134: =SUM(F134:H134)+D134 -> 46.0598
A135: Fertilizer
A136: 40 hp tractor | B136: =+CLFertTime4 -> 0.1 | C136: =+B136 -> 0.1 | D136: =B136*LaborNoSkill -> 1 | E136: 3 | F136: =IF(E136>0,VLOOKUP(E136,EquipCost,15)*C136,0) -> 1.2155 | G136: =+CLFert4 -> 4.5375 | I136: =SUM(F136:H136)+D136 -> 6.753
A137: Vicon Spreader | C137: =+C136 -> 0.1 | E137: 6 | F137: =IF(E137>0,VLOOKUP(E137,EquipCost,15)*C137,0) -> 0.3135238095 | I137: =SUM(F137:H137)+D137 -> 0.3135238095
A138: Lime (1 tons) | G138: =+Lime -> 35 | I138: =SUM(F138:H138)+D138 -> 35
A139: Scouting | I139: =SUM(F139:H139)+D139 -> 0
A140: Bees | I140: =SUM(F140:H140)+D140 -> 0
A141: Trickle Irrigation | B141: 0 | C141: 0 | D141: =B141*LaborNoSkill -> 0 | E141: 17 | F141: =IF(E141>0,VLOOKUP(E141,EquipCost,15)*C141,0) -> 0 | I141: 0
A142: Real Estate Tax | D142: =B142*LaborNoSkill -> 0 | F142: =IF(E142>0,VLOOKUP(E142,EquipCost,15)*C142,0) -> 0 | H142: =+RETax -> 35 | I142: 35
A143: Management | D143: =B143*LaborNoSkill -> 0 | F143: =IF(E143>0,VLOOKUP(E143,EquipCost,15)*C143,0) -> 0 | H143: =+other -> 40 | I143: 40
A145: Total | B145: =SUM(B117:B144) -> 21.73014706 | C145: =SUM(C117:C144) -> 11.65779412 | D145: =SUM(D117:D144) -> 232.1014706 | F145: =SUM(F117:F144) -> 165.8136665 | G145: =SUM(G117:G144) -> 781.2628577 | H145: =SUM(H117:H144) -> 75 | I145: =SUM(I117:I144) -> 1254.177995
A146: Year 5, Early Cropping Year
A147: Activity | B147: Labor Hours | C147: Eq. Hours | D147: Labor Cost | E147: Eq. Code | F147: Eq. Cost | G147: Material Cost | H147: Other Cost | I147: Total Cost
A149: Training | B149: =+CLTrain5 -> 10 | C149: 2 | D149: =B149*LaborNoSkill -> 100 | E149: 1 | F149: =IF(E149>0,VLOOKUP(E149,EquipCost,15)*C149,0) -> 33.9696 | G149: =+CLTrainMat5 -> 10 | I149: =SUM(F149:H149)+D149 -> 143.9696
A150: Pruning | B150: =+CLPrune5 -> 6.05 | C150: =+B150 -> 6.05 | D150: =B150*LaborNoSkill -> 60.5 | E150: 18 | F150: =IF(E150>0,VLOOKUP(E150,EquipCost,15)*C150,0) -> 27.5033 | I150: =SUM(F150:H150)+D150 -> 88.0033
A151: Brush Removal | B151: 0.5 | C151: =+B151 -> 0.5 | D151: =B151*LaborSkill -> 7.5 | E151: 3 | F151: =IF(E151>0,VLOOKUP(E151,EquipCost,15)*C151,0) -> 6.0775 | I151: =SUM(F151:H151)+D151 -> 13.5775
A152: Tree replacement | B152: 0.5 | C152: =B152 -> 0.5 | D152: =B152*LaborNoSkill -> 5 | E152: 1 | F152: =IF(E152>0,VLOOKUP(E152,EquipCost,15)*C152,0) -> 8.4924 | G152: =+CLTree*TreeCost*0.01 -> 15.4275 | I152: =SUM(F152:H152)+D152 -> 28.9199
A153: Herbicide Program
A154: 40 hp tractor | B154: =+CLHerbTime -> 0.8 | C154: =+B154 -> 0.8 | D154: =B154*LaborSkill -> 12 | E154: 3 | F154: =IF(E154>0,VLOOKUP(E154,EquipCost,15)*C154,0) -> 9.724 | I154: =SUM(F154:H154)+D154 -> 21.724
A155: Weed sprayer | C155: =+C154 -> 0.8 | E155: 5 | F155: =IF(E155>0,VLOOKUP(E155,EquipCost,15)*C155,0) -> 3.545333333 | G155: =+CLHerb5 -> 11.06667187 | I155: =SUM(F155:H155)+D155 -> 14.61200521
A156: Spray Program
A157: 80 hp tractor | B157: =+CLSprayTIme -> 3.6 | C157: =+B157 -> 3.6 | D157: =B157*LaborSkill -> 54 | E157: 2 | F157: =IF(E157>0,VLOOKUP(E157,EquipCost,15)*C157,0) -> 85.356 | G157: =+CLSprayMat5 -> 1163.618096 | I157: =SUM(F157:H157)+D157 -> 1302.974096
A158: Airblast spr. | C158: =+C157 -> 3.6 | E158: 4 | F158: =IF(E158>0,VLOOKUP(E158,EquipCost,15)*C158,0) -> 40.95 | I158: =SUM(F158:H158)+D158 -> 40.95
A159: Mowing
A160: 40 hp tractor | B160: =+CLMowTime5 -> 0.75 | C160: =+B160 -> 0.75 | D160: =B160*LaborNoSkill -> 7.5 | E160: 3 | F160: =IF(E160>0,VLOOKUP(E160,EquipCost,15)*C160,0) -> 9.11625 | I160: =SUM(F160:H160)+D160 -> 16.61625
A161: Mower | C161: =+C160 -> 0.75 | E161: 7 | F161: =IF(E161>0,VLOOKUP(E161,EquipCost,15)*C161,0) -> 3.494642857 | I161: =SUM(F161:H161)+D161 -> 3.494642857
A162: Mouse control
A163: 40 hp tractor | B163: =+CLBaitTime5 -> 0.1176470588 | C163: =+B163 -> 0.1176470588 | D163: =B163*LaborNoSkill -> 1.176470588 | E163: 3 | F163: =IF(E163>0,VLOOKUP(E163,EquipCost,15)*C163,0) -> 1.43 | I163: =SUM(F163:H163)+D163 -> 2.606470588
A164: Vicon Spreader | C164: =+C163 -> 0.1176470588 | E164: 6 | F164: =IF(E164>0,VLOOKUP(E164,EquipCost,15)*C164,0) -> 0.3688515406 | G164: =+CLBait5 -> 5.5 | I164: =SUM(F164:H164)+D164 -> 5.868851541
A165: Wildlife Control | B165: 2 | C165: 1 | D165: =B165*LaborNoSkill -> 20 | E165: 1 | F165: =IF(E165>0,VLOOKUP(E165,EquipCost,15)*C165,0) -> 16.9848 | G165: =+CLWild*CLTree -> 9.075 | I165: =SUM(F165:H165)+D165 -> 46.0598
A166: Fertilizer
A167: 40 hp tractor | B167: =+CLFertTime5 -> 0.1 | C167: =+B167 -> 0.1 | D167: =B167*LaborNoSkill -> 1 | E167: 3 | F167: =IF(E167>0,VLOOKUP(E167,EquipCost,15)*C167,0) -> 1.2155 | G167: =+CLFert5 -> 7.77046875 | I167: =SUM(F167:H167)+D167 -> 9.98596875
A168: Vicon Spreader | C168: =+C167 -> 0.1 | E168: 6 | F168: =IF(E168>0,VLOOKUP(E168,EquipCost,15)*C168,0) -> 0.3135238095 | I168: =SUM(F168:H168)+D168 -> 0.3135238095
A169: Lime (1 tons) | G169: =+Lime -> 35 | I169: =SUM(F169:H169)+D169 -> 35
A170: Scouting | I170: =SUM(F170:H170)+D170 -> 0
A171: Bees | I171: =SUM(F171:H171)+D171 -> 0
A172: Trickle Irrigation | B172: 0 | C172: 0 | D172: =B172*LaborNoSkill -> 0 | E172: 17 | F172: =IF(E172>0,VLOOKUP(E172,EquipCost,15)*C172,0) -> 0 | I172: 0
A173: Real Estate Tax | D173: =B173*LaborNoSkill -> 0 | F173: =IF(E173>0,VLOOKUP(E173,EquipCost,15)*C173,0) -> 0 | H173: =+RETax -> 35 | I173: 35
A174: Management | D174: =B174*LaborNoSkill -> 0 | F174: =IF(E174>0,VLOOKUP(E174,EquipCost,15)*C174,0) -> 0 | H174: =+other -> 40 | I174: 40
A176: Total | B176: =SUM(B148:B175) -> 24.41764706 | C176: =SUM(C148:C175) -> 20.78529412 | D176: =SUM(D148:D175) -> 268.6764706 | F176: =SUM(F148:F175) -> 248.5417015 | G176: =SUM(G148:G175) -> 1257.457737 | H176: =SUM(H148:H175) -> 75 | I176: =SUM(I148:I175) -> 1849.675909
A177: Year 6, Early Cropping Year
A178: Activity | B178: Labor Hours | C178: Eq. Hours | D178: Labor Cost | E178: Eq. Code | F178: Eq. Cost | G178: Material Cost | H178: Other Cost | I178: Total Cost
A180: Training | B180: =+CLTrain6 -> 5 | C180: 2 | D180: =B180*LaborNoSkill -> 50 | E180: 1 | F180: =IF(E180>0,VLOOKUP(E180,EquipCost,15)*C180,0) -> 33.9696 | G180: =+CLTrainMat6 -> 5 | I180: =SUM(F180:H180)+D180 -> 88.9696
A181: Pruning | B181: =+CLPrune6 -> 12.1 | C181: =+B181 -> 12.1 | D181: =B181*LaborNoSkill -> 121 | E181: 18 | F181: =IF(E181>0,VLOOKUP(E181,EquipCost,15)*C181,0) -> 55.0066 | I181: =SUM(F181:H181)+D181 -> 176.0066
A182: Brush Removal | B182: 1 | C182: =+B182 -> 1 | D182: =B182*LaborSkill -> 15 | E182: 3 | F182: =IF(E182>0,VLOOKUP(E182,EquipCost,15)*C182,0) -> 12.155 | I182: =SUM(F182:H182)+D182 -> 27.155
A183: Tree replacement | B183: 0.5 | C183: =B183 -> 0.5 | D183: =B183*LaborNoSkill -> 5 | E183: 1 | F183: =IF(E183>0,VLOOKUP(E183,EquipCost,15)*C183,0) -> 8.4924 | G183: =+CLTree*TreeCost*0.01 -> 15.4275 | I183: =SUM(F183:H183)+D183 -> 28.9199
A184: Herbicide Program
A185: 40 hp tractor | B185: =+CLHerbTime -> 0.8 | C185: =+B185 -> 0.8 | D185: =B185*LaborSkill -> 12 | E185: 3 | F185: =IF(E185>0,VLOOKUP(E185,EquipCost,15)*C185,0) -> 9.724 | I185: =SUM(F185:H185)+D185 -> 21.724
A186: Weed sprayer | C186: =+C185 -> 0.8 | E186: 5 | F186: =IF(E186>0,VLOOKUP(E186,EquipCost,15)*C186,0) -> 3.545333333 | G186: =+CLHerb6 -> 14.7555625 | I186: =SUM(F186:H186)+D186 -> 18.30089583
A187: Spray Program
A188: 80 hp tractor | B188: =+CLSprayTIme -> 3.6 | C188: =+B188 -> 3.6 | D188: =B188*LaborSkill -> 54 | E188: 2 | F188: =IF(E188>0,VLOOKUP(E188,EquipCost,15)*C188,0) -> 85.356 | G188: =+CLSprayMat6 -> 1163.618096 | I188: =SUM(F188:H188)+D188 -> 1302.974096
A189: Airblast spr. | C189: =+C188 -> 3.6 | E189: 4 | F189: =IF(E189>0,VLOOKUP(E189,EquipCost,15)*C189,0) -> 40.95 | I189: =SUM(F189:H189)+D189 -> 40.95
A190: Mowing
A191: 40 hp tractor | B191: =+CLMowTime6 -> 0.75 | C191: =+B191 -> 0.75 | D191: =B191*LaborNoSkill -> 7.5 | E191: 3 | F191: =IF(E191>0,VLOOKUP(E191,EquipCost,15)*C191,0) -> 9.11625 | I191: =SUM(F191:H191)+D191 -> 16.61625
A192: Mower | C192: =+C191 -> 0.75 | E192: 7 | F192: =IF(E192>0,VLOOKUP(E192,EquipCost,15)*C192,0) -> 3.494642857 | I192: =SUM(F192:H192)+D192 -> 3.494642857
A193: Mouse control
A194: 40 hp tractor | B194: =+CLBaitTime6 -> 0.1176470588 | C194: =+B194 -> 0.1176470588 | D194: =B194*LaborNoSkill -> 1.176470588 | E194: 3 | F194: =IF(E194>0,VLOOKUP(E194,EquipCost,15)*C194,0) -> 1.43 | I194: =SUM(F194:H194)+D194 -> 2.606470588
A195: Vicon Spreader | C195: =+C194 -> 0.1176470588 | E195: 6 | F195: =IF(E195>0,VLOOKUP(E195,EquipCost,15)*C195,0) -> 0.3688515406 | G195: =+CLBait6 -> 5.5 | I195: =SUM(F195:H195)+D195 -> 5.868851541
A196: Wildlife Control | B196: 2 | C196: 1 | D196: =B196*LaborNoSkill -> 20 | E196: 1 | F196: =IF(E196>0,VLOOKUP(E196,EquipCost,15)*C196,0) -> 16.9848 | G196: =+CLWild*CLTree -> 9.075 | I196: =SUM(F196:H196)+D196 -> 46.0598
A197: Fertilizer
A198: 40 hp tractor | B198: =+CLFertTime6 -> 0.1 | C198: =+B198 -> 0.1 | D198: =B198*LaborNoSkill -> 1 | E198: 3 | F198: =IF(E198>0,VLOOKUP(E198,EquipCost,15)*C198,0) -> 1.2155 | G198: =+CLFert6 -> 9.8690625 | I198: =SUM(F198:H198)+D198 -> 12.0845625
A199: Vicon Spreader | C199: =+C198 -> 0.1 | E199: 6 | F199: =IF(E199>0,VLOOKUP(E199,EquipCost,15)*C199,0) -> 0.3135238095 | I199: 0.3135238095
A200: Lime | G200: =+Lime -> 35 | I200: 35
A201: Scouting | H201: 15 | I201: 15
A202: Bees | H202: 35 | I202: 35
A203: Trickle Irrigation | B203: 0 | C203: 0 | D203: =B203*LaborNoSkill -> 0 | E203: 17 | F203: =IF(E203>0,VLOOKUP(E203,EquipCost,15)*C203,0) -> 0 | I203: 0
A204: Real Estate Tax | D204: =B204*LaborNoSkill -> 0 | F204: =IF(E204>0,VLOOKUP(E204,EquipCost,15)*C204,0) -> 0 | H204: =+RETax -> 35 | I204: 35
A205: Management | D205: =B205*LaborNoSkill -> 0 | F205: =IF(E205>0,VLOOKUP(E205,EquipCost,15)*C205,0) -> 0 | H205: =+other -> 40 | I205: 40
A207: Total | B207: =SUM(B179:B206) -> 25.96764706 | C207: =SUM(C179:C206) -> 27.33529412 | D207: =SUM(D179:D206) -> 286.6764706 | F207: =SUM(F179:F206) -> 282.1225015 | G207: =SUM(G179:G206) -> 1258.245221 | H207: =SUM(H179:H206) -> 125 | I207: =SUM(I179:I206) -> 1952.044193
A208: Year 7, Early Cropping Year
A209: Activity | B209: Labor Hours | C209: Eq. Hours | D209: Labor Cost | E209: Eq. Code | F209: Eq. Cost | G209: Material Cost | H209: Other Cost | I209: Total Cost
A211: Training | B211: =+CLTrain7 -> 5 | C211: 2 | D211: =B211*LaborNoSkill -> 50 | E211: 1 | F211: =IF(E211>0,VLOOKUP(E211,EquipCost,15)*C211,0) -> 33.9696 | G211: =+CLTrainMat7 -> 0 | I211: =SUM(F211:H211)+D211 -> 83.9696
A212: Pruning | B212: =+CLPrune7 -> 24.2 | C212: =+B212 -> 24.2 | D212: =B212*LaborNoSkill -> 242 | E212: 18 | F212: =IF(E212>0,VLOOKUP(E212,EquipCost,15)*C212,0) -> 110.0132 | I212: =SUM(F212:H212)+D212 -> 352.0132
A213: Brush Removal | B213: 2 | C213: =+B213 -> 2 | D213: =B213*LaborSkill -> 30 | E213: 3 | F213: =IF(E213>0,VLOOKUP(E213,EquipCost,15)*C213,0) -> 24.31 | I213: =SUM(F213:H213)+D213 -> 54.31
A214: Tree replacement | B214: 0.5 | C214: =B214 -> 0.5 | D214: =B214*LaborNoSkill -> 5 | E214: 1 | F214: =IF(E214>0,VLOOKUP(E214,EquipCost,15)*C214,0) -> 8.4924 | G214: =+CLTree*TreeCost*0.01 -> 15.4275 | I214: =SUM(F214:H214)+D214 -> 28.9199
A215: Herbicide Program
... 63 more rows

Sheet SprayPrice
A1: 1
A2: 2 | B2: i=insecticide
A3: 3 | B3: d=disease material
A4: 4 | B4: h=herbicide
A5: 5 | B5: pgr=plant growth regulator
A6: 6 | B6: f=fertilizer
A7: 7 | B7: n=nutrition
A8: 8 | B8: Type | C8: Product | D8: Pkg Size | K8: Rate/ Acre | L8: Unit | Q8: Average Price per acre
A9: 9
A10: 10 | B10: i | C10: Actara | D10: 30 oz | K10: 2.75 | L10: oz | M10: 3.501818182 | Q10: 9.63 | R10: 9.63
A11: 11 | B11: i | C11: Actara | D11: 30 oz | K11: 4.5 | L11: oz | M11: 3.5 | Q11: 15.75 | R11: 15.75
A12: 12 | B12: i | C12: Actara | D12: 30 oz | K12: 5.5 | L12: oz | M12: 3.5 | Q12: 19.25 | R12: 19.25
A13: 13 | B13: i | C13: Agrimek | D13: 1 gal | K13: 10 | L13: oz | M13: 3.96578125 | Q13: 39.6578125
A14: 14 | B14: d | C14: Agri-Mycin 17 | D14: 2 lb | K14: 1.5 | L14: lb | M14: 12.45333333 | Q14: 18.68 | R14: 18.68
A15: 15 | B15: h | C15: Aim EW | D15: 1 qt | K15: 1 | L15: oz | M15: 6.11 | Q15: 6.11 | R15: 6.11
A16: 16 | B16: h | C16: Aim EW | D16: 1 qt | K16: 0.5 | L16: oz | M16: 5.97 | Q16: 2.985
A17: 17 | B17: i | C17: Altachor | K17: 5 | L17: oz | M17: 7.2 | Q17: 36 | R17: 36
A18: 18 | B18: d | C18: Alliette 80 WDG | D18: 5 lb | L18: lb
A19: 19 | B19: pgr | C19: Amid-Thin WC | D19: 1 lb | L19: lb
A20: 20 | B20: h | C20: Amine 2,4-D | D20: 2.5 gal | K20: 3 | L20: pt | M20: 1.626666667 | Q20: 4.88 | R20: 4.88
A21: 21 | B21: pgr | C21: Apogee | D21: 5 lb | K21: 12 | L21: oz | M21: 4.03 | Q21: 48.36 | R21: 48.36
A22: 22 | B22: d | C22: Applause DF | D22: 25 lb | K22: 2.8 | L22: lb | M22: 7 | Q22: 19.6
A23: 23 | C23: Apollo SC | D23: 1 pt | L23: pt
A24: 24 | B24: i | C24: Asana | D24: 1 gal | K24: 12.8 | L24: oz | M24: 0.609375 | Q24: 7.8 | R24: 7.8
A25: 25 | B25: i | C25: Assail 30SG | D25: 32 oz | K25: 2.5 | L25: oz | M25: 5.332 | Q25: 13.33 | R25: 13.33
A26: 26 | B26: i | C26: Assail 30SG | D26: 32 oz | K26: 6 | L26: oz | M26: 5.33 | Q26: 31.98 | R26: 31.98
A27: 27 | B27: i | C27: Avaunt | D27: 15 oz | K27: 6 | L27: oz | M27: 6.13 | Q27: 36.78
A28: 28 | B28: i | C28: Azinphos-M | D28: 5 lb | K28: 2 | L28: lb | M28: 10.19333333 | Q28: 20.38666667
A29: 29 | B29: i | C29: Battalion | D29: 1 gal | K29: 12.8 | L29: oz | M29: 0.6640625 | Q29: 8.5
A30: 30 | B30: i | C30: Baythroid XL | D30: 1 gal | K30: 2.8 | L30: oz | M30: 2.4765625 | Q30: 6.934375
A31: 31 | B31: i | C31: Biocover MLT | D31: 2.5 gal | K31: 6 | L31: gal | M31: 9.95 | Q31: 59.7 | R31: 59.7
A32: 32 | B32: i | C32: Oil | D32: 55 gal | K32: 6 | L32: gal | M32: 7.5 | Q32: 45 | R32: 45
A33: 33 | B33: i | C33: Biocover MLT | D33: bulk | K33: 6 | L33: gal | M33: 5.8 | Q33: 34.8
A34: 34 | B34: i | C34: Calypso | D34: 1 gal | K34: 2 | L34: oz | M34: 5.85 | Q34: 11.7 | R34: 11.7
A35: 35 | B35: i | C35: Calypso | D35: 1 gal | K35: 4 | L35: oz | M35: 5.85 | Q35: 23.4 | R35: 23.4
A36: 36 | B36: i | C36: Calypso | D36: 1 gal | K36: 6 | L36: oz | M36: 5.85 | Q36: 35.1 | R36: 35.1
A37: 37 | B37: d | C37: Captan 50W | D37: 30 lb | K37: 3 | L37: lb | M37: 2.98 | Q37: 8.94 | R37: 8.94
A38: 38 | B38: d | C38: Captan 50W | D38: 30 lb | K38: 6 | L38: lb | M38: 2.98 | Q38: 17.88 | R38: 17.88
A39: 39 | B39: d | C39: Captan 80WDG | D39: 30 lb | K39: 1.875 | L39: lb | M39: 3.488 | Q39: 6.54 | R39: 6.54
A40: 40 | B40: d | C40: Captan 80WDG | D40: 30 lb | K40: 3.75 | L40: lb | M40: 3.490666667 | Q40: 13.09 | R40: 13.09
A41: 41 | B41: d | C41: Captec 4L | D41: 2.5 gal | K41: 6 | L41: pt | M41: 2.97 | Q41: 17.82 | R41: 17.82
A42: 42 | B42: pgr | C42: Carbryl 4L | D42: 2.5 gal | K42: 2 | L42: pt | M42: 2.875 | Q42: 5.75 | R42: 5.75
A43: 43 | B43: i | C43: Carpovirusine | D43: 1 liter | K43: 6.7 | L43: oz | M43: 2.22 | Q43: 14.874
A44: 44 | B44: h | C44: Chateau WDG | D44: 2.5 lb | K44: 12 | L44: oz | M44: 6.13 | Q44: 73.56 | R44: 73.56
A45: 45 | B45: d | C45: C-O-C-S | D45: 20 lb | K45: 6 | L45: lb | M45: 3.95 | Q45: 23.7 | R45: 23.7
A46: 46 | B46: d | C46: C-O-C-S | D46: 20 lb | K46: 8 | L46: lb | M46: 3.95 | Q46: 31.6 | R46: 31.6
A47: 47 | B47: i | C47: Confirm 2F | D47: 2.5 gal | L47: gal
A48: 48 | B48: i | C48: Virosoft | D48: 1 qt | K48: 1.6 | L48: oz | M48: 10.04625 | Q48: 16.074
A49: 49 | B49: i | C49: Damoil | D49: 55 gal
A50: 50 | B50: i | C50: Danitol | D50: 1 gal | K50: 16 | L50: oz | M50: 1.39 | Q50: 22.24 | R50: 22.24
A51: 51 | B51: i | C51: Delegate | D51: 26 oz | K51: 7 | L51: oz | M51: 5.645714286 | Q51: 39.52 | R51: 39.52
A52: 52 | B52: i | C52: Deliver | D52: 2.5 lb | K52: 0.75 | L52: lb | M52: 17.13 | Q52: 12.8475
A53: 53 | B53: i | C53: Deliver | D53: 2.5 lb | K53: 1 | L53: lb | M53: 17.13 | Q53: 17.13
A54: 54 | B54: i | C54: Dipel | D54: 5 lb | K54: 1.5 | L54: lb | M54: 10.89333333 | Q54: 16.34
A55: 55 | B55: i | C55: Dipel | D55: 5 lb | K55: 2 | L55: lb | M55: 10.89333333 | Q55: 21.78666667
A56: 56 | B56: d | C56: Dithane | D56: 30 lb | K56: 6 | L56: lb | M56: 3.875 | Q56: 23.25
A57: 57 | B57: h | C57: Diuron 4L | D57: 2.5 gal | K57: 2 | L57: qt | M57: 7.5 | Q57: 15 | R57: 15
A58: 58 | B58: h | C58: Diuron 80 DF | D58: 5 lb
A59: 59 | B59: d | C59: Elite DF | D59: 2 lb | K59: 6 | L59: oz | M59: 3.334166667 | Q59: 20.005
A60: 60 | B60: i | C60: Envidor 2SC | D60: 1 gal | K60: 16 | L60: oz | M60: 2.04 | Q60: 32.64 | R60: 32.64
A61: 61 | B61: d | C61: Firewall | D61: 2 lb | K61: 1.5 | L61: lb | M61: 16.2 | Q61: 24.3
A62: 62 | B62: d | C62: Flamout | D62: 2 lb | K62: 1.5 | L62: lb | M62: 26.5 | Q62: 39.75
A63: 63 | B63: d | C63: Flint | D63: 20 oz | K63: 5 | L63: oz | M63: 4.32 | Q63: 21.6 | R63: 21.6
A64: 64 | B64: pgr | C64: Fruitone L | D64: 1 gal
A65: 65 | B65: pgr | C65: Fruitone N | D65: 1.25 lb | K65: 4 | L65: oz | M65: 5.54 | Q65: 22.16 | R65: =5.54*4 -> 22.16
A66: 66 | B66: i | C66: Fugimite 5 EC | D66: 2.5 gal
A67: 67 | B67: d | C67: Gem SC 500 | D67: 32 oz | K67: 2 | L67: oz | M67: 7.85 | Q67: 15.7
A68: 68 | B68: h | C68: Gramoxone Inteon | D68: 2.5 gal | K68: 3 | L68: pt | M68: 3.5 | Q68: 10.5 | R68: 10.5
A69: 69 | B69: i | C69: Guthion WSB | D69: 5 lb | K69: 2 | L69: lb | M69: 6.886666667 | Q69: 13.77333333
A70: 70 | B70: i | C70: Imidan 70 WSB | D70: 4 lb | K70: 3 | L70: lb | M70: 10.6 | Q70: 31.8 | R70: 31.8
A71: 71 | B71: d | C71: Indar | D71: 1 lb | K71: 2 | L71: oz | M71: 7.216875 | Q71: 14.43375
A72: 72 | B72: d | C72: Initiate 720 | D72: 2.5 gal | K72: 3.125 | L72: pt | M72: 3.9872 | Q72: 12.46 | R72: 12.46
A73: 73 | B73: i | C73: Intrepid | D73: 1 gal | K73: 1 | L73: pt | M73: 33.75 | Q73: 33.75
A74: 74 | B74: i | C74: Isomate C+ | D74: 400 | K74: 400 | L74: ea | M74: 0.275 | Q74: 110 | R74: 110
A75: 75 | B75: i | C75: Isomate CTT | D75: 400 | K75: 200 | M75: 1.04 | Q75: 208 | R75: 208
A76: 76 | B76: i | C76: Lannate SP | D76: 2 lb | K76: 1 | L76: lb | M76: 27.3 | Q76: 27.3
A77: 77 | B77: i | C77: Lorsban 4E | D77: 2.5 gal | K77: 1.5 | L77: qt | M77: 7.44 | Q77: 11.16 | R77: 11.16
A78: 78 | B78: i | C78: Lorsban 75 WDG | D78: 6.65 lb | K78: 1.33 | L78: lb | M78: 22 | Q78: 29.26 | R78: 29.26
A79: 79 | B79: h | C79: Makaze | D79: 2.5 gal | K79: 4 | L79: pt | M79: 4.69 | Q79: 18.76
A80: 80 | B80: pgr | C80: Maxcel | D80: 1 gal | K80: 2 | L80: qt | M80: 26 | Q80: 52 | R80: =26*2 -> 52
A81: 81 | C81: Mouse Bait | D81: 50 lb
A82: 82 | B82: d | C82: Mycoshield | D82: 2 lb | K82: 1.5 | L82: lb | M82: 9.333333333 | Q82: 14 | R82: 14
A83: 83 | B83: i | C83: Nexter | D83: 33 oz | K83: 6.6 | L83: oz | M83: 4.38030303 | Q83: 28.91 | R83: 28.91
A84: 84 | B84: d | C84: Nova | D84: 20 oz | K84: 3 | L84: oz | M84: 4.2 | Q84: 12.6
A85: 85 | B85: d | C85: Nova | D85: 20 oz | K85: 8 | L85: oz | M85: 4.2 | Q85: 33.6
A86: 86 | B86: d | C86: Orbit | D86: 1 qt | K86: 4 | L86: oz | M86: 3.1271875 | Q86: 12.50875
A87: 87 | B87: d | C87: Penncozeb DF | D87: 30 lb | K87: 3 | L87: lb | M87: 3.4 | Q87: 10.2
A88: 88 | B88: i | C88: Permethrin 3.2 | D88: 1 gal | K88: 8 | L88: oz | M88: 0.8359375 | Q88: 6.6875
A89: 89 | B89: d | C89: Polyram | D89: 30 lb | K89: 3 | L89: lb | M89: 3.3 | Q89: 9.9 | R89: 9.9
A90: 90 | B90: d | C90: Polyram | D90: 30 lb | K90: 6 | L90: lb | M90: 3.3 | Q90: 19.8 | R90: =+R89*2 -> 19.8
A91: 91 | B91: i | C91: Portal | D91: 2.5 gal | Q91: 27.5 | R91: 27.5
A92: 92 | B92: i | C92: Prey 1.6 F | D92: 1 gal | K92: 6 | L92: oz | M92: 0.76 | Q92: 4.56 | R92: 4.56
A93: 93 | B93: d | C93: Pristine | D93: 6.25 lb | K93: 14.5 | L93: oz | M93: 3.1 | Q93: 44.95 | R93: 44.95
A94: 94 | B94: i | C94: Proaxis | D94: 1 gal | K94: 5.12 | L94: oz | M94: 2.265625 | Q94: 11.6
A95: 95 | B95: i | C95: Proclaim | D95: 19.2 oz | K95: 4.8 | L95: oz | M95: 6.4 | Q95: 30.72 | R95: 30.72
A96: 96 | B96: pgr | C96: Promalin | D96: 1 qt | K96: 1 | L96: pt | M96: 40.5 | Q96: 40.5 | R96: 40.5
A97: 97 | B97: i | C97: Provado 1.6 F | D97: 1 gal | K97: 6 | L97: oz | M97: 2.582421875 | Q97: 15.49453125
A98: 98 | B98: pgr | C98: Provide 10 SG | D98: 100 gr | K98: 60 | L98: gr | M98: 0.65 | Q98: 39 | R98: 39
A99: 99 | B99: h | C99: Prowl H2O | D99: 2.5 gal | K99: 2 | L99: qt | M99: 8.81 | Q99: 17.62
A100: 100 | B100: h | C100: Prowl H2O | D100: 2.5 gal | K100: 4 | L100: qt | M100: 5 | Q100: 20 | R100: 20
A101: 101 | B101: pgr | C101: Retain | D101: 333 gr | K101: 1 | L101: ea | M101: 232.5 | Q101: 232.5
A102: 102 | B102: d | C102: Ridomil Gold SL | D102: 1 pt
A103: 103 | B103: i | C103: Rimon | D103: 2.5 gal | K103: 20 | L103: oz | M103: 1.45 | Q103: 29 | R103: 29
A104: 104 | B104: h | C104: Roundup Powermax | D104: 2.5 gal | K104: 3 | L104: pt | M104: 7.871875 | Q104: 23.615625
A105: 105 | B105: h | C105: Roundup Weather Max | D105: 2.5 gal | K105: 3 | L105: pt | M105: 5.626666667 | Q105: 16.88
A106: 106 | B106: d | C106: Rubigan | D106: 1 qt | K106: 8 | L106: oz | M106: 2.5296875 | Q106: 20.2375
A107: 107 | B107: d | C107: Rubigan | D107: 1 qt | K107: 12 | L107: oz | M107: 2.5296875 | Q107: 30.35625
A108: 108 | B108: h | C108: Saber | D108: 2.5 gal | K108: 3 | L108: pt | M108: 2.75 | Q108: 8.25
A109: 109 | B109: i | C109: Savey 50 DF | D109: 12 oz | L109: oz
A110: 110 | B110: d | C110: Scala | D110: 0.5 gal | K110: 5 | L110: oz | M110: 1.590625 | Q110: 7.953125
A111: 111 | B111: d | C111: Scala | D111: 0.5 gal | K111: 7 | L111: oz | M111: 1.72 | Q111: 12.04 | R111: 12.04
A112: 112 | B112: d | C112: Scala | D112: 0.5 gal | K112: 10 | L112: oz | M112: 1.72 | Q112: 17.2 | R112: 17.2
A113: 113 | B113: d | C113: Serenade Max | D113: 12 lb | K113: 3 | L113: lb | M113: 11.26666667 | Q113: 33.8
A114: 114 | B114: pgr | C114: Sevin 80S | D114: 10 lb | K114: 2 | L114: lb | M114: 6.64 | Q114: 13.28
A115: 115 | B115: pgr | C115: Sevin XLR | D115: 2.5 gal | K115: 1 | L115: qt | M115: 3.9375 | Q115: 3.9375
A116: 116 | B116: h | C116: Simazine 4L | D116: 2.5 gal | K116: 4 | L116: pt | M116: 2.72625 | Q116: 10.905
A117: 117 | B117: h | C117: Sinbar | D117: 5 lb | K117: 1 | L117: lb | M117: 43.5 | Q117: 43.5 | R117: 43.5
A118: 118 | B118: h | C118: Solicam DF | D118: 10 lb | L118: lb
A119: 119 | B119: d | C119: Sonata | D119: 2.5 gal | K119: 2 | L119: qt | M119: 6.44 | Q119: 12.88 | R119: 12.88
A120: 120 | B120: d | C120: Sovran | D120: 1.25 lb | K120: 4 | L120: oz | M120: 3.69 | Q120: 14.76 | R120: 14.76
A121: 121 | B121: i | C121: Spintor | D121: 1 gal | K121: 7.5 | L121: oz | M121: 5.3046875 | Q121: 39.78515625
A122: 122 | B122: i | C122: Sprayable Phermone GPTB | D122: 30 oz
A123: 123 | B123: i | C123: Sprayable Phermone LPTB | D123: 30 oz
A124: 124 | B124: i | C124: Sprayable Phermone Leafroller | D124: 30 oz
A125: 125 | B125: d | C125: Sulfur Micro 90W | D125: 30 lb | K125: 10 | L125: lb | M125: 0.6 | Q125: 6 | R125: 6
A126: 126 | B126: h | C126: Surflan AS | D126: 2.5 gal | K126: 8 | L126: pt | M126: 2.685 | Q126: 21.48 | R126: 21.48
A127: 127 | B127: d | C127: Syllit 3.4FL | D127: 2 gal | K127: 27 | L127: oz | M127: 0.51 | Q127: 13.77 | R127: 13.77
A128: 128 | B128: d | C128: Syllit 3.4FL | D128: 2 gal | K128: 72 | L128: oz | M128: 0.51 | Q128: 36.72 | R128: 36.72
A129: 129 | B129: i | C129: Thiodan 50W | D129: 5 lb | L129: lb
A130: 130 | B130: d | C130: Thiolux DF | D130: 50 lb | K130: 5 | L130: lb | M130: 0.75 | Q130: 3.75
A131: 131 | B131: i | C131: Tombstone Helios | D131: 1 gal | K131: 2.8 | L131: oz | M131: 2.859375 | Q131: 8.00625
A132: 132 | B132: d | C132: Topsin M | D132: 5 lb | K132: 8 | L132: oz | M132: 0.87 | Q132: 6.96 | R132: 6.96
A133: 133 | B133: d | C133: Vanguard | D133: 50 oz | K133: 3 | L133: oz | M133: 3.4 | Q133: 10.2 | R133: 10.2
A134: 134 | B134: d | C134: Vanguard | D134: 50 oz | K134: 5 | L134: oz | M134: 3.4 | Q134: 17 | R134: 17
A135: 135 | B135: i | C135: Warhawk | D135: 2.5 gal | K135: 1.5 | L135: qt | M135: 8.25 | Q135: 12.375
A136: 136 | B136: i | C136: Warrior | D136: 1 gal | K136: 5.12 | L136: oz | M136: 1.985703125 | Q136: 10.1668
A137: 137 | B137: i | C137: Zeal | D137: 14 oz | K137: 2 | L137: oz | M137: 16.5 | Q137: 33 | R137: 33
A138: 138 | B138: i | C138: Zeal (6x2 oz bag) | D138: 12 oz
A139: 139 | B139: d | C139: Ziram DF | D139: 40 lb | K139: 4 | L139: lb | M139: 3.9 | Q139: 15.6 | R139: 15.6
A140: 140
A141: 141
A142: 142
A143: 143 | B143: f | C143: Calcium 10% (1.25# Cal/gal) | D143: bulk | K143: 1 | L143: gal | M143: 5 | Q143: 5
A144: 144 | B144: f | C144: Calflow (3.32#/gal) | D144: 2.5 gal | K144: 2.8 | L144: pt | M144: 2.68 | Q144: 7.504
A145: 145 | B145: f | C145: Zinc 25% Citriplex | D145: 25 lb | K145: 2 | L145: lb | M145: 2.98 | Q145: 5.96
A146: 146 | B146: f | C146: Borosol 10 (1.1#/gal) | D146: 2.5 gal | K146: 1 | L146: pt | M146: 2.2 | Q146: 2.2
A147: 147 | B147: f | C147: Foliar Feed II (16-8-3 + micros) | D147: 2.5 gal | K147: 2 | L147: qt | M147: 2.45 | Q147: 4.9
A148: 148 | B148: f | C148: Nuta Leaf 20-20-20 | D148: 25 lb | K148: 5 | L148: lb | M148: 1.25 | Q148: 6.25
A149: 149 | B149: f | C149: Prosol 20-20-20 | D149: 25 lb | K149: 5 | L149: lb | M149: 1 | Q149: 5
A150: 150 | B150: f | C150: N-PACT 26-0-0 | D150: 2.5 gal | K150: 2 | L150: qt | M150: 4 | Q150: 8
A151: 151 | B151: f | C151: N-PACT 26-0-0 | D151: bulk | K151: 2 | L151: qt | M151: 3.5 | Q151: 7
A152: 152 | B152: f | C152: Star Phite | D152: 2.5 gal | K152: 1 | L152: qt | M152: 8 | Q152: 8
A153: 153 | B153: f | C153: Rampart | D153: 2.5 gal | K153: 1 | L153: qt | M153: 8.5 | Q153: 8.5
A154: 154 | B154: f | C154: Black Label | D154: bulk | K154: 2 | L154: gal | M154: 11.8 | Q154: 23.6
A155: 155 | B155: f | C155: Black Jack Zn | D155: 2.5 gal | K155: 1 | L155: pt | M155: 2.75 | Q155: 2.75
A156: 156 | B156: f | C156: Solubor DF | D156: 30 lb
A157: 157 | B157: i | C157: Belay | D157: 1.5 gal | K157: 6 | Q157: 9.96875
A158: 158 | B158: i | C158: Belt | D158: 1 gal | K158: 5 | Q158: 35.15625
A159: 159 | B159: i | C159: Isomate Flex | D159: 400 | K159: 400 | L159: ea | M159: 0.25 | Q159: 100 | R159: 110
A160: 160 | B160: i | C160: Isomate CM Puffer | D160: 1 each | K160: 1 | M160: 117 | Q160: 117 | R160: 208
A161: 161 | B161: i | C161: Inspire Super | D161: 1 gal | K161: 12 | M161: 1.5234375 | Q161: 18.28125 | R161: 208
A162: 162 | B162: d | C162: Rally | D162: 20 oz | K162: 3 | L162: oz | M162: 3.4 | Q162: 10.2
A163: 163 | B163: d | C163: Rally | D163: 20 oz | K163: 5 | L163: oz | M163: 3.4 | Q163: 17
A164: 164 | B164: d | C164: Fontelis | D164: 80 oz | K164: 16 | L164: oz | M164: 1.6 | Q164: 25.6
A165: 165 | B165: d | C165: Merivon | D165: 1 gal | K165: 4 | L165: oz | M165: 7.5 | Q165: 30
A166: 166 | B166: h | C166: Treevix | D166: 10 oz | K166: 1 | L166: oz | M166: 17.75 | Q166: 17.75
A167: 167 | B167: h | C167: Matrix SG | D167: 20 oz | K167: 3 | L167: oz | M167: 17.5 | Q167: 52.5
A168: 168 | B168: h | C168: Sandea | D168: 10 oz | K168: 1 | L168: oz | M168: 37.5 | Q168: 37.5
A169: 169 | B169: h | C169: Alion | D169: 32 oz | K169: 5 | L169: oz | M169: 11.75 | Q169: 58.75
A170: 170 | B170: h | C170: Trellis | D170: 1 lb | K170: 1 | L170: oz | M170: 72.65 | Q170: 72.65
A171: 171 | B171: pgr | C171: PoMaxa | D171: 1 gal | K171: 4 | L171: oz | M171: 4.309375 | Q171: 17.2375
A172: 172 | B172: f | C172: Kasumin | Q172: 60
A173: 173 | B173: i | C173: Movento | K173: 6 | M173: 6.9921875 | Q173: 41.953125
A174: 174 | B174: i | C174: Voliam Flexi | D174: oz | K174: 7 | L174: oz | M174: 44.22 | Q174: 44.22
A175: 175

Sheet Spray Costs
A1: Spray Material and Time Costs
A2: Cost of pesticide and foliar fertilizer materials applied per acre per season.
B3: Central Leader | D3: =+CLTRV -> 100 | E3: Vertical Axe | G3: =VATRV -> 80 | H3: Tall Spindle | J3: =TSTRV -> 70 | K3: Fruiting Wall | M3: =+FWTRV -> 65
A4: Year | B4: Program Applied | E4: =+B4 -> Program Applied | H4: =+E4 -> Program Applied | K4: =+H4 -> Program Applied
B5: Descrip. | C5: % of Full Program | D5: Cost /Acre | E5: =+B5 -> Descrip. | F5: =+C5 -> % of Full Program | G5: =+D5 -> Cost /Acre | H5: =+E5 -> Descrip. | I5: =+F5 -> % of Full Program | J5: =+G5 -> Cost /Acre | K5: =+H5 -> Descrip. | L5: =+I5 -> % of Full Program | M5: =+J5 -> Cost /Acre
A6: 1 | B6: Planting Year | C6: 5 | D6: =+TotSpCost*'Spray Costs'!C6*0.01*CLTRV*0.01 -> 58.18090481 | E6: Planting Year | F6: 5 | G6: =+TotSpCost*'Spray Costs'!F6*0.01*VATRV*0.01 -> 46.54472385 | H6: Planting Year | I6: 5 | J6: =+TotSpCost*'Spray Costs'!I6*0.01*TSTRV*0.01 -> 40.72663337 | K6: Planting Year | L6: 10 | M6: =+TotSpCost*'Spray Costs'!L6*0.01*FWTRV*0.01 -> 75.63517626
A7: 2 | B7: Non-Bearing | C7: 10 | D7: =+TotSpCost*'Spray Costs'!C7*0.01*CLTRV*0.01 -> 116.3618096 | E7: Non-Bearing | F7: 20 | G7: =+TotSpCost*'Spray Costs'!F7*0.01*VATRV*0.01 -> 186.1788954 | H7: Early Cropping | I7: 60 | J7: =+TotSpCost*'Spray Costs'!I7*0.01*TSTRV*0.01 -> 488.7196004 | K7: Full | L7: 100 | M7: =+TotSpCost*'Spray Costs'!L7*0.01*FWTRV*0.01 -> 756.3517626
A8: 3 | B8: Early Cropping | C8: 40 | D8: =+TotSpCost*'Spray Costs'!C8*0.01*CLTRV*0.01 -> 465.4472385 | E8: Early Cropping | F8: 80 | G8: =+TotSpCost*'Spray Costs'!F8*0.01*VATRV*0.01 -> 744.7155816 | H8: Full Program | I8: 100 | J8: =+TotSpCost*'Spray Costs'!I8*0.01*TSTRV*0.01 -> 814.5326674 | K8: Full Program | L8: 100 | M8: =+TotSpCost*'Spray Costs'!L8*0.01*FWTRV*0.01 -> 756.3517626
A9: 4 | B9: Early Cropping | C9: 60 | D9: =+TotSpCost*'Spray Costs'!C9*0.01*CLTRV*0.01 -> 698.1708577 | E9: Full Program | F9: 100 | G9: =+TotSpCost*'Spray Costs'!F9*0.01*VATRV*0.01 -> 930.894477 | H9: Full Program | I9: 100 | J9: =+TotSpCost*'Spray Costs'!I9*0.01*TSTRV*0.01 -> 814.5326674 | K9: Full Program | L9: 100 | M9: =+TotSpCost*'Spray Costs'!L9*0.01*FWTRV*0.01 -> 756.3517626
A10: 5 | B10: Full Program | C10: 100 | D10: =+TotSpCost*'Spray Costs'!C10*0.01*CLTRV*0.01 -> 1163.618096 | E10: Full Program | F10: 100 | G10: =+TotSpCost*'Spray Costs'!F10*0.01*VATRV*0.01 -> 930.894477
A11: 6 | B11: =+B10 -> Full Program | C11: 100 | D11: =+TotSpCost*'Spray Costs'!C11*0.01*CLTRV*0.01 -> 1163.618096 | E11: =+E10 -> Full Program | F11: 100 | G11: =+TotSpCost*'Spray Costs'!F11*0.01*VATRV*0.01 -> 930.894477
A12: 7 | B12: Full Program | C12: 100 | D12: =+TotSpCost*'Spray Costs'!C12*0.01*CLTRV*0.01 -> 1163.618096
A13: 8 | B13: =+B12 -> Full Program | C13: 100 | D13: =+TotSpCost*'Spray Costs'!C13*0.01*CLTRV*0.01 -> 1163.618096
A14: Spray Time to treat 1 acre for 1 season.
A15: 1 | B15: Planting Year | C15: 5 | D15: =+CLTime*C15*0.01*TotSprTrips -> 0.18 | E15: Planting Year | F15: 5 | G15: =+VATime*F15*0.01*TotSprTrips -> 0.18 | H15: Planting Year | I15: 5 | J15: =+SSTime*I15*0.01*TotSprTrips -> 0.225 | K15: Planting Year | L15: 5 | M15: =+FWTime*L15*0.01*TotSprTrips -> 0.2571428571
A16: 2 | B16: Non-Bearing | C16: 10 | D16: 0.36 | E16: Non-Bearing | F16: 20 | G16: 0.72 | H16: Early Cropping | I16: 60 | J16: =+SSTime*I16*0.01*TotSprTrips -> 2.7 | K16: Early Cropping | L16: 60 | M16: =+FWTime*L16*0.01*TotSprTrips -> 3.085714286
A17: 3 | B17: Early Cropping | C17: 40 | D17: 1.44 | E17: Early Cropping | F17: 80 | G17: 2.88 | H17: Full Program | I17: 100 | J17: =+SSTime*I17*0.01*TotSprTrips -> 4.5 | K17: Full Program | L17: 100 | M17: =+FWTime*L17*0.01*TotSprTrips -> 5.142857143
A18: 4 | B18: Early Cropping | C18: 60 | D18: 2.16 | E18: Full Program | F18: 100 | G18: 3.6 | H18: Full Program | I18: 100 | J18: =+SSTime*I18*0.01*TotSprTrips -> 4.5 | K18: Full Program | L18: 100 | M18: =+FWTime*L18*0.01*TotSprTrips -> 5.142857143
A19: 5 | B19: Full Program | C19: 100 | D19: 3.6 | E19: Full Program | F19: 100 | G19: 3.6
A20: 6 | B20: =+B19 -> Full Program | C20: 100 | D20: 3.6 | E20: =+E19 -> Full Program | F20: 100 | G20: 3.6
A21: 7 | B21: Full Program | C21: 100 | D21: 3.6
A22: 8 | B22: =+B21 -> Full Program | C22: 100 | D22: 3.6
A23: Trip Time/spray. | C23: Row | D23: % of | E23: Hours | F23: Acres | G23: Time
C24: Spacing | D24: C.L. | E24: /Tank | F24: /Tank | G24: /Acre
A25: Central Leader | C25: =+CLRowSpace -> 20 | D25: =+C25/C25*100 -> 100 | E25: 2 | F25: 10 | G25: =+E25/F25 -> 0.2
A26: Vertical Axe | C26: =+VARowSpace -> 14 | D26: =+C25/C26*100 -> 142.8571429 | E26: 2 | F26: 10 | G26: =+E26/F26 -> 0.2
A27: Tall Spindle | C27: =+SSRowSpace -> 12 | D27: =+C25/C27*100 -> 166.6666667 | E27: 2 | F27: 8 | G27: 0.25
A28: Fruiting Wall | C28: =+FWRowSpace -> 10 | D28: =+C25/C28*100 -> 200 | E28: 2 | F28: 7 | G28: =+E28/F28 -> 0.2857142857
C84: Sevin 80S

Sheet Herbicide
A1: Herbicide Program
C2: Central Leader | F2: Vertical Axe | I2: Tall Spindle | L2: Fruiting Wall
C3: Herbicide Strip | F3: =+C3 -> Herbicide Strip | I3: =+F3 -> Herbicide Strip | L3: =+I3 -> Herbicide Strip
A4: Year | B4: Width | C4: Program | D4: Cost | E4: =+B4 -> Width | F4: =+C4 -> Program | G4: =+D4 -> Cost | H4: =+E4 -> Width | I4: =+F4 -> Program | J4: =+G4 -> Cost | K4: =+H4 -> Width | L4: =+I4 -> Program | M4: =+J4 -> Cost
A5: 1 | B5: 4 | C5: Soft | D5: =+B5/CLRowSpace*SoftHerb -> 2.368 | E5: 4 | F5: Soft | G5: =+E5/VARowSpace*SoftHerb -> 3.382857143 | H5: 4 | I5: Soft | J5: =+H5/VARowSpace*StandHerb -> 10.5396875 | K5: 3.5 | L5: Soft | M5: =+K5/FWRowSpace*SoftHerb -> 4.144
A6: 2 | B6: 4 | C6: =+C5 -> Soft | D6: =+B6/CLRowSpace*SoftHerb -> 2.368 | E6: 4 | F6: =+F5 -> Soft | G6: =+E6/VARowSpace*SoftHerb -> 3.382857143 | H6: 4 | I6: =+I5 -> Soft | J6: =+H6/SSRowSpace*SoftHerb -> 3.946666667 | K6: 3.5 | L6: =+L5 -> Soft | M6: =+K6/FWRowSpace*SoftHerb -> 4.144
A7: 3 | B7: 6 | C7: =+C6 -> Soft | D7: =+B7/CLRowSpace*SoftHerb -> 3.552 | E7: 4 | F7: =+F6 -> Soft | G7: =+E7/VARowSpace*SoftHerb -> 3.382857143 | H7: 6 | I7: =+I6 -> Soft | J7: =+H7/SSRowSpace*SoftHerb -> 5.92 | K7: 4.5 | L7: Standard | M7: =+K7/FWRowSpace*StandHerb -> 16.60000781
A8: 4 | B8: 6 | C8: =+C7 -> Soft | D8: =+B8/CLRowSpace*SoftHerb -> 3.552 | E8: 6 | F8: Standard | G8: =+E8/VARowSpace*StandHerb -> 15.80953125 | H8: 6 | I8: Standard | J8: =+H8/SSRowSpace*StandHerb -> 18.44445312 | K8: 4.5 | L8: Standard | M8: =+K8/FWRowSpace*StandHerb -> 16.60000781
A9: 5 | B9: 6 | C9: Standard | D9: =+B9/CLRowSpace*StandHerb -> 11.06667187 | E9: 6 | F9: Standard | G9: =+E9/VARowSpace*StandHerb -> 15.80953125
A10: 6 | B10: 8 | C10: =+C9 -> Standard | D10: =+B10/CLRowSpace*StandHerb -> 14.7555625 | E10: 6 | F10: =+F9 -> Standard | G10: =+E10/VARowSpace*StandHerb -> 15.80953125
A11: 7 | B11: 8 | C11: =+C10 -> Standard | D11: =+B11/CLRowSpace*StandHerb -> 14.7555625
A12: 8 | B12: 8 | C12: =+C11 -> Standard | D12: =+B12/CLRowSpace*StandHerb -> 14.7555625
A13: Hours to apply
A14: 2 Trips | D14: 0.8 | G14: =+CLHerbTime*VARow/CLRow -> 1.142857143 | J14: =+CLHerbTime*SSRow/CLRow -> 1.333333333 | M14: =+CLHerbTime*FWRow/CLRow -> 1.6
A16: Soft Early Years Program
A17: Trips | B17: # | C17: Material | E17: Rate Used | G17: Price | J17: Total Cost/Acre
A18: 2 | B18: 68 | C18: =VLOOKUP($B18,SprayCost,3) -> Gramoxone Inteon | E18: =VLOOKUP(B18,SprayCost,11) -> 3 | F18: =VLOOKUP(+B18,SprayCost,12) -> pt | G18: =VLOOKUP(B18,SprayCost,13) -> 3.5 | H18: =VLOOKUP(B18,SprayCost,12) -> pt | J18: =+G18/4*E18 -> 2.625
B19: 126 | C19: =VLOOKUP($B19,SprayCost,3) -> Surflan AS | E19: =VLOOKUP(B19,SprayCost,11) -> 8 | F19: =VLOOKUP(+B19,SprayCost,12) -> pt | G19: =VLOOKUP(B19,SprayCost,13) -> 2.685 | H19: =VLOOKUP(B19,SprayCost,12) -> pt | J19: =+G19/4*E19 -> 5.37
B20: 68 | C20: =VLOOKUP($B20,SprayCost,3) -> Gramoxone Inteon | E20: =VLOOKUP(B20,SprayCost,11) -> 3 | F20: =VLOOKUP(+B20,SprayCost,12) -> pt | G20: =VLOOKUP(B20,SprayCost,13) -> 3.5 | H20: =VLOOKUP(B20,SprayCost,12) -> pt | J20: =+G20/4*E20 -> 2.625
B21: 20 | C21: =VLOOKUP($B21,SprayCost,3) -> Amine 2,4-D | E21: =VLOOKUP(B21,SprayCost,11) -> 3 | F21: =VLOOKUP(+B21,SprayCost,12) -> pt | G21: =VLOOKUP(B21,SprayCost,13) -> 1.626666667 | H21: =VLOOKUP(B21,SprayCost,12) -> pt | J21: =+G21/4*E21 -> 1.22
A23: Total material cost per treated acre | J23: =SUM(J18:J22) -> 11.84
A25: Standard Program
A26: Trips | B26: # | C26: Material | E26: Rate Used | G26: Price | J26: Total Cost/Acre
A27: 2 | B27: 104 | C27: =VLOOKUP($B27,SprayCost,3) -> Roundup Powermax | E27: =VLOOKUP(B27,SprayCost,11) -> 3 | F27: =VLOOKUP(+B27,SprayCost,12) -> pt | G27: =VLOOKUP(B27,SprayCost,13) -> 7.871875 | H27: =VLOOKUP(B27,SprayCost,12) -> pt | J27: =+G27/4*E27 -> 5.90390625
B28: 100 | C28: =VLOOKUP($B28,SprayCost,3) -> Prowl H2O | E28: =VLOOKUP(B28,SprayCost,11) -> 4 | F28: =VLOOKUP(+B28,SprayCost,12) -> qt | G28: =VLOOKUP(B28,SprayCost,13) -> 5 | H28: =VLOOKUP(B28,SprayCost,12) -> qt | J28: =+G28/4*E28 -> 5
B29: 57 | C29: =VLOOKUP($B29,SprayCost,3) -> Diuron 4L | E29: =VLOOKUP(B29,SprayCost,11) -> 2 | F29: =VLOOKUP(+B29,SprayCost,12) -> qt | G29: =VLOOKUP(B29,SprayCost,13) -> 7.5 | H29: =VLOOKUP(B29,SprayCost,12) -> qt | J29: =+G29/4*E29 -> 3.75
B30: 44 | C30: =VLOOKUP($B30,SprayCost,3) -> Chateau WDG | E30: =VLOOKUP(B30,SprayCost,11) -> 12 | F30: =VLOOKUP(+B30,SprayCost,12) -> oz | G30: =VLOOKUP(B30,SprayCost,13) -> 6.13 | H30: =VLOOKUP(B30,SprayCost,12) -> oz | J30: =+G30/4*E30 -> 18.39
C31: Aim
C32: Treevix
C33: Matrix
C34: Sandea
B35: 20 | C35: =VLOOKUP($B35,SprayCost,3) -> Amine 2,4-D | E35: =VLOOKUP(B35,SprayCost,11) -> 3 | F35: =VLOOKUP(+B35,SprayCost,12) -> pt | G35: =VLOOKUP(B35,SprayCost,13) -> 1.626666667 | H35: =VLOOKUP(B35,SprayCost,12) -> pt | J35: =+G35/4*E35 -> 1.22
B36: 68 | C36: =VLOOKUP($B36,SprayCost,3) -> Gramoxone Inteon | E36: =VLOOKUP(B36,SprayCost,11) -> 3 | F36: =VLOOKUP(+B36,SprayCost,12) -> pt | G36: =VLOOKUP(B36,SprayCost,13) -> 3.5 | H36: =VLOOKUP(B36,SprayCost,12) -> pt | J36: =+G36/4*E36 -> 2.625
A38: =+A23 -> Total material cost per treated acre | J38: =SUM(J27:J37) -> 36.88890625
C111: Sevin 80S

Sheet Descrip
A1: Definition | B1: Density | C1: Trees/acre | D1: Spacing
A3: Central Leader | B3: Low | C3: =+CLTree -> 181.5 | D3: =CLTrSp&" x "&CLRowSpace -> 12 x 20
A5: Vertical Axe | B5: Medium | C5: =+VATree -> 622.2857143 | D5: =VATrSp&" x "&VARowSpace -> 5 x 14
A7: Tall Spindle | B7: High | C7: =+SSTree -> 1210 | D7: =TSTrSp&" x "&SSRowSpace -> 3 x 12
A9: Fruiting Wall | B9: High | C9: =+FWTree -> 1089 | D9: =FWTrSp&" x "&FWRowSpace -> 4 x 10
A32: TRV Calculations
A33: Row | B33: Tree | C33: Heigth | D33: Width
A34: 20 | B34: 12 | C34: 16 | D34: 12
A35: 14 | B35: 5 | C35: 12 | D35: 6
A36: 12 | B36: 3 | C36: 10 | D36: 5
A37: 10 | B37: 2 | C37: 9 | D37: 4
A39: =+C34*D34 -> 192 | B39: =43560/A34 -> 2178 | C39: =+A39*B39 -> 418176
A40: =+C35*D35 -> 72 | B40: =43560/A35 -> 3111.428571 | C40: =+A40*B40 -> 224022.8571 | D40: =+C40/C39 -> 0.5357142857
A41: =+C36*D36 -> 50 | B41: =43560/A36 -> 3630 | C41: =+A41*B41 -> 181500 | D41: =+C41/C39 -> 0.4340277778
A42: =+C37*D37 -> 36 | B42: =43560/A37 -> 4356 | C42: =+A42*B42 -> 156816 | D42: =+C42/C39 -> 0.375
C114: Sevin 80S

Sheet Irrigation
A1: Drip Irrigation System
B2: Central Leader | E2: Vertical Axe | H2: Tall Spindle
A3: Cost/acre | B3: 0 | E3: =+VAIrr -> 1108.3712 | H3: =+SSIrr -> 1180.9712
A4: Cost/tree | B4: =+CLIrr/CLTree -> 0 | E4: =+E3/VATree -> 1.781129109 | H4: =+H3/SSTree -> 0.9760092562
A5: Vertical Axe System
A7: Item | B7: Item | F7: Quanity | H7: Cost | J7: Total Cost
A8: Ram tubing | B8: =+VARow -> 6.222857143 | C8: rows | D8: =+'Factors & Yield'!C22 -> 500 | E8: row length | F8: =+B8*D8 -> 3111.428571 | G8: feet | H8: 0.14 | I8: /foot | J8: =+F8*H8 -> 435.6
A10: Main 3" | B10: 100 | C10: /acre | F10: =+B10 -> 100 | G10: feet | H10: 0.65 | J10: =+B10*H10 -> 65
A12: Sub main 2" | B12: =+VARow*VARowSpace -> 87.12 | C12: /acre | F12: =+B12 -> 87.12 | G12: feet | H12: 0.3 | J12: =+B12*H12 -> 26.136
A14: Custom trenching | B14: =+B10+B12 -> 187.12 | C14: /acre | F14: =+B14 -> 187.12 | G14: feet | H14: 0.75 | J14: =+B14*H14 -> 140.34
A16: Fittings & misc. | B16: 0.2 | C16: of sub main and main and trenching | J16: =+SUM(J10:J14)*B16 -> 46.2952
A18: Well | B18: 15000 | C18: new 6" well | E18: 40 | F18: acres covered | J18: =+B18/E18 -> 375
A20: Controller | B20: 200 | C20: per 10 acres | J20: =+B20/10 -> 20
A22: Total Cost | J22: =SUM(J8:J20) -> 1108.3712
A23: Tall Spindle System
A24: Item | B24: Item | F24: Quanity | H24: Cost | J24: Total Cost
A25: Ram tubing | B25: =+SSRow -> 7.26 | C25: rows | D25: =+'Factors & Yield'!C22 -> 500 | E25: row length | F25: =+B25*D25 -> 3630 | G25: feet | H25: 0.14 | I25: /foot | J25: =+F25*H25 -> 508.2
A27: Main 3" | B27: 100 | C27: /acre | F27: =+B27 -> 100 | G27: feet | H27: 0.65 | J27: =+B27*H27 -> 65
A29: Sub main 2" | B29: =+VARow*VARowSpace -> 87.12 | C29: /acre | F29: =+B29 -> 87.12 | G29: feet | H29: 0.3 | J29: =+B29*H29 -> 26.136
A31: Custom trenching | B31: =+B27+B29 -> 187.12 | C31: /acre | F31: =+B31 -> 187.12 | G31: feet | H31: 0.75 | J31: =+B31*H31 -> 140.34
A33: Fittings & misc. | B33: 0.2 | C33: of sub main and main and trenching | J33: =+SUM(J27:J31)*B33 -> 46.2952
A35: Well | B35: 15000 | C35: new 6" well | E35: 40 | F35: acres covered | J35: =+B35/E35 -> 375
A37: Controller | B37: 200 | C37: per 10 acres | J37: =+B37/10 -> 20
A39: Total Cost | J39: =SUM(J25:J37) -> 1180.9712
A41: Fruiting Wall System
A42: Item | B42: Item | F42: Quanity | H42: Cost | J42: Total Cost
A43: Ram tubing | B43: =+FWRow -> 8.712 | C43: rows | D43: =+'Factors & Yield'!C22 -> 500 | E43: row length | F43: =+B43*D43 -> 4356 | G43: feet | H43: 0.14 | I43: /foot | J43: =+F43*H43 -> 609.84
A45: Main 3" | B45: 100 | C45: /acre | F45: =+B45 -> 100 | G45: feet | H45: 0.65 | J45: =+B45*H45 -> 65
A47: Sub main 2" | B47: =+VARow*VARowSpace -> 87.12 | C47: /acre | F47: =+B47 -> 87.12 | G47: feet | H47: 0.3 | J47: =+B47*H47 -> 26.136
A49: Custom trenching | B49: =+B45+B47 -> 187.12 | C49: /acre | F49: =+B49 -> 187.12 | G49: feet | H49: 0.75 | J49: =+B49*H49 -> 140.34
A51: Fittings & misc. | B51: 0.2 | C51: of sub main and main and trenching | J51: =+SUM(J45:J49)*B51 -> 46.2952
A53: Well | B53: 15000 | C53: new 6" well | E53: 40 | F53: acres covered | J53: =+B53/E53 -> 375
A55: Controller | B55: 200 | C55: per 10 acres | J55: =+B55/10 -> 20
A57: Total Cost | J57: =SUM(J43:J55) -> 1282.6112
C114: Sevin 80S

Sheet Fertilizer
A1: Fertilizer Program
B2: Material | E2: Cost/Ton
B3: Urea | E3: 200
B4: Potash | E4: 185
D7: Central Leader | G7: Vertical Axe | J7: Tall Spindle | M7: Fruiting Wall
D8: Rate | E8: Total | G8: =+D8 -> Rate | H8: =+E8 -> Total | J8: =+G8 -> Rate | K8: =+H8 -> Total | M8: =+J8 -> Rate | N8: =+K8 -> Total
A9: Year | B9: Material | C9: oz/tree | D9: #/acre | E9: Cost/acre | F9: =+C9 -> oz/tree | G9: =+D9 -> #/acre | H9: =+E9 -> Cost/acre | I9: =+F9 -> oz/tree | J9: =+G9 -> #/acre | K9: =+H9 -> Cost/acre | L9: =+I9 -> oz/tree | M9: =+J9 -> #/acre | N9: =+K9 -> Cost/acre
A10: 1 | B10: Urea | C10: 1 | D10: =+C10/16*CLTree -> 11.34375 | E10: =+D10/2000*UreaTon+D11/2000*KTon -> 1.134375 | F10: 1 | G10: =+F10/16*VATree -> 38.89285714 | H10: =+G10/2000*UreaTon+G11/2000*KTon -> 3.889285714 | I10: 1 | J10: =+I10/16*SSTree -> 75.625 | K10: =+J10/2000*UreaTon+J11/2000*KTon -> 7.5625 | L10: 1 | M10: =+L10/16*FWTree -> 68.0625 | N10: =+M10/2000*UreaTon+M11/2000*KTon -> 6.80625
B11: Potash | C11: 0 | D11: =+C11/16*CLTree -> 0 | F11: 0 | G11: =+F11/16*VATree -> 0 | I11: 0 | J11: =+I11/16*SSTree -> 0 | L11: 0 | M11: 0
A12: 2 | B12: Urea | C12: 2 | D12: 22.6875 | E12: =+D12/2000*UreaTon+D13/2000*KTon -> 2.26875 | F12: 1.5 | G12: =+F12/16*VATree -> 58.33928571 | H12: =+G12/2000*UreaTon+G13/2000*KTon -> 5.833928571 | I12: 1 | J12: =+I12/16*SSTree -> 75.625 | K12: =+J12/2000*UreaTon+J13/2000*KTon -> 7.5625 | L12: 1 | M12: 68.0625 | N12: =+M12/2000*UreaTon+M13/2000*KTon -> 6.80625
B13: Potash | C13: 0 | D13: 0 | F13: 0 | G13: 0 | I13: 0 | J13: 0 | L13: 0 | M13: 0
A14: 3 | B14: Urea | C14: 3 | D14: 34.03125 | E14: =+D14/2000*UreaTon+D15/2000*KTon -> 3.403125 | F14: 2 | G14: 77.78571429 | H14: =+G14/2000*UreaTon+G15/2000*KTon -> 7.778571429 | I14: 1.1 | J14: 83.1875 | K14: =+J14/2000*UreaTon+J15/2000*KTon -> 15.3140625 | L14: 1.1 | M14: 74.86875 | N14: =+M14/2000*UreaTon+M15/2000*KTon -> 10.63476563
B15: Potash | C15: 0 | D15: 0 | F15: 0 | G15: 0 | I15: 1 | J15: 75.625 | L15: 0.5 | M15: 34.03125
A16: 4 | B16: Urea | C16: 4 | D16: 45.375 | E16: =+D16/2000*UreaTon+D17/2000*KTon -> 4.5375 | F16: 2 | G16: 77.78571429 | H16: =+G16/2000*UreaTon+G17/2000*KTon -> 14.97375 | I16: 1.2 | J16: 90.75 | K16: =+J16/2000*UreaTon+J17/2000*KTon -> 23.065625 | L16: 1.2 | M16: 81.675 | N16: =+M16/2000*UreaTon+M17/2000*KTon -> 11.94496875
B17: Potash | C17: 0 | D17: 0 | F17: 2 | G17: 77.78571429 | I17: 2 | J17: 151.25 | L17: 0.6 | M17: 40.8375
A18: 5 | B18: Urea | C18: 5 | D18: 56.71875 | E18: =+D18/2000*UreaTon+D19/2000*KTon -> 7.77046875 | F18: 2 | G18: 77.78571429 | H18: =+G18/2000*UreaTon+G19/2000*KTon -> 14.97375
B19: Potash | C19: 2 | D19: 22.6875 | F19: 2 | G19: 77.78571429
A20: 6 | B20: Urea | C20: 5 | D20: 56.71875 | E20: =+D20/2000*UreaTon+D21/2000*KTon -> 9.8690625 | F20: 2 | G20: 77.78571429 | H20: =+G20/2000*UreaTon+G21/2000*KTon -> 18.57133929
B21: Potash | C21: 4 | D21: 45.375 | F21: 3 | G21: 116.6785714
A22: 7 | B22: Urea | C22: 6 | D22: 68.0625 | E22: =+D22/2000*UreaTon+D23/2000*KTon -> 13.10203125
B23: Potash | C23: 6 | D23: 68.0625
A24: 8 | B24: Urea | C24: 6 | D24: 68.0625 | E24: =+D24/2000*UreaTon+D25/2000*KTon -> 15.200625
B25: Potash | C25: 8 | D25: 90.75
A28: Application Time of Fertilizer
A29: The time it takes to apply the fertilizer program per acre per season with vicon spreader.
B31: Central Leader | E31: Vertical Axe | H31: Tall Spindle | K31: Fruiting Wall
A32: Year | B32: # of trips | C32: # of trips | D32: Hours | E32: =+B32 -> # of trips | F32: # of trips | G32: Hours | H32: # of trips | I32: # of trips | J32: Hours | K32: =+H32 -> # of trips | L32: =+I32 -> # of trips | M32: =+J32 -> Hours
B33: Applied | C33: E.O.R. | D33: /Acre | E33: Applied | F33: E.O.R. | G33: /Acre | H33: Applied | I33: E.O.R. | J33: /Acre | K33: Applied | L33: E.O.R. | M33: /Acre
A34: 1 | B34: 1 | C34: 1 | D34: =+CLFertTime -> 0.1 | E34: 1 | F34: 1 | G34: =++VAFertTime -> 0.1428571429 | H34: 1 | I34: 1 | J34: =+SSFertTime -> 0.1666666667 | K34: 1 | L34: 1 | M34: =+FWFertTime -> 0.2
A35: 2 | B35: 1 | C35: 1 | D35: 0.1 | E35: 1 | F35: 1 | G35: =+VAFertTime1 -> 0.1428571429 | H35: 1 | I35: 1 | J35: =+SSFertTime1 -> 0.1666666667 | K35: 1 | L35: 1 | M35: =+M34 -> 0.2
A36: 3 | B36: 1 | C36: 1 | D36: 0.1 | E36: 1 | F36: 1 | G36: =+VAFertTime1 -> 0.1428571429 | H36: 1 | I36: 1 | J36: =+SSFertTime1 -> 0.1666666667 | K36: 1 | L36: 1 | M36: =+M35 -> 0.2
A37: 4 | B37: 1 | C37: 1 | D37: 0.1 | E37: 1 | F37: 1 | G37: =+VAFertTime1 -> 0.1428571429 | H37: 1 | I37: 1 | J37: =+SSFertTime1 -> 0.1666666667 | K37: 1 | L37: 1 | M37: 0.2
A38: 5 | B38: 1 | C38: 1 | D38: 0.1 | E38: 1 | F38: 1 | G38: =+VAFertTime1 -> 0.1428571429
A39: 6 | B39: 1 | C39: 1 | D39: 0.1 | E39: 1 | F39: 1 | G39: =+VAFertTime1 -> 0.1428571429
A40: 7 | B40: 1 | C40: 1 | D40: 0.1
A41: 8 | B41: 1 | C41: 1 | D41: 0.1
A44: Trip Time | C44: Row | D44: % of | E44: Hours | F44: Acres | G44: Time | H44: 4.5 | I44: mph | J44: =+H44*5280 -> 23760 | K44: /hr
C45: Spacing | D45: C.L. | E45: /Load | F45: =+E45 -> /Load | G45: /Acre | H45: 18 | I45: =43560/H45 -> 2420 | J45: =+J44/I45 -> 9.818181818
A46: Central Leader | C46: =+CLRowSpace -> 20 | D46: =+C46/C46*100 -> 100 | E46: 0.1 | F46: 1 | G46: =+E46/F46 -> 0.1
A47: Vertical Axe | C47: =+VARowSpace -> 14 | D47: =+C46/C47*100 -> 142.8571429 | G47: =+G46*D47*0.01 -> 0.1428571429 | H47: 175 acre | I47: 20 hours | J47: =200/20 -> 10
A48: Tall Spindle | C48: =+SSRowSpace -> 12 | D48: =+C46/C48*100 -> 166.6666667 | G48: =+G46*D48*0.01 -> 0.1666666667
A49: Fruiting Wall | C49: =+FWRowSpace -> 10 | D49: =+C46/C49*100 -> 200 | G49: =+G46*D49*0.01 -> 0.2
A96: 1 | I96: 100 | J96: =+G96*E96*A96*I96*0.01 -> 0
A97: 1 | E97: 5 | I97: 100 | J97: =+G97*E97*A97*I97*0.01 -> 0
A98: 1 | E98: 5 | I98: 100 | J98: =+G98*E98*A98*I98*0.01 -> 0
I100: 100 | J100: =+G100*E100*A100*I100*0.01 -> 0
C102: Calcium Sprays | D102: EG-615 | I102: 100 | J102: =+G102*E102*A102*I102*0.01 -> 0
I104: 100 | J104: =+G104*E104*A104*I104*0.01 -> 0
A106: 1 | B106: Post-Harvest | C106: Boron | E106: 2 | I106: 100 | J106: =+G106*E106*A106*I106*0.01 -> 0
A107: 1 | E107: 5 | I107: 100 | J107: =+G107*E107*A107*I107*0.01 -> 0
A108: 1 | E108: 5 | I108: 100 | J108: =+G108*E108*A108*I108*0.01 -> 0
C114: Sevin 80S

Sheet Wildlife
A1: Mouse and Wildlife Control
C2: Central Leader | F2: Vertical Axe | I2: Tall Spindle | L2: Tall Spindle
C3: Mouse Control | F3: =+C3 -> Mouse Control | I3: =+F3 -> Mouse Control | L3: =+I3 -> Mouse Control
A4: Year | B4: Time | C4: Percent | D4: Cost | E4: =+B4 -> Time | F4: =+C4 -> Percent | G4: =+D4 -> Cost | H4: =+E4 -> Time | I4: =+F4 -> Percent | J4: =+G4 -> Cost | K4: =+H4 -> Time | L4: =+I4 -> Percent | M4: =+J4 -> Cost
B5: /Acre | C5: Applied | D5: /Acre | E5: =+B5 -> /Acre | F5: =+C5 -> Applied | G5: =+D5 -> /Acre | H5: =+E5 -> /Acre | I5: =+F5 -> Applied | J5: =+G5 -> /Acre | K5: =+H5 -> /Acre | L5: =+I5 -> Applied | M5: =+J5 -> /Acre
A6: 1 | B6: =1/8.5 -> 0.1176470588 | C6: 100 | D6: =+C6*BaitCost*0.01 -> 5.5 | E6: =VAFertTime -> 0.1428571429 | F6: 100 | G6: =+F6*BaitCost*0.01 -> 5.5 | H6: =SSFertTime -> 0.1666666667 | I6: 100 | J6: =+I6*BaitCost*0.01 -> 5.5 | K6: =FWFertTime -> 0.2 | L6: 100 | M6: =+L6*BaitCost*0.01 -> 5.5
A7: 2 | B7: =1/8.5 -> 0.1176470588 | C7: 100 | D7: 5.5 | E7: =+VABaitTime1 -> 0.1428571429 | F7: 100 | G7: 5.5 | H7: =+SSBaitTIme1 -> 0.1666666667 | I7: 100 | J7: =+I7*BaitCost*0.01 -> 5.5 | K7: =+K6 -> 0.2 | L7: 100 | M7: =+L7*BaitCost*0.01 -> 5.5
A8: 3 | B8: 0.1176470588 | C8: 100 | D8: 5.5 | E8: =+VABaitTime1 -> 0.1428571429 | F8: 100 | G8: 5.5 | H8: =+SSBaitTIme1 -> 0.1666666667 | I8: 100 | J8: =+I8*BaitCost*0.01 -> 5.5 | K8: =+K7 -> 0.2 | L8: 100 | M8: =+L8*BaitCost*0.01 -> 5.5
A9: 4 | B9: 0.1176470588 | C9: 100 | D9: 5.5 | E9: =+VABaitTime1 -> 0.1428571429 | F9: 100 | G9: 5.5 | H9: =+SSBaitTIme1 -> 0.1666666667 | I9: =+I8 -> 100 | J9: =+I9*BaitCost*0.01 -> 5.5 | K9: 0.2 | L9: =+L8 -> 100 | M9: =+L9*BaitCost*0.01 -> 5.5
A10: 5 | B10: 0.1176470588 | C10: =+C9 -> 100 | D10: 5.5 | E10: =+VABaitTime1 -> 0.1428571429 | F10: =+F9 -> 100 | G10: 5.5
A11: 6 | B11: 0.1176470588 | C11: =+C10 -> 100 | D11: 5.5 | E11: =+VABaitTime1 -> 0.1428571429 | F11: =+F10 -> 100 | G11: 5.5
A12: 7 | B12: 0.1176470588 | C12: =+C11 -> 100 | D12: 5.5
A13: 8 | B13: 0.1176470588 | C13: =+C12 -> 100 | D13: 5.5
G15: 8.5 acres/hour
A16: Application every other row with Vicon spreader @ 10# Bait per acre.
F17: $/# | G17: Rate/Acre | H17: Cost/Acre | I17: Need to add labor for app and paint
B18: Mouse Bait | E18: 50# | F18: 0.55 | G18: 10 | H18: =+G18*F18 -> 5.5
B19: Tree Gards | E19: 1200 | F19: 0.25 | G19: =SSTree -> 1210 | H19: =+F19*G19 -> 302.5
B20: Pellets | E20: 3#
A21: Wildlife control
A23: Ribbons, Soap, etc. | D23: Cost/Tree | E23: 2 years treated | G23: Then no more
B24: Central Leader | D24: 0.05 | E24: Fabric Softeners | G24: 200/acre
B25: Vertical Axe | D25: 0.04
B26: Tall Spindle | D26: 0.03
B27: Fruiting Wall | D27: 0.02
A29: Deer Fence
A30: Deer Fence Installed | C30: 3.2 | D30: per foot
C31: 40 | D31: acres
C32: 5280 | D32: total feet
C33: =+C30*C32 -> 16896 | D33: total cost | G33: =+C33/C31 -> 422.4 | H33: per acre | I33: 15 | J33: =+G33/I33 -> 28.16
C34: 3 | D34: % of acreage
C116: Sevin 80S

Sheet Trellis
A1: Support System
C2: Cost/acre | E2: Cost/tree
A3: Central Leader | D3: 0 | F3: =+D3/CLTree -> 0
A4: Vertical Axe | D4: =+J24 -> 1633.782718 | F4: =+D4/VATree -> 2.625454322
A5: Tall Spindle | D5: =+J41 -> 2104.152371 | F5: =+D5/SSTree -> 1.738968902
A6: Fruiting Wall | D6: =+J59 -> 2907.508709 | F6: =+D6/FWTree -> 2.669888621
A7: Trellis System
A8: Vertical Axe System | J8: Rows /acre
A9: Item | B9: Quanity | D9: Rows | F9: Quanity | H9: Price | J9: =+D10 -> 6.222857143
A10: 5" tops, 12' CCA posts | B10: =+'Factors & Yield'!C22/35+1 -> 15.28571429 | C10: per row | D10: =+VARow -> 6.222857143 | E10: rows | F10: =+B10*D10 -> 95.12081633 | G10: posts | H10: 12.5 | I10: each | J10: =+F10*H10 -> 1189.010204
C11: every 35'
A12: Screw Achors | B12: 2 | C12: per row | D12: =+VARow -> 6.222857143 | E12: rows | F12: =+B12*D12 -> 12.44571429 | G12: achors | H12: 8.6 | I12: each | J12: =+H12*B12 -> 17.2
A14: #12 high tensil wire | B14: 3 | C14: per row | D14: =+'Factors & Yield'!C22 -> 500 | E14: row length | F14: =+D14*B14*D12 -> 9334.285714 | G14: feet /acre | H14: =104/4000 -> 0.026 | I14: /foot | J14: =+F14*H14 -> 242.6914286
A16: Wire vise anchors | B16: 3 | C16: per row | D16: =+VARow -> 6.222857143 | E16: rows | F16: =+B16*D16 -> 18.66857143 | G16: each | H16: 2.07 | I16: each | J16: =+F16*H16 -> 38.64394286
A18: Gripples | B18: 2 | C18: per row | D18: =+VARow -> 6.222857143 | E18: rows | F18: =+B18*D18 -> 12.44571429 | G18: each | H18: 1.25 | I18: each | J18: =+F18*H18 -> 15.55714286
A20: Crimps | B20: =+B14*3 -> 9 | C20: per row | D20: =+VARow -> 6.222857143 | E20: rows | F20: =+B20*D20 -> 56.00571429 | G20: each | H20: 0.1 | I20: each | J20: =+F20*H20 -> 5.600571429
A22: Tree ties | B22: =+B14 -> 3 | C22: per tree | D22: =+VATree -> 622.2857143 | E22: trees /acre | F22: =+B22*D22 -> 1866.857143 | G22: =+G20 -> each | H22: 0.067 | I22: /foot | J22: =+F22*H22 -> 125.0794286
A24: Total cost per acre | J24: =SUM(J10:J23) -> 1633.782718
A25: Tall Spindle System | J25: Rows /acre
A26: Item | B26: Item | D26: Rows | F26: Quanity | H26: Price | J26: =+D27 -> 7.26
A27: 5" tops, 12' CCA posts | B27: =+'Factors & Yield'!D22/35+1 -> 15.28571429 | C27: per row | D27: =+SSRow -> 7.26 | E27: rows | F27: =+B27*D27 -> 110.9742857 | G27: posts | H27: 13.4 | I27: each | J27: =+F27*H27 -> 1487.055429
C28: every 35'
A29: Screw Achors | B29: 2 | C29: per row | D29: =+SSRow -> 7.26 | E29: rows | F29: =+B29*D29 -> 14.52 | G29: achors | H29: 11.35 | I29: each | J29: =+H29*B29 -> 22.7
A31: #12 high tensil wire | B31: 4 | C31: per row | D31: =+'Factors & Yield'!B22 -> 500 | E31: row length | F31: =+D31*B31*D29 -> 14520 | G31: feet /acre | H31: 0.0225 | I31: /foot | J31: =+F31*H31 -> 326.7
A33: Wire vise anchors | B33: 5 | C33: per row | D33: =+SSRow -> 7.26 | E33: rows | F33: =+B33*D33 -> 36.3 | G33: each | H33: 2.07 | I33: each | J33: =+F33*H33 -> 75.141
A35: Gripples | B35: 2 | C35: per row | D35: =+SSRow -> 7.26 | E35: rows | F35: =+B35*D35 -> 14.52 | G35: each | H35: 1.57 | I35: each | J35: =+F35*H35 -> 22.7964
A36: Galagers
A37: Crimps | B37: =+B31*3 -> 12 | C37: per row | D37: =+SSRow -> 7.26 | E37: rows | F37: =+B37*D37 -> 87.12 | G37: each | H37: 0.12 | I37: each | J37: =+F37*H37 -> 10.4544
A38: Wire Clips
A39: Tree ties | B39: =+B31 -> 4 | C39: per tree | D39: =+VATree -> 622.2857143 | E39: trees /acre | F39: =+B39*D39 -> 2489.142857 | G39: =+G37 -> each | H39: 0.064 | I39: /foot | J39: =+F39*H39 -> 159.3051429
A41: Total cost per acre | J41: =SUM(J27:J39) -> 2104.152371
A43: Fruiting Wall System | J43: Rows /acre
A44: Item | B44: Item | D44: Rows | F44: Quanity | H44: Price | J44: =+D45 -> 8.712
A45: 5" tops, 12' CCA posts | B45: =+'Factors & Yield'!E22/30+1 -> 17.66666667 | C45: per row | D45: =+FWRow -> 8.712 | E45: rows | F45: =+B45*D45 -> 153.912 | G45: posts | H45: 13.4 | I45: each | J45: =+F45*H45 -> 2062.4208
C46: every 30'
A47: Screw Achors | B47: 2 | C47: per row | D47: =+FWRow -> 8.712 | E47: rows | F47: =+B47*D47 -> 17.424 | G47: achors | H47: 11.35 | I47: each | J47: =+H47*B47 -> 22.7
A49: #12 high tensil wire | B49: 5 | C49: per row | D49: =+'Factors & Yield'!C22 -> 500 | E49: row length | F49: =+D49*B49*D47 -> 21780 | G49: feet /acre | H49: 0.0225 | I49: /foot | J49: =+F49*H49 -> 490.05
A51: Wire vise anchors | B51: 5 | C51: per row | D51: =+FWRow -> 8.712 | E51: rows | F51: =+B51*D51 -> 43.56 | G51: each | H51: 2.07 | I51: each | J51: =+F51*H51 -> 90.1692
A53: Gripples | B53: 2 | C53: per row | D53: =+FWRow -> 8.712 | E53: rows | F53: =+B53*D53 -> 17.424 | G53: each | H53: 1.57 | I53: each | J53: =+F53*H53 -> 27.35568
A54: Galagers
A55: Crimps | B55: =+B49*3 -> 15 | C55: per row | D55: =+FWRow -> 8.712 | E55: rows | F55: =+B55*D55 -> 130.68 | G55: each | H55: 0.12 | I55: each | J55: =+F55*H55 -> 15.6816
A56: Wire Clips
A57: Tree ties | B57: =+B49 -> 5 | C57: per tree | D57: =+VATree -> 622.2857143 | E57: trees /acre | F57: =+B57*D57 -> 3111.428571 | G57: =+G55 -> each | H57: 0.064 | I57: /foot | J57: =+F57*H57 -> 199.1314286
A59: Total cost per acre | J59: =SUM(J45:J57) -> 2907.508709

Sheet Training
A1: Training Time and Materials
A2: The time it takes to prune and train trees per acre per season with unskilled labor.
B4: Central Leader | D4: Vertical Axe | F4: Tall Spindle | H4: Fruiting Wall
A5: Year | B5: Hours | C5: Material | D5: =+B5 -> Hours | E5: Material | F5: Hours | G5: Material | H5: =+F5 -> Hours | I5: =+G5 -> Material
B6: /Acre | C6: Cost | D6: /Acre | E6: Cost | F6: /Acre | G6: Cost | H6: /Acre | I6: Cost
A7: 1 | B7: 5 | C7: 10 | D7: 30 | E7: 20 | F7: 150 | G7: 80 | H7: 100 | I7: 80
A8: 2 | B8: 5 | C8: 10 | D8: 80 | E8: 60 | F8: 20 | G8: 10 | H8: 20 | I8: 10
A9: 3 | B9: 8 | C9: 10 | D9: 60 | E9: 40 | F9: 15 | G9: 10 | H9: 15 | I9: 10
A10: 4 | B10: 15 | C10: 10 | D10: 20 | E10: 20 | F10: 5 | G10: 4 | H10: 5 | I10: 4
A11: 5 | B11: 10 | C11: 10 | D11: 10 | E11: 10
A12: 6 | B12: 5 | C12: 5 | D12: 4 | E12: 6
A13: 7 | B13: 5 | C13: 0
A14: 8 | B14: 0
A17: Pruning Time and Equipment
A18: The time it takes to prune trees per acre per season with unskilled labor.
A20: Equipment used is a Brownie hydralic pruners or a pnuematic pruners.
B22: Central Leader | D22: Vertical Axe | F22: Tall Spindle | H22: Fruiting Wall
A23: Year | B23: Minutes | C23: Hours | D23: =+B23 -> Minutes | E23: Hours | F23: Minutes | G23: Hours | H23: =+F23 -> Minutes | I23: =+G23 -> Hours
B24: /Tree | C24: /Acre | D24: /Tree | E24: /Acre | F24: /Tree | G24: /Acre | H24: /Tree | I24: /Acre
A25: 1 | B25: 0.1 | C25: =+B25*CLTree/60 -> 0.3025 | D25: 0.1 | E25: =+D25*VATree/60 -> 1.037142857 | F25: 0.1 | G25: =+F25*SSTree/60 -> 2.016666667 | H25: 0.1 | I25: =+H25*SSTree/60 -> 2.016666667
A26: 2 | B26: 0.1 | C26: 0.3025 | D26: 0.1 | E26: 1.037142857 | F26: 0.1 | G26: =+F26*SSTree/60 -> 2.016666667 | H26: 0.1 | I26: =+H26*SSTree/60 -> 2.016666667
A27: 3 | B27: 0.1 | C27: 0.3025 | D27: 0.2 | E27: 2.074285714 | F27: 0.5 | G27: =+F27*SSTree/60 -> 10.08333333 | H27: 0.4 | I27: =+H27*SSTree/60 -> 8.066666667
A28: 4 | B28: 0.1 | C28: 0.3025 | D28: 0.5 | E28: 5.185714286 | F28: 1.5 | G28: =+F28*SSTree/60 -> 30.25 | H28: 0.8 | I28: =+H28*SSTree/60 -> 16.13333333
A29: 5 | B29: 2 | C29: 6.05 | D29: 1 | E29: 10.37142857
A30: 6 | B30: 4 | C30: 12.1 | D30: 3 | E30: 31.11428571
A31: 7 | B31: 8 | C31: 24.2
A32: 8 | B32: 10 | C32: 30.25
A34: 2 men /hour / tie trees
C114: Sevin 80S

Sheet Mowing
A1: Mowing
A2: The time it takes mow per acre per season.
B4: Central Leader | D4: Vertical Axe | F4: Tall Spindle | H4: Fruiting Wall
A5: Year | B5: # of time | C5: Hours | D5: =+B5 -> # of time | E5: Hours | F5: # of time | G5: Hours | H5: =+F5 -> # of time | I5: =+G5 -> Hours
B6: mowed | C6: /Acre | D6: mowed | E6: /Acre | F6: mowed | G6: /Acre | H6: mowed | I6: /Acre
A7: 1 | B7: 0 | C7: =+B7*CLMowTime -> 0 | D7: 0 | E7: =+D7*VAMowTime -> 0 | F7: 0 | G7: =+F7*SSMowTime -> 0 | H7: 0 | I7: =+H7*FWMowTime -> 0
A8: 2 | B8: 2 | C8: =+B8*CLMowTime -> 0.5 | D8: 2 | E8: 0.7142857143 | F8: 2 | G8: =+F8*SSMowTime -> 0.8333333333 | H8: 2 | I8: =+H8*FWMowTime -> 1
A9: 3 | B9: 3 | C9: 0.75 | D9: 3 | E9: 1.071428571 | F9: 3 | G9: =+F9*SSMowTime -> 1.25 | H9: 3 | I9: =+H9*FWMowTime -> 1.5
A10: 4 | B10: =+B9 -> 3 | C10: 0.75 | D10: =+D9 -> 3 | E10: 1.071428571 | F10: =+F9 -> 3 | G10: =+F10*SSMowTime -> 1.25 | H10: =+H9 -> 3 | I10: =+H10*FWMowTime -> 1.5
A11: 5 | B11: =+B10 -> 3 | C11: 0.75 | D11: =+D10 -> 3 | E11: 1.071428571
A12: 6 | B12: =+B11 -> 3 | C12: 0.75 | D12: =+D11 -> 3 | E12: 1.071428571
A13: 7 | B13: =+B12 -> 3 | C13: 0.75
A14: 8 | B14: =+B13 -> 3 | C14: 0.75
A17: Trip Time | C17: Row | D17: % of | E17: Hours | F17: Acres | G17: Time
C18: Spacing | D18: C.L. | E18: of time | F18: completed | G18: /Acre
A19: Central Leader | C19: =+CLRowSpace -> 20 | D19: =+C19/C19*100 -> 100 | E19: 10 | F19: 40 | G19: =+E19/F19 -> 0.25
A20: Vertical Axe | C20: =+VARowSpace -> 14 | D20: =+C19/C20*100 -> 142.8571429 | G20: =+G19*D20*0.01 -> 0.3571428571
A21: Tall Spindle | C21: =+SSRowSpace -> 12 | D21: =+C19/C21*100 -> 166.6666667 | G21: =+G19*D21*0.01 -> 0.4166666667
A22: Fruiting wall | C22: 10 | D22: =+C19/C22*100 -> 200 | G22: =+G19*D22*0.01 -> 0.5
C114: Sevin 80S

Sheet Sheet1
B2: Costs Comparisons | C2: $ / Acre | F2: Percent of Total
B3: Practice | C3: Central Leader | D3: Vertical Axe | E3: Tall Spindle | F3: =+C3 -> Central Leader | G3: =+D3 -> Vertical Axe | H3: Tall Spindle | M3: Total Cl | N3: Tatal VA | O3: Total TS
B4: Training | C4: 30.504 | D4: 72.504 | E4: 79.504 | F4: =+C4/M4*100 -> 1.634726688 | G4: =+D4/N4*100 -> 3.782159624 | H4: 4.434132738 | M4: 1866 | N4: 1917 | O4: 1793
B5: Pruning/ Brush | C5: =386+41 -> 427 | D5: =397+54 -> 451 | E5: =386+54 -> 440 | F5: =+C5/M5*100 -> 22.88317256 | G5: =+D5/N5*100 -> 23.52634324 | H5: =+E5/O5*100 -> 24.5398773 | M5: 1866 | N5: 1917 | O5: 1793
B6: Tree replacement | C6: 25.7385 | D6: 58.79742857 | E6: 102.876 | F6: 1.379340836 | G6: 3.067158507 | H6: 5.737646403 | M6: 1866 | N6: 1917 | O6: 1793
B7: Herbicide Program | C7: 37.13011458 | D7: 48.08504658 | E7: 55.2569099 | F7: 1.989823933 | G7: 2.508348804 | H7: 3.081813156 | M7: 1866 | N7: 1917 | O7: 1793
B8: Spray Program | C8: 1127.266583 | D8: 937.1184667 | E8: 746.97035 | F8: 60.41085656 | G8: 48.88463572 | H8: 41.66036531 | M8: 1866 | N8: 1917 | O8: 1793
B9: Hand Pheromone | C9: 9 | D9: 9 | E9: 9 | F9: 0.4823151125 | G9: 0.4694835681 | H9: 0.5019520357 | M9: 1866 | N9: 1917 | O9: 1793
B10: Mowing | C10: 19.36089286 | D10: 27.65841837 | E10: 32.26815476 | F10: 1.037561246 | G10: 1.442796994 | H10: 1.799673997 | M10: 1866 | N10: 1917 | O10: 1793
B11: Mouse control | C11: 8.35767507 | D11: 8.35767507 | E11: 8.35767507 | F11: 0.4478925547 | G11: 0.4359767903 | H11: 0.4661280017 | M11: 1866 | N11: 1917 | O11: 1793
B12: Wildlife Control | C12: 42.327 | D12: 58.14342857 | E12: 69.552 | F12: 2.268327974 | G12: 3.033042701 | H12: 3.879085332 | M12: 1866 | N12: 1917 | O12: 1793
B13: Fertilizer | C13: 17.62964881 | D13: 21.0003631 | E13: 24.73839881 | F13: 0.9447828944 | G13: 1.0954806 | H13: 1.379721071 | M13: 1866 | N13: 1917 | O13: 1793
B14: Lime | C14: 35 | D14: 35 | E14: 35 | F14: 1.875669882 | G14: 1.825769431 | H14: 1.952035694 | M14: 1866 | N14: 1917 | O14: 1793
B15: Scouting | C15: 15 | D15: 15 | E15: 15 | F15: 0.8038585209 | G15: 0.7824726135 | H15: 0.8365867262 | M15: 1866 | N15: 1917 | O15: 1793
B16: Bees | C16: 25 | D16: 35 | E16: 35 | F16: 1.339764202 | G16: 1.825769431 | H16: 1.952035694 | M16: 1866 | N16: 1917 | O16: 1793
B17: Trickle Irrigation | C17: 0 | D17: 92.5 | E17: 99 | F17: 0 | G17: 4.825247783 | H17: 5.521472393 | M17: 1866 | N17: 1917 | O17: 1793
B18: Real Estate Tax | C18: 35 | D18: 35 | E18: 35 | F18: 1.875669882 | G18: 1.825769431 | H18: 1.952035694 | M18: 1866 | N18: 1917 | O18: 1793
B19: Management | C19: 12.5 | D19: 12.5 | E19: 12.5 | F19: 0.6698821008 | G19: 0.6520605112 | H19: 0.6971556051 | M19: 1866 | N19: 1917 | O19: 1793
C20: 0 | D20: 0 | E20: 0 | F20: 0 | G20: 0 | H20: 0 | M20: 1866 | N20: 1917 | O20: 1793
B21: Total | C21: 1866.113415 | D21: 1916.557513 | E21: 1793.399989 | F21: 100.006078 | G21: 99.97691772 | H21: 100.0223083 | M21: 1866 | N21: 1917 | O21: 1793
B25: Included
E26: CL | F26: VA | G26: TS
B27: Practice | C27: Trellis | E27: 0 | F27: =+Trellis!J24 -> 1633.782718 | G27: =+Trellis!J41 -> 2104.152371
B28: Training
B29: Pruning/ Brush | C29: Price Rate | E29: 15 | F29: /Bin
B30: Tree replacement | C30: Un-skilled | E30: =+LaborNoSkill -> 10 | F30: /Hour
B31: Herbicide Program | C31: Skilled | E31: =+LaborSkill -> 15 | F31: /Hour
B32: Spray Program
B33: Hand Pheromone | C33: Harvest Included
B34: Mowing | C34: Migrant Housing Unit Costs
B35: Mouse control | C35: Flat Bed Truck
B36: Wildlife Control | C36: Loading Truck
B37: Fertilizer | C37: Potable Toilets
B38: Lime | C38: Harvest Supervision
B39: Scouting | C39: Hauling Bins Out of Orchard
B40: Bees | C40: Bin Rent
B41: Trickle Irrigation
B42: Real Estate Tax
B43: Management
B45: Not Inculded
B46: Crop Insurance /Acre | D46: 150
B47: Frost Fans | C47: $30000/100 acres | D47: 300
B48: Management | C48: $30000/200 acres | D48: 150
C114: Sevin 80S

Sheet Harvest
A1: Worker Factors
C2: Bushel | D2: Manhours | E2: =+C2 -> Bushel | F2: Piece
C3: Picked | D3: /Season | E3: =+C3 -> Picked | F3: Rate | G3: =+F3 -> Rate | H3: Earnings
C4: /Hour | D4: /Worker | E4: =+D4 -> /Worker | F4: /Bin | G4: /Bushel | H4: =+E4 -> /Worker
C6: 12.5 | D6: =+WeekUse*40 -> 520 | E6: =+BushelHour*ManHours -> 6500 | F6: 20 | G6: =+F6/20 -> 1 | H6: =+E6*G6 -> 6500
B8: Seasonal Weeks Used | C8: People /Camp | D8: Workers /Camp | E8: Weeks Picking | F8: Manhours /Season | G8: Camp Cost /Man Hour | H8: Camp Cost /Bushel
B10: =6*4 -> 24 | C10: 20 | D10: 12 | E10: 13 | F10: =+WeekUse*40*CampWorker -> 6240 | G10: =+D48/+F10 -> 0.4204544707 | H10: =+G10/BushelHour -> 0.03363635766
A12: Harvest Cost Summary | F12: Cost | G12: =+F12 -> Cost | H12: =+G12 -> Cost
F13: /Bin | G13: /Bushel | H13: /lb
A15: Housing Cost | F15: =+H48 -> 2.186363248 | G15: =+F15/20 -> 0.1093181624 | H15: =+F15/850 -> 0.002572192056
A16: Harvest Worker Pay Costs | F16: =+H72 -> 30.39523825 | G16: 1.519761912 | H16: 0.03575910382
A17: Potable Toilets | F17: =+H52 -> 0.0625 | G17: 0.003125 | H17: 7.352941176e-05
A18: Harvest Supervision | F18: =+H54 -> 1.6 | G18: 0.08 | H18: 0.001882352941
A19: Hauling Bins Out of Orchard | F19: =+I70 -> 0 | G19: 0 | H19: 0
A20: Bin Rent | F20: 7 | G20: 0.35 | H20: 0.008235294118
A22: Total | F22: =SUM(F15:F21) -> 41.2441015 | G22: =SUM(G15:G21) -> 2.062205075 | H22: =SUM(H15:H21) -> 0.04852247235
A24: This farm example has a migrant camp (cost $50,000) that is used 13 weeks per year. It houses 20 people
A25: and of these 20 people, 13 are workers. The cost of housing 1 worker is $750 per season. Total harvest cost
A26: per bushel is $1.41 or $.033 per pound.
A27: Migrant Housing plus | E27: Cost | F27: Basis | G27: Years Life | H27: Cost/year
A29: Migrant Housing | E29: 60000 | F29: 55000 | G29: 15 | H29: =+F29/G29 -> 3666.666667
A30: Code | B30: Item | C30: Annual Cost
A31: 23 | B31: =IF(A31>0,VLOOKUP(A31,EquipCost,2),"") -> Straight Ladder | C31: =IF(A31>0,VLOOKUP(A31,EquipCost,12),"") -> 28.8 | H31: =+C31 -> 28.8
A32: 24 | B32: =IF(A32>0,VLOOKUP(A32,EquipCost,2),"") -> Step Ladder | C32: =IF(A32>0,VLOOKUP(A32,EquipCost,12),"") -> 24 | H32: =+C32 -> 24
A33: 25 | B33: =IF(A33>0,VLOOKUP(A33,EquipCost,2),"") -> Picking Bag | C33: =IF(A33>0,VLOOKUP(A33,EquipCost,12),"") -> 13.6 | H33: 13.6
H34: =SUM(H29:H33) -> 3733.066667
D36: Camp | E36: Cost | F36: =+E36 -> Cost | G36: =+F36 -> Cost
D37: Cost | E37: /Worker | F37: =+E37 -> /Worker | G37: =+F37 -> /Worker | H37: Cost
D38: /Month | E38: /Week | F38: /Man Hour | G38: /Season | H38: /Bin
A40: Migrant Housing Depreciation | D40: =+(H34/WeekUse)*4 -> 1148.635897 | E40: =+(D40/CampWorker)/4 -> 23.92991453 | F40: =+E40/40 -> 0.5982478632 | G40: =+F40*ManHours -> 311.0888889 | H40: =+F40/BushelHour*20 -> 0.9571965812
A42: Repairs | D42: 750 | E42: =+(D42/CampWorker)/4 -> 15.625 | F42: =+E42/40 -> 0.390625 | G42: =+F42*ManHours -> 203.125 | H42: =+F42/BushelHour*20 -> 0.625
A43: Heat & cooking | D43: 170 | E43: =+(D43/CampWorker)/4 -> 3.541666667 | F43: =+E43/40 -> 0.08854166667 | G43: =+F43*ManHours -> 46.04166667 | H43: =+F43/BushelHour*20 -> 0.1416666667
A44: Electric | D44: 300 | E44: =+(D44/CampWorker)/4 -> 6.25 | F44: =+E44/40 -> 0.15625 | G44: =+F44*ManHours -> 81.25 | H44: =+F44/BushelHour*20 -> 0.25
A45: Central facilities | D45: 200 | E45: =+(D45/CampWorker)/4 -> 4.166666667 | F45: =+E45/40 -> 0.1041666667 | G45: =+F45*ManHours -> 54.16666667 | H45: =+F45/BushelHour*20 -> 0.1666666667
A46: Waste | D46: 55 | E46: =+(D46/CampWorker)/4 -> 1.145833333 | F46: =+E46/40 -> 0.02864583333 | G46: =+F46*ManHours -> 14.89583333 | H46: =+F46/BushelHour*20 -> 0.04583333333
A48: Total Camp Cost | D48: =SUM(D40:D47) -> 2623.635897 | E48: =SUM(E40:E47) -> 54.6590812 | F48: =SUM(F40:F47) -> 1.36647703 | G48: =SUM(G40:G47) -> 710.5680556 | H48: =SUM(H40:H47) -> 2.186363248
A51: Total Camp Cost | F51: =+F48 -> 1.36647703 | H51: =+F51/BushelHour*20 -> 2.186363248
A52: Portable Toilets Costs | D52: 75 | E52: =+(D52/CampWorker)/4 -> 1.5625 | F52: =+E52/40 -> 0.0390625 | G52: =+F52*ManHours -> 20.3125 | H52: =+F52/BushelHour*20 -> 0.0625
A54: Harvest Supervision | D54: per hour per worker | F54: 1 | H54: =+F54/BushelHour*20 -> 1.6
A56: Total Harvest Cost | F56: =SUM(F51:F55) -> 2.40553953 | H56: =SUM(H51:H55) -> 3.848863248
A61: Activity | B61: Labor Hours | C61: Eq. Hours | D61: Labor Cost | E61: Eq. Code | F61: Eq. Cost | G61: Material Cost | H61: Total Cost/bin
A62: Hauling w Flat Bed Trk short distances | B62: 0.1 | C62: =+B62 -> 0.1 | D62: =+C62*LaborSkill -> 1.5 | E62: 15 | F62: =IF(E62>0,VLOOKUP(E62,EquipCost,15)*C62,0) -> 1.004375 | H62: =SUM(F62:G62)+D62 -> 2.504375
A63: Hauling Bins to loading pad | B63: 0.1 | C63: =+B63 -> 0.1 | D63: =+C63*LaborSkill -> 1.5 | E63: 19 | F63: =IF(E63>0,VLOOKUP(E63,EquipCost,15)*C63,0) -> 0.4041666667 | H63: =SUM(F63:G63)+D63 -> 1.904166667
A64: =IF(E64>0,VLOOKUP(E64,EquipCost,2),"") -> Lift Tractor | B64: 0.05 | C64: =+B64 -> 0.05 | D64: =+C64*LaborSkill -> 0.75 | E64: 20 | F64: =IF(E64>0,VLOOKUP(E64,EquipCost,15)*C64,0) -> 1.163333333 | H64: 1.913333333
A66: Piece Rate | H66: =+F6 -> 20
A67: Labor Taxes and Costs | H67: =0.0765+0.09+0.05+0.008 -> 0.2245
A72: Total Harvest Cost per Bin | H72: =SUM(H56:H71) -> 30.39523825
A73: Cost /Bu | H73: =+H72/20 -> 1.519761912
A75: 35 workers/ 200 acres
A76: 3 portable toilets/ 200 acres
C114: Sevin 80S

Sheet Year0
A1: Year 0, Site Preparation Cost.
A2: Activity | B2: Labor Hours | C2: Eq. Hours | D2: Labor Cost | E2: Eq. Code | F2: Eq. Cost | G2: Material Cost | H2: Other Cost | I2: Total Cost
A4: Tiling | H4: 400 | I4: =SUM(F4:H4)+D4 -> 400
A5: Bulldoze old trees | C5: 3.2 | F5: =Bulldozer*C5 -> 224 | I5: =SUM(F5:H5)+D5 -> 224
A6: Lime (3 ton) | G6: =Lime*3 -> 105 | I6: =SUM(F6:H6)+D6 -> 105
A7: Real Estate Tax | H7: =RETax -> 35 | I7: =SUM(F7:H7)+D7 -> 35
A8: Management | B8: 1 | D8: =B8*LaborSkill -> 15 | H8: =LaborSkill*B8 -> 15 | I8: =SUM(F8:H8)+D8 -> 30
A11: Total | B11: =SUM(B3:B9) -> 1 | C11: =SUM(C3:C9) -> 3.2 | D11: =SUM(D3:D9) -> 15 | F11: =SUM(F3:F9) -> 224 | G11: =SUM(G3:G9) -> 105 | H11: =SUM(H3:H9) -> 450 | I11: =SUM(I3:I9) -> 794

Sheet Equipment
A1: Equipment Cost
H2: Gal. | I2: Fuel | J2: Repair | K2: 0.03 | L2: Total | M2: Hours | N2: Cost | O2: Rate
D3: Index | E3: Years | F3: Annual | G3: Interest | H3: fuel | I3: used | J3: & | K3: Other | L3: annual | M3: of | N3: per | O3: used
A4: Code | B4: Item | C4: Cost | D4: cost | E4: life | F4: depr. | G4: =+IntRate*100 -> 6 | H4: /hr. | I4: /year | J4: main. | K4: costs | L4: cost | M4: use | N4: hour | O4: /hour
A6: 1 | B6: Pick-up | C6: 20000 | D6: 18000 | E6: 5 | F6: =D6/E6 -> 3600 | G6: =D6/2*IntRate -> 540 | H6: 1.7328 | I6: =Gas*H6*M6 -> 3032.4 | J6: 720 | K6: =EqOther*C6 -> 600 | L6: =SUM(F6:G6)+SUM(I6:K6) -> 8492.4 | M6: 500 | N6: =L6/M6 -> 16.9848 | O6: =N6 -> 16.9848
A8: 2 | B8: Tractor 80 hp diesel | C8: 50000 | D8: 28800 | E8: 10 | F8: =D8/E8 -> 2880 | G8: =D8/2*IntRate -> 864 | H8: 3.5 | I8: =Diesel*H8*M8 -> 3850 | J8: 390 | K8: =EqOther*C8 -> 1500 | L8: =SUM(F8:G8)+SUM(I8:K8) -> 9484 | M8: 400 | N8: =L8/M8 -> 23.71 | O8: =N8 -> 23.71
A10: 3 | B10: Tractor 40 hp diesel | C10: 30000 | D10: 11000 | E10: 10 | F10: =D10/E10 -> 1100 | G10: =D10/2*IntRate -> 330 | H10: 1.92 | I10: =Diesel*H10*M10 -> 2112 | J10: 420 | K10: =EqOther*C10 -> 900 | L10: =SUM(F10:G10)+SUM(I10:K10) -> 4862 | M10: 400 | N10: =L10/M10 -> 12.155 | O10: =N10 -> 12.155
A12: 4 | B12: Sprayer, airblast | C12: 50000 | D12: =22000-5000 -> 17000 | E12: 10 | F12: =D12/E12 -> 1700 | G12: 510 | J12: 840 | K12: =EqOther*C12 -> 1500 | L12: =SUM(F12:G12)+SUM(I12:K12) -> 4550 | M12: 400 | N12: =L12/M12 -> 11.375 | O12: =N12 -> 11.375
A14: 5 | B14: Sprayer, weed | C14: 6000 | D14: 2275 | E14: 10 | F14: =D14/E14 -> 227.5 | G14: 68.25 | J14: 189 | K14: =EqOther*C14 -> 180 | L14: =SUM(F14:G14)+SUM(I14:K14) -> 664.75 | M14: 150 | N14: =L14/M14 -> 4.431666667 | O14: =N14 -> 4.431666667
A16: 6 | B16: Fert. Spreader, 3 pt. | C16: 2000 | D16: 1500 | E16: 7 | F16: =D16/E16 -> 214.2857143 | G16: 45 | J16: 151 | K16: =EqOther*C16 -> 60 | L16: =SUM(F16:G16)+SUM(I16:K16) -> 470.2857143 | M16: 150 | N16: =L16/M16 -> 3.135238095 | O16: =N16 -> 3.135238095
B17: (Vicon)
A18: 7 | B18: Mower, Rotary | C18: 9000 | D18: 3800 | E18: 7 | F18: =D18/E18 -> 542.8571429 | G18: 114 | J18: 471 | K18: =EqOther*C18 -> 270 | L18: =SUM(F18:G18)+SUM(I18:K18) -> 1397.857143 | M18: 300 | N18: =L18/M18 -> 4.65952381 | O18: =N18 -> 4.65952381
A20: 8 | B20: Chisel Plow | C20: 1400 | D20: 770 | E20: 15 | F20: =D20/E20 -> 51.33333333 | G20: 23.1 | J20: 17 | K20: =EqOther*C20 -> 42 | L20: =SUM(F20:G20)+SUM(I20:K20) -> 133.4333333 | M20: 30 | N20: =L20/M20 -> 4.447777778 | O20: =N20 -> 4.447777778
A22: 9 | B22: Disc | C22: 5000 | D22: 1650 | E22: 15 | F22: =D22/E22 -> 110 | G22: 49.5 | J22: 98 | K22: =EqOther*C22 -> 150 | L22: =SUM(F22:G22)+SUM(I22:K22) -> 407.5 | M22: 75 | N22: =L22/M22 -> 5.433333333 | O22: =N22 -> 5.433333333
B23: Spring tooth
A24: 10 | B24: Harrow or Drag | C24: 1600 | D24: 880 | E24: 15 | F24: =D24/E24 -> 58.66666667 | G24: 26.4 | J24: 45 | K24: =EqOther*C24 -> 48 | L24: =SUM(F24:G24)+SUM(I24:K24) -> 178.0666667 | M24: 75 | N24: =L24/M24 -> 2.374222222 | O24: =N24 -> 2.374222222
A26: 11 | B26: Tree planter | C26: 5000 | D26: 1170 | E26: 10 | F26: =D26/E26 -> 117 | G26: =D26/2*IntRate -> 35.1 | J26: 15 | K26: =EqOther*C26 -> 150 | L26: =SUM(F26:G26)+SUM(I26:K26) -> 317.1 | M26: 40 | N26: =L26/M26 -> 7.9275 | O26: =N26 -> 7.9275
A28: 12 | B28: Cultipacker | C28: 1200 | D28: 660 | E28: 15 | F28: =D28/E28 -> 44 | G28: =D28/2*IntRate -> 19.8 | J28: 6 | K28: =EqOther*C28 -> 36 | L28: =SUM(F28:G28)+SUM(I28:K28) -> 105.8 | M28: 15 | N28: =L28/M28 -> 7.053333333 | O28: =N28 -> 7.053333333
A30: 13 | B30: Water tank | C30: 1500 | D30: 1260 | E30: 5 | F30: =D30/E30 -> 252 | G30: =D30/2*IntRate -> 37.8 | H30: 1.6 | I30: =Gas*H30*M30 -> 1120 | J30: 200 | K30: =EqOther*C30 -> 45 | L30: =SUM(F30:G30)+SUM(I30:K30) -> 1654.8 | M30: 200 | N30: =L30/M30 -> 8.274 | O30: =N30 -> 8.274
B31: Engine to pump water (not used).
A32: 14 | B32: Dump truck | C32: 2500 | D32: 2100 | E32: 5 | F32: =D32/E32 -> 420 | G32: =D32/2*IntRate -> 63 | H32: 1.6 | I32: =Gas*H32*M32 -> 840 | J32: 150 | K32: =EqOther*C32 -> 75 | L32: =SUM(F32:G32)+SUM(I32:K32) -> 1548 | M32: 150
A34: 15 | B34: Truck, Flat bed | C34: 15000 | D34: 4250 | E34: 5 | F34: =D34/E34 -> 850 | G34: =D34/2*IntRate -> 127.5 | H34: 1.6 | I34: =Gas*H34*M34 -> 2240 | J34: 350 | K34: =EqOther*C34 -> 450 | L34: =SUM(F34:G34)+SUM(I34:K34) -> 4017.5 | M34: 400 | N34: =L34/M34 -> 10.04375 | O34: =N34 -> 10.04375
A37: 17 | B37: Drip Irrigation | C37: 0 | D37: =+C37 -> 0 | E37: 0 | F37: 0 | G37: 0 | I37: 2 | J37: =0.06*D37 -> 0 | K37: =EqOther*C37 -> 0 | L37: 88 | M37: 40 | N37: =L37/M37 -> 2.2 | O37: =N37 -> 2.2
A39: 18 | B39: Pruner, Browie | C39: =15600+1600 -> 17200 | D39: 6000 | E39: 10 | F39: =D39/E39 -> 600 | G39: =D39/2*IntRate -> 180 | H39: 0.8 | I39: =Gas*H39*M39 -> 2800 | J39: 450 | K39: =EqOther*C39 -> 516 | L39: =SUM(F39:G39)+SUM(I39:K39) -> 4546 | M39: 1000 | N39: =L39/M39 -> 4.546 | O39: =N39 -> 4.546
B40: Check fuel
A41: 19 | B41: Bin Hauler | C41: 5500 | D41: 4000 | E41: 20 | F41: =D41/E41 -> 200 | G41: =D41/2*IntRate -> 120 | K41: =EqOther*C41 -> 165 | L41: =SUM(F41:G41)+SUM(I41:K41) -> 485 | M41: 120 | N41: =L41/M41 -> 4.041666667 | O41: =N41 -> 4.041666667
A43: 20 | B43: Lift Tractor | C43: 17000 | D43: 2400 | E43: 10 | F43: =D43/E43 -> 240 | G43: =D43/2*IntRate -> 72 | H43: =+H8 -> 3.5 | I43: =Gas*H43*M43 -> 1470 | J43: 500 | K43: =EqOther*C43 -> 510 | L43: =SUM(F43:G43)+SUM(I43:K43) -> 2792 | M43: 120 | N43: =L43/M43 -> 23.26666667 | O43: =N43 -> 23.26666667
A45: 21 | B45: 4 Wheeler | C45: 6000 | D45: 3500 | E45: 5 | F45: =D45/E45 -> 700 | G45: =D45/2*IntRate -> 105 | H45: 1 | I45: =Gas*H45*M45 -> 420 | J45: 200 | K45: =EqOther*C45 -> 180 | L45: =SUM(F45:G45)+SUM(I45:K45) -> 1605 | M45: 120 | N45: =L45/M45 -> 13.375 | O45: =N45 -> 13.375
A47: 22 | B47: Snow Plow | C47: 5000 | D47: 3000 | E47: 10 | F47: =D47/E47 -> 300 | G47: =D47/2*IntRate -> 90 | J47: 10 | K47: =EqOther*C47 -> 150 | L47: =SUM(F47:G47)+SUM(I47:K47) -> 550 | M47: 120 | N47: =L47/M47 -> 4.583333333 | O47: =N47 -> 4.583333333
A49: 23 | B49: Straight Ladder | C49: 180 | D49: 180 | E49: 10 | F49: =D49/E49 -> 18 | G49: =D49/2*IntRate -> 5.4 | K49: =EqOther*C49 -> 5.4 | L49: =SUM(F49:G49)+SUM(I49:K49) -> 28.8
A50: 24 | B50: Step Ladder | C50: 150 | D50: 150 | E50: 10 | F50: =D50/E50 -> 15 | G50: =D50/2*IntRate -> 4.5 | K50: =EqOther*C50 -> 4.5 | L50: =SUM(F50:G50)+SUM(I50:K50) -> 24
A51: 25 | B51: Picking Bag | C51: 85 | D51: 85 | E51: 10 | F51: =D51/E51 -> 8.5 | G51: =D51/2*IntRate -> 2.55 | K51: =EqOther*C51 -> 2.55 | L51: =SUM(F51:G51)+SUM(I51:K51) -> 13.6
A53: 26 | B53: Brush Chopper | C53: 7500 | D53: 6000 | E53: 10 | F53: =D53/E53 -> 600 | G53: =D53/2*IntRate -> 180 | J53: 400 | K53: =EqOther*C53 -> 225 | L53: =SUM(F53:G53)+SUM(I53:K53) -> 1405 | M53: 120 | N53: =L53/M53 -> 11.70833333 | O53: =N53 -> 11.70833333
A55: 27 | B55: Brush Sweeper | C55: 4000 | D55: 3000 | E55: 10 | F55: =D55/E55 -> 300 | G55: =D55/2*IntRate -> 90 | J55: 200 | K55: =EqOther*C55 -> 120 | L55: =SUM(F55:G55)+SUM(I55:K55) -> 710 | M55: 120 | N55: =L55/M55 -> 5.916666667 | O55: =N55 -> 5.916666667
A57: Rent | B57: Bins | C57: 7
B58: Out Buildings
A59: 28 | B59: Equip Barn (40x60) | C59: 30000 | D59: 25000 | E59: 30 | F59: =D59/E59 -> 833.3333333 | G59: =D59/2*IntRate -> 750 | K59: =EqOther*C59 -> 900 | L59: =SUM(F59:G59)+SUM(I59:K59) -> 2483.333333 | M59: 1 | N59: =L59/M59 -> 2483.333333 | O59: =N59 -> 2483.333333
A60: 29 | B60: Pesticide Storage | C60: 35000 | D60: 8000 | E60: 20 | F60: =D60/E60 -> 400 | G60: =D60/2*IntRate -> 240 | K60: =EqOther*C60 -> 1050 | L60: =SUM(F60:G60)+SUM(I60:K60) -> 1690 | M60: 1 | N60: =L60/M60 -> 1690 | O60: =N60 -> 1690
A62: 30 | B62: Platforms | C62: 40000 | D62: 20000 | E62: 20 | F62: =D62/E62 -> 1000 | G62: =D62/2*IntRate -> 600 | K62: =EqOther*C62 -> 1200 | L62: =SUM(F62:G62)+SUM(I62:K62) -> 2800 | M62: 1000 | N62: =L62/M62 -> 2.8 | O62: =N62 -> 2.8
A63: 31 | B63: Hedgers | C63: 30000 | D63: 10000 | E63: 20 | F63: 500 | G63: =D63/2*IntRate -> 300 | K63: =EqOther*C63 -> 900 | L63: 1700 | M63: 300 | N63: 5.666666667 | O63: 5.666666667
A64: 32 | B64: Frost Fans and Sprinklers | C64: 50000 | D64: 25000 | E64: 20 | F64: 1250 | G64: =D64/2*IntRate -> 750 | K64: =EqOther*C64 -> 1500 | L64: 3500 | M64: 100 | N64: 35 | O64: 35
C114: Sevin 80S

Sheet Meeting Agenda
A1: Update 1997 Costs of Production Study
A3: 1 | B3: Welcome
A4: 2 | B4: 2009 Publication Goals
A5: 3 | B5: Define the Farm
A6: 4 | B6: Define Systems
C7: Central Leader?
C8: Vertical Axe
C9: Tall Spindle
A11: 5 | B11: Pesticide Program
C12: Full Bearing
C13: Partial Bearing Years
A14: 6 | B14: Herbicide Program
A16: 7 | B16: Nutrient Program
A17: 8 | B17: Wildlife Program
A18: 9 | B18: Trellis
A19: 10 | B19: Pruning & Training Costs and Time
A20: 11 | B20: Irrigation
A21: 12 | B21: Mowing Costs
A22: 13 | B22: Harvest Costs
A23: 14 | B23: Migrant Housing
A24: 15 | B24: Overall Factors
A25: 16 | B25: Equipment List
A26: 17 | B26: Practices
C27: Full Bearing Year
C28: Establishment Years
A29: 18 | B29: Other Items
A30: 19 | B30: Revisit any Items.
A31: 20 | B31: Adjourn
A96: 1 | I96: 100 | J96: =+G96*E96*A96*I96*0.01 -> 0
A97: 1 | E97: 5 | I97: 100 | J97: =+G97*E97*A97*I97*0.01 -> 0
A98: 1 | E98: 5 | I98: 100 | J98: =+G98*E98*A98*I98*0.01 -> 0
I100: 100 | J100: =+G100*E100*A100*I100*0.01 -> 0
C102: Calcium Sprays | D102: EG-615 | I102: 100 | J102: =+G102*E102*A102*I102*0.01 -> 0
I104: 100 | J104: =+G104*E104*A104*I104*0.01 -> 0
A106: 1 | B106: Post-Harvest | C106: Boron | E106: 2 | I106: 100 | J106: =+G106*E106*A106*I106*0.01 -> 0
A107: 1 | E107: 5 | I107: 100 | J107: =+G107*E107*A107*I107*0.01 -> 0
A108: 1 | E108: 5 | I108: 100 | J108: =+G108*E108*A108*I108*0.01 -> 0
C114: Sevin 80S
